Body,Body Name,Date Paid,Transaction Number,Amount,Supplier Name,Supplier ID,Supplier post code (first 4 digits),Directorate,Service Area,General Ledger code Description,BVACOP class,Revenue/ Capital Spend
http://statistics.data.gov.uk/id/local-authority/00HY,Wiltshire Council,10/07/2014,5106516002,258.33,1st Call Skip Hire ,113094,BA13,Wiltshire Council,Wiltshire Council,Premises Related Other Maintenance Costs,Premises Related,CAPITAL
http://statistics.data.gov.uk/id/local-authority/00HY,Wiltshire Council,10/07/2014,5106516003,258.33,1st Call Skip Hire ,113094,BA13,Wiltshire Council,Wiltshire Council,Premises Related Other Maintenance Costs,Premises Related,CAPITAL
http://statistics.data.gov.uk/id/local-authority/00HY,Wiltshire Council,18/07/2014,5106519696,258.33,1st Call Skip Hire ,113094,BA13,Wiltshire Council,Wiltshire Council,Premises Related Other Maintenance Costs,Premises Related,CAPITAL
http://statistics.data.gov.uk/id/local-authority/00HY,Wiltshire Council,15/07/2014,5106519698,258.33,1st Call Skip Hire ,113094,BA13,Wiltshire Council,Wiltshire Council,Premises Related Other Maintenance Costs,Premises Related,CAPITAL
http://statistics.data.gov.uk/id/local-authority/00HY,Wiltshire Council,14/07/2014,5106519720,258.33,1st Call Skip Hire ,113094,BA13,Wiltshire Council,Wiltshire Council,Premises Related Other Maintenance Costs,Premises Related,CAPITAL
http://statistics.data.gov.uk/id/local-authority/00HY,Wiltshire Council,24/07/2014,5106525983,258.33,1st Call Skip Hire ,113094,BA13,Wiltshire Council,Wiltshire Council,Premises Related Other Maintenance Costs,Premises Related,CAPITAL
http://statistics.data.gov.uk/id/local-authority/00HY,Wiltshire Council,30/07/2014,5106533261,258.33,1st Call Skip Hire ,113094,BA13,Wiltshire Council,Wiltshire Council,Premises Related Other Maintenance Costs,Premises Related,CAPITAL
http://statistics.data.gov.uk/id/local-authority/00HY,Wiltshire Council,02.07.2014,1901302331,1188.32,1st Choice Cabs ,101285,SP4 ,Community Services,CTPLD Place CIC U65,Transport Contracts,Third Party Payments,REVENUE
http://statistics.data.gov.uk/id/local-authority/00HY,Wiltshire Council,02.07.2014,1901302340,305.41,1st Choice Cabs ,101285,SP4 ,Neighbourhood & Planning,SEN Secondary,Transport Contracts,Third Party Payments,REVENUE
http://statistics.data.gov.uk/id/local-authority/00HY,Wiltshire Council,02.07.2014,1901302340,2094.27,1st Choice Cabs ,101285,SP4 ,Neighbourhood & Planning,SEN Primary,Transport Contracts,Third Party Payments,REVENUE
http://statistics.data.gov.uk/id/local-authority/00HY,Wiltshire Council,04.07.2014,1901303435,1305.57,1st Choice Cabs ,101285,SP4 ,Community Services,CTPLD Place CIC U65,Transport Contracts,Third Party Payments,REVENUE
http://statistics.data.gov.uk/id/local-authority/00HY,Wiltshire Council,04.07.2014,1901303437,1575.42,1st Choice Cabs ,101285,SP4 ,Community Services,CTPLD Place CIC U65,Transport Contracts,Third Party Payments,REVENUE
http://statistics.data.gov.uk/id/local-authority/00HY,Wiltshire Council,04.07.2014,1901303441,878.64,1st Choice Cabs ,101285,SP4 ,Neighbourhood & Planning,Mainstream Primary,Transport Contracts,Third Party Payments,REVENUE
http://statistics.data.gov.uk/id/local-authority/00HY,Wiltshire Council,04.07.2014,1901303442,3034.08,1st Choice Cabs ,101285,SP4 ,Neighbourhood & Planning,SEN Primary,Transport Contracts,Third Party Payments,REVENUE
http://statistics.data.gov.uk/id/local-authority/00HY,Wiltshire Council,22.07.2014,1901317060,1629.18,1st Choice Cabs ,101285,SP4 ,Neighbourhood & Planning,SEN 16+ Secondary,Transport Contracts,Third Party Payments,REVENUE
http://statistics.data.gov.uk/id/local-authority/00HY,Wiltshire Council,01.07.2014,1901301566,4028.00,1st Choice Stairlifts ,113095,SN11,Wiltshire Council,Wiltshire Council,Payments to Contractors - Other,Third Party Payments,CAPITAL
http://statistics.data.gov.uk/id/local-authority/00HY,Wiltshire Council,01.07.2014,1901301659,1167.50,1st Choice Stairlifts ,113095,SN11,Wiltshire Council,Wiltshire Council,Payments to Contractors - Other,Third Party Payments,CAPITAL
http://statistics.data.gov.uk/id/local-authority/00HY,Wiltshire Council,02.07.2014,1901302258,3745.00,1st Choice Stairlifts ,113095,SN11,Wiltshire Council,Wiltshire Council,Payments to Contractors - Other,Third Party Payments,CAPITAL
http://statistics.data.gov.uk/id/local-authority/00HY,Wiltshire Council,09.07.2014,1901304312,1195.00,1st Choice Stairlifts ,113095,SN11,Wiltshire Council,Wiltshire Council,Payments to Contractors - Other,Third Party Payments,CAPITAL
http://statistics.data.gov.uk/id/local-authority/00HY,Wiltshire Council,22.07.2014,1901317000,2166.49,1st Choice Stairlifts ,113095,SN11,Wiltshire Council,Wiltshire Council,Payments to Contractors - Other,Third Party Payments,CAPITAL
http://statistics.data.gov.uk/id/local-authority/00HY,Wiltshire Council,02/07/2014,5106520841,2328.68,2 Care UK Ltd ,110002,BH7 ,Community Services,MH AOWA South Locali,Adult Residential Placements - Spot Purchase,Third Party Payments,REVENUE
http://statistics.data.gov.uk/id/local-authority/00HY,Wiltshire Council,02/07/2014,5106521261,425.60,2 Care UK Ltd ,110002,BH7 ,Community Services,MH OP North Locality,Adult Residential Placements - Spot Purchase,Third Party Payments,REVENUE
http://statistics.data.gov.uk/id/local-authority/00HY,Wiltshire Council,02/07/2014,5106521262,425.60,2 Care UK Ltd ,110002,BH7 ,Community Services,Section 117-PCT Clnt,Adult Residential Placements - Spot Purchase,Third Party Payments,REVENUE
http://statistics.data.gov.uk/id/local-authority/00HY,Wiltshire Council,02/07/2014,5106522575,2360.00,2 Care UK Ltd ,110002,BH7 ,Community Services,MH AOWA South Locali,Adult Residential Placements - Spot Purchase,Third Party Payments,REVENUE
http://statistics.data.gov.uk/id/local-authority/00HY,Wiltshire Council,30/07/2014,5106535564,2328.68,2 Care UK Ltd ,110002,BH7 ,Community Services,MH AOWA South Locali,Adult Residential Placements - Spot Purchase,Third Party Payments,REVENUE
http://statistics.data.gov.uk/id/local-authority/00HY,Wiltshire Council,30/07/2014,5106537277,2360.00,2 Care UK Ltd ,110002,BH7 ,Community Services,MH AOWA South Locali,Adult Residential Placements - Spot Purchase,Third Party Payments,REVENUE
http://statistics.data.gov.uk/id/local-authority/00HY,Wiltshire Council,02/07/2014,5106521105,1460.43,22 Wingfield ,129621,BA14,Community Services,CTPLD Place CIC U65,Adult Residential Placements - Spot Purchase,Third Party Payments,REVENUE
http://statistics.data.gov.uk/id/local-authority/00HY,Wiltshire Council,02/07/2014,5106521172,4947.00,22 Wingfield ,129621,BA14,Community Services,MH - OSJ Combe End C,Adult Residential Placements - Spot Purchase,Third Party Payments,REVENUE
http://statistics.data.gov.uk/id/local-authority/00HY,Wiltshire Council,02/07/2014,5106521250,7250.72,22 Wingfield ,129621,BA14,Community Services,CTPLD Place CIC U65,Adult Residential Placements - Spot Purchase,Third Party Payments,REVENUE
http://statistics.data.gov.uk/id/local-authority/00HY,Wiltshire Council,02/07/2014,5106521441,5552.16,22 Wingfield ,129621,BA14,Community Services,MH AOWA North Locali,Adult Residential Placements - Spot Purchase,Third Party Payments,REVENUE
http://statistics.data.gov.uk/id/local-authority/00HY,Wiltshire Council,02/07/2014,5106523885,4955.96,22 Wingfield ,129621,BA14,Community Services,CTPLD Place CIC U65,Adult Residential Placements - Spot Purchase,Third Party Payments,REVENUE
http://statistics.data.gov.uk/id/local-authority/00HY,Wiltshire Council,02/07/2014,5106524688,5526.60,22 Wingfield ,129621,BA14,Community Services,CTPLD Place CIC U65,Adult Residential Placements - Spot Purchase,Third Party Payments,REVENUE
http://statistics.data.gov.uk/id/local-authority/00HY,Wiltshire Council,30/07/2014,5106535853,4947.00,22 Wingfield ,129621,BA14,Community Services,MH - OSJ Combe End C,Adult Residential Placements - Spot Purchase,Third Party Payments,REVENUE
http://statistics.data.gov.uk/id/local-authority/00HY,Wiltshire Council,30/07/2014,5106535924,7250.72,22 Wingfield ,129621,BA14,Community Services,CTPLD Place CIC U65,Adult Residential Placements - Spot Purchase,Third Party Payments,REVENUE
http://statistics.data.gov.uk/id/local-authority/00HY,Wiltshire Council,30/07/2014,5106536105,5552.16,22 Wingfield ,129621,BA14,Community Services,MH AOWA North Locali,Adult Residential Placements - Spot Purchase,Third Party Payments,REVENUE
http://statistics.data.gov.uk/id/local-authority/00HY,Wiltshire Council,30/07/2014,5106537590,4955.96,22 Wingfield ,129621,BA14,Community Services,CTPLD Place CIC U65,Adult Residential Placements - Spot Purchase,Third Party Payments,REVENUE
http://statistics.data.gov.uk/id/local-authority/00HY,Wiltshire Council,30/07/2014,5106538970,5526.60,22 Wingfield ,129621,BA14,Community Services,CTPLD Place CIC U65,Adult Residential Placements - Spot Purchase,Third Party Payments,REVENUE
http://statistics.data.gov.uk/id/local-authority/00HY,Wiltshire Council,04.07.2014,1901303469,345.78,24-7 Taxis ,101087,BA12,Children & Education,Safeguarding Ass Wst,Transport Contracts,Third Party Payments,REVENUE
http://statistics.data.gov.uk/id/local-authority/00HY,Wiltshire Council,04.07.2014,1901303469,1275.02,24-7 Taxis ,101087,BA12,Neighbourhood & Planning,SEN Secondary,Transport Contracts,Third Party Payments,REVENUE
http://statistics.data.gov.uk/id/local-authority/00HY,Wiltshire Council,11.07.2014,1901312851,1050.00,2get2 Taxi Services Ltd ,101102,SP1 ,Neighbourhood & Planning,SEN Primary,Transport Contracts,Third Party Payments,REVENUE
http://statistics.data.gov.uk/id/local-authority/00HY,Wiltshire Council,15/07/2014,5106529553,407.02,3663 ,113090,L40 ,Children & Education,PDCMelksham,Catering,Supplies and Services,REVENUE
http://statistics.data.gov.uk/id/local-authority/00HY,Wiltshire Council,02/07/2014,5106522780,515238.25,4 Children ,113122,E14 ,Children & Education,EYChildCentreTm,Grants Paid to individuals for Tangible Benefits,Supplies and Services,REVENUE
http://statistics.data.gov.uk/id/local-authority/00HY,Wiltshire Council,17.07.2014,1901315963,330.78,A  and  S Private Hire ,101115,SN15,Neighbourhood & Planning,SEN Secondary,Transport Contracts,Third Party Payments,REVENUE
http://statistics.data.gov.uk/id/local-authority/00HY,Wiltshire Council,17.07.2014,1901315963,918.83,A  and  S Private Hire ,101115,SN15,Neighbourhood & Planning,SEN Primary,Transport Contracts,Third Party Payments,REVENUE
http://statistics.data.gov.uk/id/local-authority/00HY,Wiltshire Council,02.07.2014,1901302264,498.42,A C E Supplies ,126284,BA15,Resources,FM - Soft,Preventative Property Maintenance,Premises Related,REVENUE
http://statistics.data.gov.uk/id/local-authority/00HY,Wiltshire Council,07/07/2014,5106527849,508.00,A E Smith   Son ,110014,SN3 ,Resources,CoronerGeneral,Body Removals,Supplies and Services,REVENUE
http://statistics.data.gov.uk/id/local-authority/00HY,Wiltshire Council,25/07/2014,5106533471,1228.00,A E Smith   Son ,110014,SN3 ,Resources,CoronerGeneral,Body Removals,Supplies and Services,REVENUE
http://statistics.data.gov.uk/id/local-authority/00HY,Wiltshire Council,17.07.2014,1901315166,959.97,A G Minibuses ,100878,BA12,Neighbourhood & Planning,SEN Primary,Transport Contracts,Third Party Payments,REVENUE
http://statistics.data.gov.uk/id/local-authority/00HY,Wiltshire Council,17.07.2014,1901315166,1634.52,A G Minibuses ,100878,BA12,Neighbourhood & Planning,SEN Secondary,Transport Contracts,Third Party Payments,REVENUE
http://statistics.data.gov.uk/id/local-authority/00HY,Wiltshire Council,17.07.2014,1901315212,1811.72,A G Minibuses ,100878,BA12,Neighbourhood & Planning,Mainstream Primary,Transport Contracts,Third Party Payments,REVENUE
http://statistics.data.gov.uk/id/local-authority/00HY,Wiltshire Council,17.07.2014,1901315213,1854.20,A G Minibuses ,100878,BA12,Neighbourhood & Planning,Mainstream Primary,Transport Contracts,Third Party Payments,REVENUE
http://statistics.data.gov.uk/id/local-authority/00HY,Wiltshire Council,17.07.2014,1901315222,380.44,A G Minibuses ,100878,BA12,Neighbourhood & Planning,SEN 16+ Secondary,Transport Contracts,Third Party Payments,REVENUE
http://statistics.data.gov.uk/id/local-authority/00HY,Wiltshire Council,17.07.2014,1901315222,570.65,A G Minibuses ,100878,BA12,Neighbourhood & Planning,SEN 16+ FE Colleges,Transport Contracts,Third Party Payments,REVENUE
http://statistics.data.gov.uk/id/local-authority/00HY,Wiltshire Council,17.07.2014,1901315229,1182.23,A G Minibuses ,100878,BA12,Neighbourhood & Planning,Mainstream Secondary,Transport Contracts,Third Party Payments,REVENUE
http://statistics.data.gov.uk/id/local-authority/00HY,Wiltshire Council,17.07.2014,1901315230,467.25,A G Minibuses ,100878,BA12,Neighbourhood & Planning,Mainstream Primary,Transport Contracts,Third Party Payments,REVENUE
http://statistics.data.gov.uk/id/local-authority/00HY,Wiltshire Council,17.07.2014,1901315230,467.25,A G Minibuses ,100878,BA12,Neighbourhood & Planning,SEN 16+ Secondary,Transport Contracts,Third Party Payments,REVENUE
http://statistics.data.gov.uk/id/local-authority/00HY,Wiltshire Council,17.07.2014,1901315230,934.50,A G Minibuses ,100878,BA12,Neighbourhood & Planning,SEN Primary,Transport Contracts,Third Party Payments,REVENUE
http://statistics.data.gov.uk/id/local-authority/00HY,Wiltshire Council,17.07.2014,1901315231,520.33,A G Minibuses ,100878,BA12,Neighbourhood & Planning,SEN Primary,Transport Contracts,Third Party Payments,REVENUE
http://statistics.data.gov.uk/id/local-authority/00HY,Wiltshire Council,17.07.2014,1901315231,520.33,A G Minibuses ,100878,BA12,Neighbourhood & Planning,SEN 16+ Secondary,Transport Contracts,Third Party Payments,REVENUE
http://statistics.data.gov.uk/id/local-authority/00HY,Wiltshire Council,17.07.2014,1901315231,2304.34,A G Minibuses ,100878,BA12,Neighbourhood & Planning,SEN Secondary,Transport Contracts,Third Party Payments,REVENUE
http://statistics.data.gov.uk/id/local-authority/00HY,Wiltshire Council,17.07.2014,1901315232,1783.00,A G Minibuses ,100878,BA12,Neighbourhood & Planning,SEN Secondary,Transport Contracts,Third Party Payments,REVENUE
http://statistics.data.gov.uk/id/local-authority/00HY,Wiltshire Council,17.07.2014,1901315234,904.48,A G Minibuses ,100878,BA12,Community Services,MH OP East Locality,Transport Contracts,Third Party Payments,REVENUE
http://statistics.data.gov.uk/id/local-authority/00HY,Wiltshire Council,17.07.2014,1901315234,979.85,A G Minibuses ,100878,BA12,Community Services,East Locality OP,Transport Contracts,Third Party Payments,REVENUE
http://statistics.data.gov.uk/id/local-authority/00HY,Wiltshire Council,17.07.2014,1901315235,1305.36,A G Minibuses ,100878,BA12,Neighbourhood & Planning,Mainstream Secondary,Transport Contracts,Third Party Payments,REVENUE
http://statistics.data.gov.uk/id/local-authority/00HY,Wiltshire Council,17.07.2014,1901315236,1411.20,A G Minibuses ,100878,BA12,Neighbourhood & Planning,Mainstream Primary,Transport Contracts,Third Party Payments,REVENUE
http://statistics.data.gov.uk/id/local-authority/00HY,Wiltshire Council,17.07.2014,1901315240,825.00,A G Minibuses ,100878,BA12,Community Services,CTPLD Place CIC U65,Transport Contracts,Third Party Payments,REVENUE
http://statistics.data.gov.uk/id/local-authority/00HY,Wiltshire Council,17.07.2014,1901315960,13182.62,A G Minibuses ,100878,BA12,Neighbourhood & Planning,Connect 2 Wiltshire,Transport Contracts,Third Party Payments,REVENUE
http://statistics.data.gov.uk/id/local-authority/00HY,Wiltshire Council,17.07.2014,1901315968,924.21,A G Minibuses ,100878,BA12,Neighbourhood & Planning,Connect 2 Wiltshire,Transport Contracts,Third Party Payments,REVENUE
http://statistics.data.gov.uk/id/local-authority/00HY,Wiltshire Council,17.07.2014,1901315968,997.50,A G Minibuses ,100878,BA12,Neighbourhood & Planning,Mainstream Primary,Transport Contracts,Third Party Payments,REVENUE
http://statistics.data.gov.uk/id/local-authority/00HY,Wiltshire Council,17.07.2014,1901315968,1588.52,A G Minibuses ,100878,BA12,Neighbourhood & Planning,Public Transport,Transport Contracts,Third Party Payments,REVENUE
http://statistics.data.gov.uk/id/local-authority/00HY,Wiltshire Council,17.07.2014,1901315990,828.83,A G Minibuses ,100878,BA12,Children & Education,CDT S&W,Transport Contracts,Third Party Payments,REVENUE
http://statistics.data.gov.uk/id/local-authority/00HY,Wiltshire Council,17.07.2014,1901315990,3196.93,A G Minibuses ,100878,BA12,Neighbourhood & Planning,SEN Primary,Transport Contracts,Third Party Payments,REVENUE
http://statistics.data.gov.uk/id/local-authority/00HY,Wiltshire Council,17.07.2014,1901315995,734.23,A G Minibuses ,100878,BA12,Neighbourhood & Planning,SEN Primary,Transport Contracts,Third Party Payments,REVENUE
http://statistics.data.gov.uk/id/local-authority/00HY,Wiltshire Council,17.07.2014,1901315995,978.97,A G Minibuses ,100878,BA12,Children & Education,CDT S&W,Transport Contracts,Third Party Payments,REVENUE
http://statistics.data.gov.uk/id/local-authority/00HY,Wiltshire Council,17.07.2014,1901315995,2202.67,A G Minibuses ,100878,BA12,Neighbourhood & Planning,SEN Secondary,Transport Contracts,Third Party Payments,REVENUE
http://statistics.data.gov.uk/id/local-authority/00HY,Wiltshire Council,25.07.2014,1901318732,539.26,A G Minibuses ,100878,BA12,Community Services,CTPLD Place CIC U65,Transport Contracts,Third Party Payments,REVENUE
http://statistics.data.gov.uk/id/local-authority/00HY,Wiltshire Council,25.07.2014,1901318732,1044.74,A G Minibuses ,100878,BA12,Community Services,OVA East Locality,Transport Contracts,Third Party Payments,REVENUE
http://statistics.data.gov.uk/id/local-authority/00HY,Wiltshire Council,25.07.2014,1901318733,683.06,A G Minibuses ,100878,BA12,Community Services,OVA East Locality,Transport Contracts,Third Party Payments,REVENUE
http://statistics.data.gov.uk/id/local-authority/00HY,Wiltshire Council,25.07.2014,1901318738,1415.80,A G Minibuses ,100878,BA12,Community Services,CTPLD Place CIC U65,Transport Contracts,Third Party Payments,REVENUE
http://statistics.data.gov.uk/id/local-authority/00HY,Wiltshire Council,25.07.2014,1901318741,1583.33,A G Minibuses ,100878,BA12,Neighbourhood & Planning,Mainstream Secondary,Transport Contracts,Third Party Payments,REVENUE
http://statistics.data.gov.uk/id/local-authority/00HY,Wiltshire Council,25.07.2014,1901318741,4143.00,A G Minibuses ,100878,BA12,Neighbourhood & Planning,Connect 2 Wiltshire,Transport Contracts,Third Party Payments,REVENUE
http://statistics.data.gov.uk/id/local-authority/00HY,Wiltshire Council,02.07.2014,1901302343,409.73,A M S Taxis ,100839,BA14,Neighbourhood & Planning,SEN 16+ FE Colleges,Transport Contracts,Third Party Payments,REVENUE
http://statistics.data.gov.uk/id/local-authority/00HY,Wiltshire Council,02.07.2014,1901302343,512.17,A M S Taxis ,100839,BA14,Neighbourhood & Planning,SEN 16+ Secondary,Transport Contracts,Third Party Payments,REVENUE
http://statistics.data.gov.uk/id/local-authority/00HY,Wiltshire Council,02.07.2014,1901302318,661.50,A P Taxis ,100628,SN12,Neighbourhood & Planning,SEN Primary,Transport Contracts,Third Party Payments,REVENUE
http://statistics.data.gov.uk/id/local-authority/00HY,Wiltshire Council,02.07.2014,1901302327,1256.38,A P Taxis ,100628,SN12,Neighbourhood & Planning,SEN Primary,Transport Contracts,Third Party Payments,REVENUE
http://statistics.data.gov.uk/id/local-authority/00HY,Wiltshire Council,02.07.2014,1901302328,317.10,A P Taxis ,100628,SN12,Neighbourhood & Planning,Mainstream Secondary,Transport Contracts,Third Party Payments,REVENUE
http://statistics.data.gov.uk/id/local-authority/00HY,Wiltshire Council,02.07.2014,1901302329,1414.53,A P Taxis ,100628,SN12,Neighbourhood & Planning,SEN Primary,Transport Contracts,Third Party Payments,REVENUE
http://statistics.data.gov.uk/id/local-authority/00HY,Wiltshire Council,02.07.2014,1901302349,1205.76,A P Taxis ,100628,SN12,Neighbourhood & Planning,SEN Secondary,Transport Contracts,Third Party Payments,REVENUE
http://statistics.data.gov.uk/id/local-authority/00HY,Wiltshire Council,22/07/2014,5106527708,257.55,A S A Awards Scheme ,110020,LE11,Neighbourhood & Planning,Tidworth,Equipment Purchase,Supplies and Services,REVENUE
http://statistics.data.gov.uk/id/local-authority/00HY,Wiltshire Council,29/07/2014,5106533988,951.90,A S A Awards Scheme ,110020,LE11,Neighbourhood & Planning,Five Rivers,Traded Goods Expenses,Supplies and Services,REVENUE
http://statistics.data.gov.uk/id/local-authority/00HY,Wiltshire Council,11.07.2014,1901312836,714.00,A1 Cab Company ,101233,SP4 ,Community Services,CTPLD Place CIC U65,Transport Contracts,Third Party Payments,REVENUE
http://statistics.data.gov.uk/id/local-authority/00HY,Wiltshire Council,11.07.2014,1901312837,1039.02,A1 Cab Company ,101233,SP4 ,Neighbourhood & Planning,Mainstream Secondary,Transport Contracts,Third Party Payments,REVENUE
http://statistics.data.gov.uk/id/local-authority/00HY,Wiltshire Council,11.07.2014,1901312838,1890.00,A1 Cab Company ,101233,SP4 ,Neighbourhood & Planning,Mainstream Primary,Transport Contracts,Third Party Payments,REVENUE
http://statistics.data.gov.uk/id/local-authority/00HY,Wiltshire Council,11.07.2014,1901312839,1010.00,A1 Cab Company ,101233,SP4 ,Neighbourhood & Planning,SEN Secondary,Transport Contracts,Third Party Payments,REVENUE
http://statistics.data.gov.uk/id/local-authority/00HY,Wiltshire Council,11.07.2014,1901312839,2020.00,A1 Cab Company ,101233,SP4 ,Neighbourhood & Planning,SEN Primary,Transport Contracts,Third Party Payments,REVENUE
http://statistics.data.gov.uk/id/local-authority/00HY,Wiltshire Council,11.07.2014,1901312842,969.15,A1 Cab Company ,101233,SP4 ,Neighbourhood & Planning,Mainstream Secondary,Transport Contracts,Third Party Payments,REVENUE
http://statistics.data.gov.uk/id/local-authority/00HY,Wiltshire Council,11.07.2014,1901312845,512.50,A1 Cab Company ,101233,SP4 ,Neighbourhood & Planning,SEN Primary,Transport Contracts,Third Party Payments,REVENUE
http://statistics.data.gov.uk/id/local-authority/00HY,Wiltshire Council,22.07.2014,1901317052,1584.87,A1 Cab Company ,101233,SP4 ,Neighbourhood & Planning,SEN Secondary,Transport Contracts,Third Party Payments,REVENUE
http://statistics.data.gov.uk/id/local-authority/00HY,Wiltshire Council,07.07.2014,1901303581,10916.16,A2 Winchester Ltd ,101167,SO23,Neighbourhood & Planning,HousingStrategy,Payments to Contractors - Other,Third Party Payments,REVENUE
http://statistics.data.gov.uk/id/local-authority/00HY,Wiltshire Council,22/07/2014,5106520429,362.76,A2B Office Technology ,113249,BL8 ,Resources,FM - Office,Stationery,Supplies and Services,REVENUE
http://statistics.data.gov.uk/id/local-authority/00HY,Wiltshire Council,10/07/2014,5106528347,2925.00,Aareon Uk Ltd ,113252,CV8 ,Wiltshire Council,Wiltshire Council,ICT - Support arrangements,Supplies and Services,CAPITAL
http://statistics.data.gov.uk/id/local-authority/00HY,Wiltshire Council,23/07/2014,5106532523,10642.00,Abavus Ltd ,134621,E18 ,Resources,Applications SuppLOB,ICT - Support arrangements,Supplies and Services,REVENUE
http://statistics.data.gov.uk/id/local-authority/00HY,Wiltshire Council,07.07.2014,1901303608,924.66,Abbey Taxis (Swindon) Ltd ,100920,SN2 ,Neighbourhood & Planning,Mainstream Secondary,Transport Contracts,Third Party Payments,REVENUE
http://statistics.data.gov.uk/id/local-authority/00HY,Wiltshire Council,07.07.2014,1901303613,338.52,Abbey Taxis (Swindon) Ltd ,100920,SN2 ,Neighbourhood & Planning,SEN 16+ Secondary,Transport Contracts,Third Party Payments,REVENUE
http://statistics.data.gov.uk/id/local-authority/00HY,Wiltshire Council,07.07.2014,1901303619,481.00,Abbey Taxis (Swindon) Ltd ,100920,SN2 ,Children & Education,LAC & 16+,Transport Contracts,Third Party Payments,REVENUE
http://statistics.data.gov.uk/id/local-authority/00HY,Wiltshire Council,11.07.2014,1901312843,381.33,Abbey Taxis (Swindon) Ltd ,100920,SN2 ,Community Services,CTPLD Place CIC U65,Transport Contracts,Third Party Payments,REVENUE
http://statistics.data.gov.uk/id/local-authority/00HY,Wiltshire Council,11.07.2014,1901312846,517.50,Abbey Taxis (Swindon) Ltd ,100920,SN2 ,Neighbourhood & Planning,Mainstream Primary,Transport Contracts,Third Party Payments,REVENUE
http://statistics.data.gov.uk/id/local-authority/00HY,Wiltshire Council,15.07.2014,1901313583,1050.00,Abbey Taxis (Swindon) Ltd ,100920,SN2 ,Neighbourhood & Planning,Mainstream Primary,Transport Contracts,Third Party Payments,REVENUE
http://statistics.data.gov.uk/id/local-authority/00HY,Wiltshire Council,17.07.2014,1901315188,1209.00,Abbey Taxis (Swindon) Ltd ,100920,SN2 ,Neighbourhood & Planning,Mainstream Primary,Transport Contracts,Third Party Payments,REVENUE
http://statistics.data.gov.uk/id/local-authority/00HY,Wiltshire Council,17.07.2014,1901315190,720.80,Abbey Taxis (Swindon) Ltd ,100920,SN2 ,Neighbourhood & Planning,Mainstream Primary,Transport Contracts,Third Party Payments,REVENUE
http://statistics.data.gov.uk/id/local-authority/00HY,Wiltshire Council,17.07.2014,1901315914,2193.24,Abbey Taxis (Swindon) Ltd ,100920,SN2 ,Neighbourhood & Planning,SEN Primary,Transport Contracts,Third Party Payments,REVENUE
http://statistics.data.gov.uk/id/local-authority/00HY,Wiltshire Council,17.07.2014,1901315942,852.60,Abbey Taxis (Swindon) Ltd ,100920,SN2 ,Neighbourhood & Planning,Mainstream Primary,Transport Contracts,Third Party Payments,REVENUE
http://statistics.data.gov.uk/id/local-authority/00HY,Wiltshire Council,17.07.2014,1901315944,1832.20,Abbey Taxis (Swindon) Ltd ,100920,SN2 ,Neighbourhood & Planning,SEN Primary,Transport Contracts,Third Party Payments,REVENUE
http://statistics.data.gov.uk/id/local-authority/00HY,Wiltshire Council,17.07.2014,1901316025,301.52,Abbey Taxis (Swindon) Ltd ,100920,SN2 ,Children & Education,LAC & 16+,Transport Contracts,Third Party Payments,REVENUE
http://statistics.data.gov.uk/id/local-authority/00HY,Wiltshire Council,17.07.2014,1901316025,825.00,Abbey Taxis (Swindon) Ltd ,100920,SN2 ,Neighbourhood & Planning,Mainstream Primary,Transport Contracts,Third Party Payments,REVENUE
http://statistics.data.gov.uk/id/local-authority/00HY,Wiltshire Council,17.07.2014,1901316025,907.00,Abbey Taxis (Swindon) Ltd ,100920,SN2 ,Children & Education,LAC & 16+,Transport Contracts,Third Party Payments,REVENUE
http://statistics.data.gov.uk/id/local-authority/00HY,Wiltshire Council,17.07.2014,1901316025,1033.00,Abbey Taxis (Swindon) Ltd ,100920,SN2 ,Neighbourhood & Planning,Mainstream Secondary,Transport Contracts,Third Party Payments,REVENUE
http://statistics.data.gov.uk/id/local-authority/00HY,Wiltshire Council,18.07.2014,1901316399,1224.48,Abbey Taxis (Swindon) Ltd ,100920,SN2 ,Neighbourhood & Planning,SEN Primary,Transport Contracts,Third Party Payments,REVENUE
http://statistics.data.gov.uk/id/local-authority/00HY,Wiltshire Council,22.07.2014,1901317064,390.00,Abbey Taxis (Swindon) Ltd ,100920,SN2 ,Neighbourhood & Planning,SEN PA's,Transport Contracts,Third Party Payments,REVENUE
http://statistics.data.gov.uk/id/local-authority/00HY,Wiltshire Council,24.07.2014,1901318620,1344.00,Abbey Taxis (Swindon) Ltd ,100920,SN2 ,Neighbourhood & Planning,SEN Secondary,Transport Contracts,Third Party Payments,REVENUE
http://statistics.data.gov.uk/id/local-authority/00HY,Wiltshire Council,24.07.2014,1901318630,494.00,Abbey Taxis (Swindon) Ltd ,100920,SN2 ,Neighbourhood & Planning,SEN PA's,Transport Contracts,Third Party Payments,REVENUE
http://statistics.data.gov.uk/id/local-authority/00HY,Wiltshire Council,31.07.2014,1901320250,502.10,Abbey Taxis (Swindon) Ltd ,100920,SN2 ,Neighbourhood & Planning,SEN Secondary,Transport Contracts,Third Party Payments,REVENUE
http://statistics.data.gov.uk/id/local-authority/00HY,Wiltshire Council,31.07.2014,1901320250,502.10,Abbey Taxis (Swindon) Ltd ,100920,SN2 ,Neighbourhood & Planning,SEN 16+ Secondary,Transport Contracts,Third Party Payments,REVENUE
http://statistics.data.gov.uk/id/local-authority/00HY,Wiltshire Council,31.07.2014,1901320250,1506.30,Abbey Taxis (Swindon) Ltd ,100920,SN2 ,Neighbourhood & Planning,SEN Primary,Transport Contracts,Third Party Payments,REVENUE
http://statistics.data.gov.uk/id/local-authority/00HY,Wiltshire Council,03.07.2014,1901303143,318.56,Abbey Taxis Ltd ,101080,BA2 ,Neighbourhood & Planning,Mainstream Secondary,Transport Contracts,Third Party Payments,REVENUE
http://statistics.data.gov.uk/id/local-authority/00HY,Wiltshire Council,03.07.2014,1901303145,278.73,Abbey Taxis Ltd ,101080,BA2 ,Neighbourhood & Planning,Mainstream Secondary,Transport Contracts,Third Party Payments,REVENUE
http://statistics.data.gov.uk/id/local-authority/00HY,Wiltshire Council,10.07.2014,1901312753,492.32,Abbey Taxis Ltd ,101080,BA2 ,Neighbourhood & Planning,Mainstream Secondary,Transport Contracts,Third Party Payments,REVENUE
http://statistics.data.gov.uk/id/local-authority/00HY,Wiltshire Council,10.07.2014,1901312754,557.46,Abbey Taxis Ltd ,101080,BA2 ,Neighbourhood & Planning,Mainstream Secondary,Transport Contracts,Third Party Payments,REVENUE
http://statistics.data.gov.uk/id/local-authority/00HY,Wiltshire Council,02/07/2014,5106521811,1930.48,Abbeyfield Greensted Residential Ho ,135852,ME2 ,Community Services,North Locality OP,Adult Residential Placements - Spot Purchase,Third Party Payments,REVENUE
http://statistics.data.gov.uk/id/local-authority/00HY,Wiltshire Council,30/07/2014,5106536446,1930.48,Abbeyfield Greensted Residential Ho ,135852,ME2 ,Community Services,North Locality OP,Adult Residential Placements - Spot Purchase,Third Party Payments,REVENUE
http://statistics.data.gov.uk/id/local-authority/00HY,Wiltshire Council,01/07/2014,5106522706,274.31,Abicare Services Ltd Homecare ,110031,SP2 ,Community Services,CTPLD Place CIC U65,Adult Domiciliary Care - Spot Contribution,Income,REVENUE
http://statistics.data.gov.uk/id/local-authority/00HY,Wiltshire Council,02/07/2014,5106522828,442.98,Abicare Services Ltd Homecare ,110031,SP2 ,Community Services,West Locality OP,Adult Domiciliary Care - Spot,Third Party Payments,REVENUE
http://statistics.data.gov.uk/id/local-authority/00HY,Wiltshire Council,08/07/2014,5106528021,289.46,Abicare Services Ltd Homecare ,110031,SP2 ,Community Services,CTPLD Place CIC U65,Adult Domiciliary Care - Spot Contribution,Income,REVENUE
http://statistics.data.gov.uk/id/local-authority/00HY,Wiltshire Council,08/07/2014,5106528024,425.61,Abicare Services Ltd Homecare ,110031,SP2 ,Community Services,OVA South Locality,Adult Domiciliary care - Live in contribution,Income,REVENUE
http://statistics.data.gov.uk/id/local-authority/00HY,Wiltshire Council,08/07/2014,5106528025,803.97,Abicare Services Ltd Homecare ,110031,SP2 ,Community Services,West Locality OP,Adult Domiciliary Care - Mileage,Third Party Payments,REVENUE
http://statistics.data.gov.uk/id/local-authority/00HY,Wiltshire Council,11/07/2014,5106528299,793.41,Abicare Services Ltd Homecare ,110031,SP2 ,Community Services,West Locality OP,Adult Domiciliary Care - Mileage,Third Party Payments,REVENUE
http://statistics.data.gov.uk/id/local-authority/00HY,Wiltshire Council,11/07/2014,5106528805,257.48,Abicare Services Ltd Homecare ,110031,SP2 ,Community Services,CTPLD Place CIC U65,Adult Domiciliary Care - Spot Contribution,Income,REVENUE
http://statistics.data.gov.uk/id/local-authority/00HY,Wiltshire Council,11/07/2014,5106528840,485.79,Abicare Services Ltd Homecare ,110031,SP2 ,Community Services,OVA South Locality,Adult Domiciliary care - Live in contribution,Income,REVENUE
http://statistics.data.gov.uk/id/local-authority/00HY,Wiltshire Council,16/07/2014,5106529662,442.98,Abicare Services Ltd Homecare ,110031,SP2 ,Community Services,West Locality OP,Adult Domiciliary Care - Spot,Third Party Payments,REVENUE
http://statistics.data.gov.uk/id/local-authority/00HY,Wiltshire Council,16/07/2014,5106529663,793.41,Abicare Services Ltd Homecare ,110031,SP2 ,Community Services,West Locality OP,Adult Domiciliary Care - Mileage,Third Party Payments,REVENUE
http://statistics.data.gov.uk/id/local-authority/00HY,Wiltshire Council,16/07/2014,5106529665,485.79,Abicare Services Ltd Homecare ,110031,SP2 ,Community Services,OVA South Locality,Adult Domiciliary care - Live in contribution,Income,REVENUE
http://statistics.data.gov.uk/id/local-authority/00HY,Wiltshire Council,21/07/2014,5106530805,442.98,Abicare Services Ltd Homecare ,110031,SP2 ,Community Services,West Locality OP,Adult Domiciliary Care - Spot,Third Party Payments,REVENUE
http://statistics.data.gov.uk/id/local-authority/00HY,Wiltshire Council,21/07/2014,5106530807,793.41,Abicare Services Ltd Homecare ,110031,SP2 ,Community Services,West Locality OP,Adult Domiciliary Care - Mileage,Third Party Payments,REVENUE
http://statistics.data.gov.uk/id/local-authority/00HY,Wiltshire Council,21/07/2014,5106530847,433.03,Abicare Services Ltd Homecare ,110031,SP2 ,Community Services,OVA South Locality,Adult Domiciliary care - Live in contribution,Income,REVENUE
http://statistics.data.gov.uk/id/local-authority/00HY,Wiltshire Council,23/07/2014,5106532449,793.41,Abicare Services Ltd Homecare ,110031,SP2 ,Community Services,West Locality OP,Adult Domiciliary Care - Mileage,Third Party Payments,REVENUE
http://statistics.data.gov.uk/id/local-authority/00HY,Wiltshire Council,23/07/2014,5106532460,485.79,Abicare Services Ltd Homecare ,110031,SP2 ,Community Services,OVA South Locality,Adult Domiciliary care - Live in contribution,Income,REVENUE
http://statistics.data.gov.uk/id/local-authority/00HY,Wiltshire Council,23/07/2014,5106532462,297.95,Abicare Services Ltd Homecare ,110031,SP2 ,Community Services,West Locality OP,Adult Domiciliary Care - Spot,Third Party Payments,REVENUE
http://statistics.data.gov.uk/id/local-authority/00HY,Wiltshire Council,23/07/2014,5106532624,337.24,Abicare Services Ltd Homecare ,110031,SP2 ,Community Services,OVA South Locality,Adult Domiciliary Care - Spot,Third Party Payments,REVENUE
http://statistics.data.gov.uk/id/local-authority/00HY,Wiltshire Council,23/07/2014,5106532624,4435.83,Abicare Services Ltd Homecare ,110031,SP2 ,Community Services,South Locality OP,Adult Domiciliary Care - Spot,Third Party Payments,REVENUE
http://statistics.data.gov.uk/id/local-authority/00HY,Wiltshire Council,23/07/2014,5106532629,302.20,Abicare Services Ltd Homecare ,110031,SP2 ,Community Services,MH AOWA South Locali,Adult Domiciliary Care - Spot,Third Party Payments,REVENUE
http://statistics.data.gov.uk/id/local-authority/00HY,Wiltshire Council,01/07/2014,5106522716,414.35,Abicare Services Ltd Live in Care. ,113071,SP2 ,Community Services,CTPLD Place CIC U65,Adult Domiciliary Care - Spot Contribution,Income,REVENUE
http://statistics.data.gov.uk/id/local-authority/00HY,Wiltshire Council,02/07/2014,5106522770,756.05,Abicare Services Ltd Live in Care. ,113071,SP2 ,Community Services,MH OP East Locality,Adult Domiciliary care - Live in contribution,Income,REVENUE
http://statistics.data.gov.uk/id/local-authority/00HY,Wiltshire Council,02/07/2014,5106522840,734.23,Abicare Services Ltd Live in Care. ,113071,SP2 ,Community Services,West Locality OP,Adult Domiciliary Care - Live in Care,Third Party Payments,REVENUE
http://statistics.data.gov.uk/id/local-authority/00HY,Wiltshire Council,04/07/2014,5106525946,713.30,Abicare Services Ltd Live in Care. ,113071,SP2 ,Community Services,South Locality OP,Adult Domiciliary Care - Live in Care,Third Party Payments,REVENUE
http://statistics.data.gov.uk/id/local-authority/00HY,Wiltshire Council,11/07/2014,5106528804,723.38,Abicare Services Ltd Live in Care. ,113071,SP2 ,Community Services,CTPLD Place CIC U65,Adult Domiciliary Care - Live in Care,Third Party Payments,REVENUE
http://statistics.data.gov.uk/id/local-authority/00HY,Wiltshire Council,15/07/2014,5106529505,734.23,Abicare Services Ltd Live in Care. ,113071,SP2 ,Community Services,West Locality OP,Adult Domiciliary Care - Live in Care,Third Party Payments,REVENUE
http://statistics.data.gov.uk/id/local-authority/00HY,Wiltshire Council,15/07/2014,5106529506,746.30,Abicare Services Ltd Live in Care. ,113071,SP2 ,Community Services,South Locality OP,Adult Domiciliary Care - Live in Care,Third Party Payments,REVENUE
http://statistics.data.gov.uk/id/local-authority/00HY,Wiltshire Council,15/07/2014,5106529509,734.23,Abicare Services Ltd Live in Care. ,113071,SP2 ,Community Services,West Locality OP,Adult Domiciliary Care - Live in Care,Third Party Payments,REVENUE
http://statistics.data.gov.uk/id/local-authority/00HY,Wiltshire Council,16/07/2014,5106529618,756.05,Abicare Services Ltd Live in Care. ,113071,SP2 ,Community Services,MH OP East Locality,Adult Domiciliary care - Live in contribution,Income,REVENUE
http://statistics.data.gov.uk/id/local-authority/00HY,Wiltshire Council,16/07/2014,5106529661,713.30,Abicare Services Ltd Live in Care. ,113071,SP2 ,Community Services,South Locality OP,Adult Domiciliary Care - Live in Care,Third Party Payments,REVENUE
http://statistics.data.gov.uk/id/local-authority/00HY,Wiltshire Council,18/07/2014,5106530664,414.35,Abicare Services Ltd Live in Care. ,113071,SP2 ,Community Services,CTPLD Place CIC U65,Adult Domiciliary Care - Spot Contribution,Income,REVENUE
http://statistics.data.gov.uk/id/local-authority/00HY,Wiltshire Council,22/07/2014,5106530914,414.35,Abicare Services Ltd Live in Care. ,113071,SP2 ,Community Services,CTPLD Place CIC U65,Adult Domiciliary Care - Spot Contribution,Income,REVENUE
http://statistics.data.gov.uk/id/local-authority/00HY,Wiltshire Council,22/07/2014,5106531006,756.05,Abicare Services Ltd Live in Care. ,113071,SP2 ,Community Services,MH OP East Locality,Adult Domiciliary care - Live in contribution,Income,REVENUE
http://statistics.data.gov.uk/id/local-authority/00HY,Wiltshire Council,23/07/2014,5106532465,746.30,Abicare Services Ltd Live in Care. ,113071,SP2 ,Community Services,South Locality OP,Adult Domiciliary Care - Live in Care,Third Party Payments,REVENUE
http://statistics.data.gov.uk/id/local-authority/00HY,Wiltshire Council,23/07/2014,5106532466,734.23,Abicare Services Ltd Live in Care. ,113071,SP2 ,Community Services,West Locality OP,Adult Domiciliary Care - Live in Care,Third Party Payments,REVENUE
http://statistics.data.gov.uk/id/local-authority/00HY,Wiltshire Council,25/07/2014,5106533273,723.38,Abicare Services Ltd Live in Care. ,113071,SP2 ,Community Services,CTPLD Place CIC U65,Adult Domiciliary Care - Live in Care,Third Party Payments,REVENUE
http://statistics.data.gov.uk/id/local-authority/00HY,Wiltshire Council,25/07/2014,5106533274,723.38,Abicare Services Ltd Live in Care. ,113071,SP2 ,Community Services,CTPLD Place CIC U65,Adult Domiciliary Care - Live in Care,Third Party Payments,REVENUE
http://statistics.data.gov.uk/id/local-authority/00HY,Wiltshire Council,25/07/2014,5106533297,723.38,Abicare Services Ltd Live in Care. ,113071,SP2 ,Community Services,CTPLD Place CIC U65,Adult Domiciliary Care - Live in Care,Third Party Payments,REVENUE
http://statistics.data.gov.uk/id/local-authority/00HY,Wiltshire Council,28/07/2014,5106533563,414.35,Abicare Services Ltd Live in Care. ,113071,SP2 ,Community Services,CTPLD Place CIC U65,Adult Domiciliary Care - Spot Contribution,Income,REVENUE
http://statistics.data.gov.uk/id/local-authority/00HY,Wiltshire Council,29/07/2014,5106534003,734.23,Abicare Services Ltd Live in Care. ,113071,SP2 ,Community Services,West Locality OP,Adult Domiciliary Care - Live in Care,Third Party Payments,REVENUE
http://statistics.data.gov.uk/id/local-authority/00HY,Wiltshire Council,29/07/2014,5106534004,713.30,Abicare Services Ltd Live in Care. ,113071,SP2 ,Community Services,South Locality OP,Adult Domiciliary Care - Live in Care,Third Party Payments,REVENUE
http://statistics.data.gov.uk/id/local-authority/00HY,Wiltshire Council,31/07/2014,5106540245,723.38,Abicare Services Ltd Live in Care. ,113071,SP2 ,Community Services,CTPLD Place CIC U65,Adult Domiciliary Care - Live in Care,Third Party Payments,REVENUE
http://statistics.data.gov.uk/id/local-authority/00HY,Wiltshire Council,02/07/2014,5106520043,4110.00,Ability Associates Ltd ,110033,SP3 ,Community Services,CTPLD Place CIC U65,Supported Living - Without SP payments,Third Party Payments,REVENUE
http://statistics.data.gov.uk/id/local-authority/00HY,Wiltshire Council,02/07/2014,5106520045,2585.00,Ability Associates Ltd ,110033,SP3 ,Community Services,CTPLD Place CIC U65,Supported Living - Without SP payments,Third Party Payments,REVENUE
http://statistics.data.gov.uk/id/local-authority/00HY,Wiltshire Council,02/07/2014,5106521324,5555.48,Ability Associates Ltd ,110033,SP3 ,Community Services,CTPLD Place CIC U65,Adult Residential Placements - Spot Purchase,Third Party Payments,REVENUE
http://statistics.data.gov.uk/id/local-authority/00HY,Wiltshire Council,02/07/2014,5106522011,6254.92,Ability Associates Ltd ,110033,SP3 ,Community Services,CTPLD Place CIC U65,Adult Residential Placements - Spot Purchase,Third Party Payments,REVENUE
http://statistics.data.gov.uk/id/local-authority/00HY,Wiltshire Council,02/07/2014,5106522109,6446.80,Ability Associates Ltd ,110033,SP3 ,Community Services,CTPLD Place CIC U65,Adult Residential Placements - Spot Purchase,Third Party Payments,REVENUE
http://statistics.data.gov.uk/id/local-authority/00HY,Wiltshire Council,30/07/2014,5106533758,4110.00,Ability Associates Ltd ,110033,SP3 ,Community Services,CTPLD Place CIC U65,Supported Living - Without SP payments,Third Party Payments,REVENUE
http://statistics.data.gov.uk/id/local-authority/00HY,Wiltshire Council,30/07/2014,5106533760,2585.00,Ability Associates Ltd ,110033,SP3 ,Community Services,CTPLD Place CIC U65,Supported Living - Without SP payments,Third Party Payments,REVENUE
http://statistics.data.gov.uk/id/local-authority/00HY,Wiltshire Council,30/07/2014,5106535992,5555.48,Ability Associates Ltd ,110033,SP3 ,Community Services,CTPLD Place CIC U65,Adult Residential Placements - Spot Purchase,Third Party Payments,REVENUE
http://statistics.data.gov.uk/id/local-authority/00HY,Wiltshire Council,30/07/2014,5106536652,6254.92,Ability Associates Ltd ,110033,SP3 ,Community Services,CTPLD Place CIC U65,Adult Residential Placements - Spot Purchase,Third Party Payments,REVENUE
http://statistics.data.gov.uk/id/local-authority/00HY,Wiltshire Council,30/07/2014,5106536744,6446.80,Ability Associates Ltd ,110033,SP3 ,Community Services,CTPLD Place CIC U65,Adult Residential Placements - Spot Purchase,Third Party Payments,REVENUE
http://statistics.data.gov.uk/id/local-authority/00HY,Wiltshire Council,03.07.2014,1901302758,2022.44,ABLE ,101029,BA14,Community Services,MH Commissioned Cont,Payments to Contractors - Other,Third Party Payments,REVENUE
http://statistics.data.gov.uk/id/local-authority/00HY,Wiltshire Council,03.07.2014,1901302765,1227.40,ABLE ,101029,BA14,Community Services,MH Commissioned Cont,Payments to Contractors - Other,Third Party Payments,REVENUE
http://statistics.data.gov.uk/id/local-authority/00HY,Wiltshire Council,02/07/2014,5106519941,425.32,ABLE ,101029,BA14,Community Services,MH AOWA North Locali,Supported Living - Without SP payments,Third Party Payments,REVENUE
http://statistics.data.gov.uk/id/local-authority/00HY,Wiltshire Council,02/07/2014,5106519942,1257.68,ABLE ,101029,BA14,Community Services,MH AOWA North Locali,Supported Living - Without SP payments,Third Party Payments,REVENUE
http://statistics.data.gov.uk/id/local-authority/00HY,Wiltshire Council,02/07/2014,5106519945,425.40,ABLE ,101029,BA14,Community Services,MH AOWA North Locali,Supported Living - Without SP payments,Third Party Payments,REVENUE
http://statistics.data.gov.uk/id/local-authority/00HY,Wiltshire Council,02/07/2014,5106524836,3000.00,ABLE ,101029,BA14,Community Services,MH AOWA North Locali,Adult Residential Placements - Spot Purchase,Third Party Payments,REVENUE
http://statistics.data.gov.uk/id/local-authority/00HY,Wiltshire Council,30/07/2014,5106533671,425.32,ABLE ,101029,BA14,Community Services,MH AOWA North Locali,Supported Living - Without SP payments,Third Party Payments,REVENUE
http://statistics.data.gov.uk/id/local-authority/00HY,Wiltshire Council,30/07/2014,5106533672,1257.68,ABLE ,101029,BA14,Community Services,MH AOWA North Locali,Supported Living - Without SP payments,Third Party Payments,REVENUE
http://statistics.data.gov.uk/id/local-authority/00HY,Wiltshire Council,30/07/2014,5106533675,425.40,ABLE ,101029,BA14,Community Services,MH AOWA North Locali,Supported Living - Without SP payments,Third Party Payments,REVENUE
http://statistics.data.gov.uk/id/local-authority/00HY,Wiltshire Council,30/07/2014,5106539244,3000.00,ABLE ,101029,BA14,Community Services,MH AOWA North Locali,Adult Residential Placements - Spot Purchase,Third Party Payments,REVENUE
http://statistics.data.gov.uk/id/local-authority/00HY,Wiltshire Council,02/07/2014,5106520741,2872.56,ABLE ,110034,BA14,Community Services,MH AOWA North Locali,Adult Residential Placements - Spot Purchase,Third Party Payments,REVENUE
http://statistics.data.gov.uk/id/local-authority/00HY,Wiltshire Council,02/07/2014,5106520771,2344.24,ABLE ,110034,BA14,Community Services,MH AOWA North Locali,Adult Residential Placements - Spot Purchase,Third Party Payments,REVENUE
http://statistics.data.gov.uk/id/local-authority/00HY,Wiltshire Council,02/07/2014,5106520773,2527.04,ABLE ,110034,BA14,Community Services,MH OP North Locality,Adult Residential Placements - Spot Purchase,Third Party Payments,REVENUE
http://statistics.data.gov.uk/id/local-authority/00HY,Wiltshire Council,02/07/2014,5106520775,2797.60,ABLE ,110034,BA14,Community Services,MH AOWA North Locali,Adult Residential Placements - Spot Purchase,Third Party Payments,REVENUE
http://statistics.data.gov.uk/id/local-authority/00HY,Wiltshire Council,02/07/2014,5106520778,2506.68,ABLE ,110034,BA14,Community Services,MH AOWA North Locali,Adult Residential Placements - Spot Purchase,Third Party Payments,REVENUE
http://statistics.data.gov.uk/id/local-authority/00HY,Wiltshire Council,02/07/2014,5106522142,2772.20,ABLE ,110034,BA14,Community Services,MH AOWA North Locali,Adult Residential Placements - Spot Purchase,Third Party Payments,REVENUE
http://statistics.data.gov.uk/id/local-authority/00HY,Wiltshire Council,02/07/2014,5106523548,4000.00,ABLE ,110034,BA14,Community Services,MH AOWA North Locali,Adult Residential Placements - Spot Purchase,Third Party Payments,REVENUE
http://statistics.data.gov.uk/id/local-authority/00HY,Wiltshire Council,30/07/2014,5106535469,2872.56,ABLE ,110034,BA14,Community Services,MH AOWA North Locali,Adult Residential Placements - Spot Purchase,Third Party Payments,REVENUE
http://statistics.data.gov.uk/id/local-authority/00HY,Wiltshire Council,30/07/2014,5106535499,2527.04,ABLE ,110034,BA14,Community Services,MH OP North Locality,Adult Residential Placements - Spot Purchase,Third Party Payments,REVENUE
http://statistics.data.gov.uk/id/local-authority/00HY,Wiltshire Council,30/07/2014,5106535501,2797.60,ABLE ,110034,BA14,Community Services,MH AOWA North Locali,Adult Residential Placements - Spot Purchase,Third Party Payments,REVENUE
http://statistics.data.gov.uk/id/local-authority/00HY,Wiltshire Council,30/07/2014,5106535504,2506.68,ABLE ,110034,BA14,Community Services,MH AOWA North Locali,Adult Residential Placements - Spot Purchase,Third Party Payments,REVENUE
http://statistics.data.gov.uk/id/local-authority/00HY,Wiltshire Council,30/07/2014,5106536774,2772.20,ABLE ,110034,BA14,Community Services,MH AOWA North Locali,Adult Residential Placements - Spot Purchase,Third Party Payments,REVENUE
http://statistics.data.gov.uk/id/local-authority/00HY,Wiltshire Council,30/07/2014,5106537213,4000.00,ABLE ,110034,BA14,Community Services,MH AOWA North Locali,Adult Residential Placements - Spot Purchase,Third Party Payments,REVENUE
http://statistics.data.gov.uk/id/local-authority/00HY,Wiltshire Council,09/07/2014,5106528281,1840.14,Abritas Ltd ,110036,RG1 ,Resources,Applications SuppLOB,Hardware Purchases IT,Supplies and Services,REVENUE
http://statistics.data.gov.uk/id/local-authority/00HY,Wiltshire Council,09/07/2014,5106528282,22854.70,Abritas Ltd ,110036,RG1 ,Resources,Applications SuppLOB,Hardware Purchases IT,Supplies and Services,REVENUE
http://statistics.data.gov.uk/id/local-authority/00HY,Wiltshire Council,30/07/2014,5106534867,1894.14,Abritas Ltd ,110036,RG1 ,Resources,Applications SuppLOB,ICT - Support arrangements,Supplies and Services,REVENUE
http://statistics.data.gov.uk/id/local-authority/00HY,Wiltshire Council,30/07/2014,5106534868,1675.00,Abritas Ltd ,110036,RG1 ,Resources,Applications SuppLOB,ICT - Support arrangements,Supplies and Services,REVENUE
http://statistics.data.gov.uk/id/local-authority/00HY,Wiltshire Council,03.07.2014,1901294560,350.00,AC  and  MS Ltd ,101175,SS8 ,Wiltshire Council,Wiltshire Council,Buildings Minor Alterations,Premises Related,CAPITAL
http://statistics.data.gov.uk/id/local-authority/00HY,Wiltshire Council,15.07.2014,1901299923,2498.45,AC  and  MS Ltd ,101175,SS8 ,Resources,FM � Service Contrac,Preventative Property Maintenance,Premises Related,REVENUE
http://statistics.data.gov.uk/id/local-authority/00HY,Wiltshire Council,10.07.2014,1901299924,2476.50,AC  and  MS Ltd ,101175,SS8 ,Resources,FM � Service Contrac,Preventative Property Maintenance,Premises Related,REVENUE
http://statistics.data.gov.uk/id/local-authority/00HY,Wiltshire Council,10.07.2014,1901299933,815.00,AC  and  MS Ltd ,101175,SS8 ,Wiltshire Council,Wiltshire Council,Buildings Minor Alterations,Premises Related,CAPITAL
http://statistics.data.gov.uk/id/local-authority/00HY,Wiltshire Council,31.07.2014,1901312130,250.00,AC  and  MS Ltd ,101175,SS8 ,Resources,Campus,Preventative Property Maintenance,Premises Related,REVENUE
http://statistics.data.gov.uk/id/local-authority/00HY,Wiltshire Council,31.07.2014,1901312131,33115.20,AC  and  MS Ltd ,101175,SS8 ,Wiltshire Council,Wiltshire Council,Buildings Minor Alterations,Premises Related,CAPITAL
http://statistics.data.gov.uk/id/local-authority/00HY,Wiltshire Council,18.07.2014,1901316340,6308.25,AC  and  MS Ltd ,101175,SS8 ,Resources,FM � Service Contrac,Preventative Property Maintenance,Premises Related,REVENUE
http://statistics.data.gov.uk/id/local-authority/00HY,Wiltshire Council,03/07/2014,5106513660,570.00,AC  and  MS Ltd ,101175,SS8 ,Wiltshire Council,Wiltshire Council,Premises Related Other Maintenance Costs,Premises Related,CAPITAL
http://statistics.data.gov.uk/id/local-authority/00HY,Wiltshire Council,04/07/2014,5106516045,2550.00,AC  and  MS Ltd ,101175,SS8 ,Wiltshire Council,Wiltshire Council,Premises Related Other Maintenance Costs,Premises Related,CAPITAL
http://statistics.data.gov.uk/id/local-authority/00HY,Wiltshire Council,04/07/2014,5106516046,6890.00,AC  and  MS Ltd ,101175,SS8 ,Wiltshire Council,Wiltshire Council,Premises Related Other Maintenance Costs,Premises Related,CAPITAL
http://statistics.data.gov.uk/id/local-authority/00HY,Wiltshire Council,09/07/2014,5106519467,825.00,AC  and  MS Ltd ,101175,SS8 ,Wiltshire Council,Wiltshire Council,Premises Related Other Maintenance Costs,Premises Related,CAPITAL
http://statistics.data.gov.uk/id/local-authority/00HY,Wiltshire Council,09/07/2014,5106519468,1180.00,AC  and  MS Ltd ,101175,SS8 ,Wiltshire Council,Wiltshire Council,Premises Related Other Maintenance Costs,Premises Related,CAPITAL
http://statistics.data.gov.uk/id/local-authority/00HY,Wiltshire Council,01/07/2014,5106520425,2549.63,AC  and  MS Ltd ,101175,SS8 ,Wiltshire Council,Wiltshire Council,Buildings Minor Alterations,Premises Related,CAPITAL
http://statistics.data.gov.uk/id/local-authority/00HY,Wiltshire Council,15/07/2014,5106528781,340.00,AC  and  MS Ltd ,101175,SS8 ,Wiltshire Council,Wiltshire Council,Premises Related Other Maintenance Costs,Premises Related,CAPITAL
http://statistics.data.gov.uk/id/local-authority/00HY,Wiltshire Council,31/07/2014,5106529033,625.00,AC  and  MS Ltd ,101175,SS8 ,Wiltshire Council,Wiltshire Council,Premises Related Other Maintenance Costs,Premises Related,CAPITAL
http://statistics.data.gov.uk/id/local-authority/00HY,Wiltshire Council,31/07/2014,5106529035,1370.00,AC  and  MS Ltd ,101175,SS8 ,Wiltshire Council,Wiltshire Council,Premises Related Other Maintenance Costs,Premises Related,CAPITAL
http://statistics.data.gov.uk/id/local-authority/00HY,Wiltshire Council,15/07/2014,5106529145,1430.00,AC  and  MS Ltd ,101175,SS8 ,Wiltshire Council,Wiltshire Council,Premises Related Other Maintenance Costs,Premises Related,CAPITAL
http://statistics.data.gov.uk/id/local-authority/00HY,Wiltshire Council,31/07/2014,5106533247,915.00,AC  and  MS Ltd ,101175,SS8 ,Wiltshire Council,Wiltshire Council,Premises Related Other Maintenance Costs,Premises Related,CAPITAL
http://statistics.data.gov.uk/id/local-authority/00HY,Wiltshire Council,11/07/2014,5106528844,2528.56,Access Care Ltd ,110037,SP10,Community Services,South Locality OP,Adult Domiciliary care - Live in contribution,Income,REVENUE
http://statistics.data.gov.uk/id/local-authority/00HY,Wiltshire Council,21/07/2014,5106530791,2629.52,Access Care Ltd ,110037,SP10,Community Services,OVA East Locality,Adult Domiciliary care - Live in contribution,Income,REVENUE
http://statistics.data.gov.uk/id/local-authority/00HY,Wiltshire Council,21/07/2014,5106530801,3523.76,Access Care Ltd ,110037,SP10,Community Services,South Locality OP,Adult Domiciliary care - Live in contribution,Income,REVENUE
http://statistics.data.gov.uk/id/local-authority/00HY,Wiltshire Council,21/07/2014,5106530802,2528.56,Access Care Ltd ,110037,SP10,Community Services,South Locality OP,Adult Domiciliary care - Live in contribution,Income,REVENUE
http://statistics.data.gov.uk/id/local-authority/00HY,Wiltshire Council,10/07/2014,5106518875,1600.00,Acer Tree Surgeons Ltd ,113296,BA13,Neighbourhood & Planning,Woodland & Tree Mtc,Grounds Maintenance,Premises Related,REVENUE
http://statistics.data.gov.uk/id/local-authority/00HY,Wiltshire Council,23/07/2014,5106529391,600.00,Acer Tree Surgeons Ltd ,113296,BA13,Neighbourhood & Planning,Woodland & Tree Mtc,Grounds Maintenance,Premises Related,REVENUE
http://statistics.data.gov.uk/id/local-authority/00HY,Wiltshire Council,23/07/2014,5106529392,250.00,Acer Tree Surgeons Ltd ,113296,BA13,Neighbourhood & Planning,Woodland & Tree Mtc,Grounds Maintenance,Premises Related,REVENUE
http://statistics.data.gov.uk/id/local-authority/00HY,Wiltshire Council,23/07/2014,5106529394,830.00,Acer Tree Surgeons Ltd ,113296,BA13,Neighbourhood & Planning,Woodland & Tree Mtc,Grounds Maintenance,Premises Related,REVENUE
http://statistics.data.gov.uk/id/local-authority/00HY,Wiltshire Council,01/07/2014,5106520461,200000.00,Action For Children ,110045,WD18,Children & Education,Family&Parenting Sup,Other Social & Welfare Costs,Third Party Payments,REVENUE
http://statistics.data.gov.uk/id/local-authority/00HY,Wiltshire Council,10/07/2014,5106528361,16392.00,Action for Children ,127353,SP2 ,Children & Education,Family&Parenting Sup,Other Social & Welfare Costs,Third Party Payments,REVENUE
http://statistics.data.gov.uk/id/local-authority/00HY,Wiltshire Council,03.07.2014,1901302624,3150.00,Action for Market Towns ,129750,IP33,Neighbourhood & Planning,EconomicDevelopment,Marketing and Promotions,Supplies and Services,REVENUE
http://statistics.data.gov.uk/id/local-authority/00HY,Wiltshire Council,04/07/2014,5106525990,2993.00,Action on Addiction ,110046,SP3 ,Community Services,(9)ResPlacementsPCT,Adult Residential Placements - Substance Misuse,Third Party Payments,REVENUE
http://statistics.data.gov.uk/id/local-authority/00HY,Wiltshire Council,04/07/2014,5106525990,2993.00,Action on Addiction ,110046,SP3 ,Community Services,(9)ResPlacementsCIC,Adult Residential Placements - Substance Misuse,Third Party Payments,REVENUE
http://statistics.data.gov.uk/id/local-authority/00HY,Wiltshire Council,04/07/2014,5106525994,1735.07,Action on Addiction ,110046,SP3 ,Community Services,(9)ResPlacementsPCT,Adult Residential Placements - Substance Misuse,Third Party Payments,REVENUE
http://statistics.data.gov.uk/id/local-authority/00HY,Wiltshire Council,04/07/2014,5106525994,1735.38,Action on Addiction ,110046,SP3 ,Community Services,(9)ResPlacementsCIC,Adult Residential Placements - Substance Misuse,Third Party Payments,REVENUE
http://statistics.data.gov.uk/id/local-authority/00HY,Wiltshire Council,04/07/2014,5106525995,1679.10,Action on Addiction ,110046,SP3 ,Community Services,(9)ResPlacementsPCT,Adult Residential Placements - Substance Misuse,Third Party Payments,REVENUE
http://statistics.data.gov.uk/id/local-authority/00HY,Wiltshire Council,04/07/2014,5106525995,1679.40,Action on Addiction ,110046,SP3 ,Community Services,(9)ResPlacementsCIC,Adult Residential Placements - Substance Misuse,Third Party Payments,REVENUE
http://statistics.data.gov.uk/id/local-authority/00HY,Wiltshire Council,04/07/2014,5106525996,1567.28,Action on Addiction ,110046,SP3 ,Community Services,(9)ResPlacementsPCT,Adult Residential Placements - Substance Misuse,Third Party Payments,REVENUE
http://statistics.data.gov.uk/id/local-authority/00HY,Wiltshire Council,04/07/2014,5106525996,1567.32,Action on Addiction ,110046,SP3 ,Community Services,(9)ResPlacementsCIC,Adult Residential Placements - Substance Misuse,Third Party Payments,REVENUE
http://statistics.data.gov.uk/id/local-authority/00HY,Wiltshire Council,04/07/2014,5106525997,286.25,Action on Addiction ,110046,SP3 ,Community Services,(9)ResPlacementsPCT,Adult Residential Placements - Substance Misuse,Third Party Payments,REVENUE
http://statistics.data.gov.uk/id/local-authority/00HY,Wiltshire Council,11/07/2014,5106528943,276.00,Action on Addiction ,110046,SP3 ,Community Services,(9)ResPlacementsPCT,Adult Residential Placements - Substance Misuse,Third Party Payments,REVENUE
http://statistics.data.gov.uk/id/local-authority/00HY,Wiltshire Council,11/07/2014,5106528944,1439.70,Action on Addiction ,110046,SP3 ,Community Services,(9)ResPlacementsCIC,Adult Residential Place - Substance Misuse Cont,Income,REVENUE
http://statistics.data.gov.uk/id/local-authority/00HY,Wiltshire Council,11/07/2014,5106528944,1620.00,Action on Addiction ,110046,SP3 ,Community Services,(9)ResPlacementsPCT,Adult Residential Placements - Substance Misuse,Third Party Payments,REVENUE
http://statistics.data.gov.uk/id/local-authority/00HY,Wiltshire Council,17/07/2014,5106530417,2932.92,Action on Addiction ,110046,SP3 ,Community Services,(9)ResPlacementsPCT,Adult Residential Placements - Substance Misuse,Third Party Payments,REVENUE
http://statistics.data.gov.uk/id/local-authority/00HY,Wiltshire Council,17/07/2014,5106530417,2932.98,Action on Addiction ,110046,SP3 ,Community Services,(9)ResPlacementsCIC,Adult Residential Placements - Substance Misuse,Third Party Payments,REVENUE
http://statistics.data.gov.uk/id/local-authority/00HY,Wiltshire Council,17/07/2014,5106530418,3066.00,Action on Addiction ,110046,SP3 ,Community Services,(9)ResPlacementsPCT,Adult Residential Placements - Substance Misuse,Third Party Payments,REVENUE
http://statistics.data.gov.uk/id/local-authority/00HY,Wiltshire Council,17/07/2014,5106530418,3066.00,Action on Addiction ,110046,SP3 ,Community Services,(9)ResPlacementsCIC,Adult Residential Placements - Substance Misuse,Third Party Payments,REVENUE
http://statistics.data.gov.uk/id/local-authority/00HY,Wiltshire Council,17/07/2014,5106530421,2992.97,Action on Addiction ,110046,SP3 ,Community Services,(9)ResPlacementsPCT,Adult Residential Placements - Substance Misuse,Third Party Payments,REVENUE
http://statistics.data.gov.uk/id/local-authority/00HY,Wiltshire Council,17/07/2014,5106530421,2993.03,Action on Addiction ,110046,SP3 ,Community Services,(9)ResPlacementsCIC,Adult Residential Placements - Substance Misuse,Third Party Payments,REVENUE
http://statistics.data.gov.uk/id/local-authority/00HY,Wiltshire Council,28/07/2014,5106528945,3358.50,Action on Addiction ,125931,SW4 ,Community Services,(9)ResPlacementsCIC,Adult Residential Placements - Substance Misuse,Third Party Payments,REVENUE
http://statistics.data.gov.uk/id/local-authority/00HY,Wiltshire Council,02/07/2014,5106520101,4170.20,Action on Hearing Loss ,112215,EC1Y,Community Services,OVA South Locality,Supported Living - Without SP payments,Third Party Payments,REVENUE
http://statistics.data.gov.uk/id/local-authority/00HY,Wiltshire Council,02/07/2014,5106521046,5421.84,Action on Hearing Loss ,112215,EC1Y,Community Services,North Locality OP,Adult Residential Placements - Spot Purchase,Third Party Payments,REVENUE
http://statistics.data.gov.uk/id/local-authority/00HY,Wiltshire Council,02/07/2014,5106522036,6270.44,Action on Hearing Loss ,112215,EC1Y,Community Services,South Locality OP,Adult Residential Placements - Spot Purchase,Third Party Payments,REVENUE
http://statistics.data.gov.uk/id/local-authority/00HY,Wiltshire Council,02/07/2014,5106522601,8880.84,Action on Hearing Loss ,112215,EC1Y,Community Services,North Locality OP,Adult Care Nursing Placements- Spot Purchase,Third Party Payments,REVENUE
http://statistics.data.gov.uk/id/local-authority/00HY,Wiltshire Council,02/07/2014,5106522761,1573.78,Action on Hearing Loss ,112215,EC1Y,Community Services,OVA North Locality,Adult Day Care - Spot,Third Party Payments,REVENUE
http://statistics.data.gov.uk/id/local-authority/00HY,Wiltshire Council,03/07/2014,5106525933,675.00,Action on Hearing Loss ,112215,EC1Y,Community Services,Disabilities Comm Ct,Grants Paid to individuals for Tangible Benefits,Supplies and Services,REVENUE
http://statistics.data.gov.uk/id/local-authority/00HY,Wiltshire Council,03/07/2014,5106525934,540.00,Action on Hearing Loss ,112215,EC1Y,Community Services,Disabilities Comm Ct,Grants Paid to individuals for Tangible Benefits,Supplies and Services,REVENUE
http://statistics.data.gov.uk/id/local-authority/00HY,Wiltshire Council,10/07/2014,5106528521,3800.00,Action on Hearing Loss ,112215,EC1Y,Community Services,OVA North Locality,Adult Residential Placements - Spot Purchase,Third Party Payments,REVENUE
http://statistics.data.gov.uk/id/local-authority/00HY,Wiltshire Council,10/07/2014,5106528523,3800.00,Action on Hearing Loss ,112215,EC1Y,Community Services,OVA North Locality,Adult Residential Placements - Spot Purchase,Third Party Payments,REVENUE
http://statistics.data.gov.uk/id/local-authority/00HY,Wiltshire Council,10/07/2014,5106528525,3800.00,Action on Hearing Loss ,112215,EC1Y,Community Services,OVA North Locality,Adult Residential Placements - Spot Purchase,Third Party Payments,REVENUE
http://statistics.data.gov.uk/id/local-authority/00HY,Wiltshire Council,10/07/2014,5106528527,3800.00,Action on Hearing Loss ,112215,EC1Y,Community Services,OVA North Locality,Adult Residential Placements - Spot Purchase,Third Party Payments,REVENUE
http://statistics.data.gov.uk/id/local-authority/00HY,Wiltshire Council,14/07/2014,5106529195,1607.68,Action on Hearing Loss ,112215,EC1Y,Community Services,OVA North Locality,Adult Domiciliary Care - Spot,Third Party Payments,REVENUE
http://statistics.data.gov.uk/id/local-authority/00HY,Wiltshire Council,15/07/2014,5106529508,1165.96,Action on Hearing Loss ,112215,EC1Y,Community Services,MH - OSJ Combe End C,Adult Domiciliary Care - Spot,Third Party Payments,REVENUE
http://statistics.data.gov.uk/id/local-authority/00HY,Wiltshire Council,16/07/2014,5106529620,690.00,Action on Hearing Loss ,112215,EC1Y,Community Services,OVA North Locality,Adult Domiciliary Care - Spot,Third Party Payments,REVENUE
http://statistics.data.gov.uk/id/local-authority/00HY,Wiltshire Council,22/07/2014,5106531016,1607.68,Action on Hearing Loss ,112215,EC1Y,Community Services,OVA North Locality,Adult Domiciliary Care - Spot,Third Party Payments,REVENUE
http://statistics.data.gov.uk/id/local-authority/00HY,Wiltshire Council,24/07/2014,5106532988,1277.60,Action on Hearing Loss ,112215,EC1Y,Community Services,OVA North Locality,Adult Residential Placements - Spot Purchase,Third Party Payments,REVENUE
http://statistics.data.gov.uk/id/local-authority/00HY,Wiltshire Council,30/07/2014,5106533818,4170.20,Action on Hearing Loss ,112215,EC1Y,Community Services,OVA South Locality,Supported Living - Without SP payments,Third Party Payments,REVENUE
http://statistics.data.gov.uk/id/local-authority/00HY,Wiltshire Council,28/07/2014,5106533925,945.00,Action on Hearing Loss ,112215,EC1Y,Community Services,CTPLD Place CIC U65,Grants Paid to individuals for Tangible Benefits,Supplies and Services,REVENUE
http://statistics.data.gov.uk/id/local-authority/00HY,Wiltshire Council,30/07/2014,5106535748,5421.84,Action on Hearing Loss ,112215,EC1Y,Community Services,North Locality OP,Adult Residential Placements - Spot Purchase,Third Party Payments,REVENUE
http://statistics.data.gov.uk/id/local-authority/00HY,Wiltshire Council,30/07/2014,5106536675,6270.44,Action on Hearing Loss ,112215,EC1Y,Community Services,South Locality OP,Adult Residential Placements - Spot Purchase,Third Party Payments,REVENUE
http://statistics.data.gov.uk/id/local-authority/00HY,Wiltshire Council,30/07/2014,5106537298,8880.84,Action on Hearing Loss ,112215,EC1Y,Community Services,North Locality OP,Adult Care Nursing Placements- Spot Purchase,Third Party Payments,REVENUE
http://statistics.data.gov.uk/id/local-authority/00HY,Wiltshire Council,30/07/2014,5106539583,3800.00,Action on Hearing Loss ,112215,EC1Y,Community Services,OVA North Locality,Adult Residential Placements - Spot Purchase,Third Party Payments,REVENUE
http://statistics.data.gov.uk/id/local-authority/00HY,Wiltshire Council,03/07/2014,5106525284,800.00,Active Tree Care ,139904,SP5 ,Neighbourhood & Planning,Woodland & Tree Mtc,Grounds Maintenance,Premises Related,REVENUE
http://statistics.data.gov.uk/id/local-authority/00HY,Wiltshire Council,08/07/2014,5106519357,306.41,Adams Morey Ltd ,110053,SP2 ,Neighbourhood & Planning,Fleet Operations,Vehicle Parts,Transport Related,REVENUE
http://statistics.data.gov.uk/id/local-authority/00HY,Wiltshire Council,17/07/2014,5106526025,265.00,Adams Morey Ltd ,110053,SP2 ,Neighbourhood & Planning,Fleet Operations,Vehicle Fuel,Transport Related,REVENUE
http://statistics.data.gov.uk/id/local-authority/00HY,Wiltshire Council,16/07/2014,5106529678,439.31,Adams Morey Ltd ,110053,SP2 ,Neighbourhood & Planning,Fleet Operations,Vehicle Parts,Transport Related,REVENUE
http://statistics.data.gov.uk/id/local-authority/00HY,Wiltshire Council,25/07/2014,5106529680,754.13,Adams Morey Ltd ,110053,SP2 ,Neighbourhood & Planning,Fleet Operations,Vehicle Parts,Transport Related,REVENUE
http://statistics.data.gov.uk/id/local-authority/00HY,Wiltshire Council,08/07/2014,5106517424,450.00,ADASS ,110054,CH7 ,Resources,Corporate Directors,Conference Fees,Supplies and Services,REVENUE
http://statistics.data.gov.uk/id/local-authority/00HY,Wiltshire Council,08/07/2014,5106525958,450.00,ADASS ,110054,CH7 ,Resources,HR Councillor Develo,Staff Training Course Costs,Employee Related,REVENUE
http://statistics.data.gov.uk/id/local-authority/00HY,Wiltshire Council,18/07/2014,5106530610,1661.00,ADASS ,110054,CH7 ,Resources,Corporate Directors,Professional Subscriptions/Memberships,Employee Related,REVENUE
http://statistics.data.gov.uk/id/local-authority/00HY,Wiltshire Council,18/07/2014,5106530611,450.00,ADASS ,110054,CH7 ,Resources,Corporate Directors,Conference Fees,Supplies and Services,REVENUE
http://statistics.data.gov.uk/id/local-authority/00HY,Wiltshire Council,18/07/2014,5106530612,450.00,ADASS ,110054,CH7 ,Community Services,Strategy & Comm,Conference Fees,Supplies and Services,REVENUE
http://statistics.data.gov.uk/id/local-authority/00HY,Wiltshire Council,02.07.2014,1901300435,1302.64,Adiemus Care Limited - Ravenscroft ,132154,HA1 ,Community Services,BCF-Protectng Soc Cr,Grants Paid to individuals for Tangible Benefits,Supplies and Services,REVENUE
http://statistics.data.gov.uk/id/local-authority/00HY,Wiltshire Council,10.07.2014,1901312695,2540.00,Adiemus Care Limited - Ravenscroft ,132154,HA1 ,Community Services,BCF-Intermediate Cr,Adult Nursing Placements - transitional beds,Third Party Payments,REVENUE
http://statistics.data.gov.uk/id/local-authority/00HY,Wiltshire Council,10.07.2014,1901312696,362.86,Adiemus Care Limited - Ravenscroft ,132154,HA1 ,Community Services,BCF-Intermediate Cr,Adult Nursing Placements - transitional beds,Third Party Payments,REVENUE
http://statistics.data.gov.uk/id/local-authority/00HY,Wiltshire Council,10.07.2014,1901312697,725.71,Adiemus Care Limited - Ravenscroft ,132154,HA1 ,Community Services,BCF-Intermediate Cr,Adult Nursing Placements - transitional beds,Third Party Payments,REVENUE
http://statistics.data.gov.uk/id/local-authority/00HY,Wiltshire Council,10.07.2014,1901312699,2540.00,Adiemus Care Limited - Ravenscroft ,132154,HA1 ,Community Services,BCF-Intermediate Cr,Adult Nursing Placements - transitional beds,Third Party Payments,REVENUE
http://statistics.data.gov.uk/id/local-authority/00HY,Wiltshire Council,02/07/2014,5106521302,2060.84,Adiemus Care Limited - Ravenscroft ,132154,HA1 ,Community Services,West Locality OP,Adult Care Nursing Placements- Spot Purchase,Third Party Payments,REVENUE
http://statistics.data.gov.uk/id/local-authority/00HY,Wiltshire Council,02/07/2014,5106521303,443.56,Adiemus Care Limited - Ravenscroft ,132154,HA1 ,Community Services,OP West FNC,Adult Care Funded Nursing Care - Loal Auth Clients,Third Party Payments,REVENUE
http://statistics.data.gov.uk/id/local-authority/00HY,Wiltshire Council,02/07/2014,5106521338,2046.08,Adiemus Care Limited - Ravenscroft ,132154,HA1 ,Community Services,West Locality OP,Adult Care Nursing Placements- Spot Purchase,Third Party Payments,REVENUE
http://statistics.data.gov.uk/id/local-authority/00HY,Wiltshire Council,02/07/2014,5106521339,443.56,Adiemus Care Limited - Ravenscroft ,132154,HA1 ,Community Services,OP West FNC,Adult Care Funded Nursing Care - Loal Auth Clients,Third Party Payments,REVENUE
http://statistics.data.gov.uk/id/local-authority/00HY,Wiltshire Council,02/07/2014,5106521357,2056.36,Adiemus Care Limited - Ravenscroft ,132154,HA1 ,Community Services,West Locality OP,Adult Residential Placements - Spot Purchase,Third Party Payments,REVENUE
http://statistics.data.gov.uk/id/local-authority/00HY,Wiltshire Council,02/07/2014,5106521389,1931.52,Adiemus Care Limited - Ravenscroft ,132154,HA1 ,Community Services,West Locality OP,Adult Residential Placements - Spot Purchase,Third Party Payments,REVENUE
http://statistics.data.gov.uk/id/local-authority/00HY,Wiltshire Council,02/07/2014,5106521477,2060.84,Adiemus Care Limited - Ravenscroft ,132154,HA1 ,Community Services,West Locality OP,Adult Care Nursing Placements- Spot Purchase,Third Party Payments,REVENUE
http://statistics.data.gov.uk/id/local-authority/00HY,Wiltshire Council,02/07/2014,5106521478,443.56,Adiemus Care Limited - Ravenscroft ,132154,HA1 ,Community Services,OP West FNC,Adult Care Funded Nursing Care - Loal Auth Clients,Third Party Payments,REVENUE
http://statistics.data.gov.uk/id/local-authority/00HY,Wiltshire Council,02/07/2014,5106521617,2086.40,Adiemus Care Limited - Ravenscroft ,132154,HA1 ,Community Services,West Locality OP,Adult Care Nursing Placements- Spot Purchase,Third Party Payments,REVENUE
http://statistics.data.gov.uk/id/local-authority/00HY,Wiltshire Council,02/07/2014,5106521618,443.56,Adiemus Care Limited - Ravenscroft ,132154,HA1 ,Community Services,OP West FNC,Adult Care Funded Nursing Care - Loal Auth Clients,Third Party Payments,REVENUE
http://statistics.data.gov.uk/id/local-authority/00HY,Wiltshire Council,02/07/2014,5106521631,2060.84,Adiemus Care Limited - Ravenscroft ,132154,HA1 ,Community Services,West Locality OP,Adult Care Nursing Placements- Spot Purchase,Third Party Payments,REVENUE
http://statistics.data.gov.uk/id/local-authority/00HY,Wiltshire Council,02/07/2014,5106521632,443.56,Adiemus Care Limited - Ravenscroft ,132154,HA1 ,Community Services,OP West FNC,Adult Care Funded Nursing Care - Loal Auth Clients,Third Party Payments,REVENUE
http://statistics.data.gov.uk/id/local-authority/00HY,Wiltshire Council,02/07/2014,5106522299,2200.00,Adiemus Care Limited - Ravenscroft ,132154,HA1 ,Community Services,West Locality OP,Adult Residential Placements - Spot Purchase,Third Party Payments,REVENUE
http://statistics.data.gov.uk/id/local-authority/00HY,Wiltshire Council,02/07/2014,5106522307,2260.84,Adiemus Care Limited - Ravenscroft ,132154,HA1 ,Community Services,East Locality OP,Adult Care Nursing Placements- Spot Purchase,Third Party Payments,REVENUE
http://statistics.data.gov.uk/id/local-authority/00HY,Wiltshire Council,02/07/2014,5106522308,443.56,Adiemus Care Limited - Ravenscroft ,132154,HA1 ,Community Services,OP East FNC,Adult Care Funded Nursing Care - Loal Auth Clients,Third Party Payments,REVENUE
http://statistics.data.gov.uk/id/local-authority/00HY,Wiltshire Council,02/07/2014,5106522403,2060.84,Adiemus Care Limited - Ravenscroft ,132154,HA1 ,Community Services,West Locality OP,Adult Care Nursing Placements- Spot Purchase,Third Party Payments,REVENUE
http://statistics.data.gov.uk/id/local-authority/00HY,Wiltshire Council,02/07/2014,5106522404,443.56,Adiemus Care Limited - Ravenscroft ,132154,HA1 ,Community Services,OP West FNC,Adult Care Funded Nursing Care - Loal Auth Clients,Third Party Payments,REVENUE
http://statistics.data.gov.uk/id/local-authority/00HY,Wiltshire Council,02/07/2014,5106523699,2014.04,Adiemus Care Limited - Ravenscroft ,132154,HA1 ,Community Services,MH OP North Locality,Adult Residential Placements - Spot Purchase,Third Party Payments,REVENUE
http://statistics.data.gov.uk/id/local-authority/00HY,Wiltshire Council,02/07/2014,5106523815,2449.24,Adiemus Care Limited - Ravenscroft ,132154,HA1 ,Community Services,West Locality OP,Adult Residential Placements - Spot Purchase,Third Party Payments,REVENUE
http://statistics.data.gov.uk/id/local-authority/00HY,Wiltshire Council,02/07/2014,5106523822,2010.12,Adiemus Care Limited - Ravenscroft ,132154,HA1 ,Community Services,West Locality OP,Adult Care Nursing Placements- Spot Purchase,Third Party Payments,REVENUE
http://statistics.data.gov.uk/id/local-authority/00HY,Wiltshire Council,02/07/2014,5106523823,443.56,Adiemus Care Limited - Ravenscroft ,132154,HA1 ,Community Services,OP West FNC,Adult Care Funded Nursing Care - Loal Auth Clients,Third Party Payments,REVENUE
http://statistics.data.gov.uk/id/local-authority/00HY,Wiltshire Council,02/07/2014,5106523966,1505.80,Adiemus Care Limited - Ravenscroft ,132154,HA1 ,Community Services,West Locality OP,Adult Care Nursing Placements- Spot Purchase,Third Party Payments,REVENUE
http://statistics.data.gov.uk/id/local-authority/00HY,Wiltshire Council,02/07/2014,5106523967,443.56,Adiemus Care Limited - Ravenscroft ,132154,HA1 ,Community Services,OP West FNC,Adult Care Funded Nursing Care - Loal Auth Clients,Third Party Payments,REVENUE
http://statistics.data.gov.uk/id/local-authority/00HY,Wiltshire Council,02/07/2014,5106524591,357.16,Adiemus Care Limited - Ravenscroft ,132154,HA1 ,Community Services,West Locality OP,Adult Care Nursing Placements - 12 Week,Third Party Payments,REVENUE
http://statistics.data.gov.uk/id/local-authority/00HY,Wiltshire Council,02/07/2014,5106524649,2056.44,Adiemus Care Limited - Ravenscroft ,132154,HA1 ,Community Services,West Locality OP,Adult Care Nursing Placements- Spot Purchase,Third Party Payments,REVENUE
http://statistics.data.gov.uk/id/local-authority/00HY,Wiltshire Council,02/07/2014,5106524650,443.56,Adiemus Care Limited - Ravenscroft ,132154,HA1 ,Community Services,OP West FNC,Adult Care Funded Nursing Care - Loal Auth Clients,Third Party Payments,REVENUE
http://statistics.data.gov.uk/id/local-authority/00HY,Wiltshire Council,02/07/2014,5106525203,1848.48,Adiemus Care Limited - Ravenscroft ,132154,HA1 ,Community Services,Home Loans,Adult Care Loans,Capital charges and Expenditure,REVENUE
http://statistics.data.gov.uk/id/local-authority/00HY,Wiltshire Council,02/07/2014,5106525204,2156.44,Adiemus Care Limited - Ravenscroft ,132154,HA1 ,Community Services,Home Loans,Adult Care Loans,Capital charges and Expenditure,REVENUE
http://statistics.data.gov.uk/id/local-authority/00HY,Wiltshire Council,30/07/2014,5106535968,2060.84,Adiemus Care Limited - Ravenscroft ,132154,HA1 ,Community Services,West Locality OP,Adult Care Nursing Placements- Spot Purchase,Third Party Payments,REVENUE
http://statistics.data.gov.uk/id/local-authority/00HY,Wiltshire Council,30/07/2014,5106535969,443.56,Adiemus Care Limited - Ravenscroft ,132154,HA1 ,Community Services,OP West FNC,Adult Care Funded Nursing Care - Loal Auth Clients,Third Party Payments,REVENUE
http://statistics.data.gov.uk/id/local-authority/00HY,Wiltshire Council,30/07/2014,5106536002,2046.08,Adiemus Care Limited - Ravenscroft ,132154,HA1 ,Community Services,West Locality OP,Adult Care Nursing Placements- Spot Purchase,Third Party Payments,REVENUE
http://statistics.data.gov.uk/id/local-authority/00HY,Wiltshire Council,30/07/2014,5106536003,443.56,Adiemus Care Limited - Ravenscroft ,132154,HA1 ,Community Services,OP West FNC,Adult Care Funded Nursing Care - Loal Auth Clients,Third Party Payments,REVENUE
http://statistics.data.gov.uk/id/local-authority/00HY,Wiltshire Council,30/07/2014,5106536021,2056.36,Adiemus Care Limited - Ravenscroft ,132154,HA1 ,Community Services,West Locality OP,Adult Residential Placements - Spot Purchase,Third Party Payments,REVENUE
http://statistics.data.gov.uk/id/local-authority/00HY,Wiltshire Council,30/07/2014,5106536142,2060.84,Adiemus Care Limited - Ravenscroft ,132154,HA1 ,Community Services,West Locality OP,Adult Care Nursing Placements- Spot Purchase,Third Party Payments,REVENUE
http://statistics.data.gov.uk/id/local-authority/00HY,Wiltshire Council,30/07/2014,5106536143,443.56,Adiemus Care Limited - Ravenscroft ,132154,HA1 ,Community Services,OP West FNC,Adult Care Funded Nursing Care - Loal Auth Clients,Third Party Payments,REVENUE
http://statistics.data.gov.uk/id/local-authority/00HY,Wiltshire Council,30/07/2014,5106536275,2086.40,Adiemus Care Limited - Ravenscroft ,132154,HA1 ,Community Services,West Locality OP,Adult Care Nursing Placements- Spot Purchase,Third Party Payments,REVENUE
http://statistics.data.gov.uk/id/local-authority/00HY,Wiltshire Council,30/07/2014,5106536276,443.56,Adiemus Care Limited - Ravenscroft ,132154,HA1 ,Community Services,OP West FNC,Adult Care Funded Nursing Care - Loal Auth Clients,Third Party Payments,REVENUE
http://statistics.data.gov.uk/id/local-authority/00HY,Wiltshire Council,30/07/2014,5106536285,2060.84,Adiemus Care Limited - Ravenscroft ,132154,HA1 ,Community Services,West Locality OP,Adult Care Nursing Placements- Spot Purchase,Third Party Payments,REVENUE
http://statistics.data.gov.uk/id/local-authority/00HY,Wiltshire Council,30/07/2014,5106536286,443.56,Adiemus Care Limited - Ravenscroft ,132154,HA1 ,Community Services,OP West FNC,Adult Care Funded Nursing Care - Loal Auth Clients,Third Party Payments,REVENUE
http://statistics.data.gov.uk/id/local-authority/00HY,Wiltshire Council,30/07/2014,5106536935,2200.00,Adiemus Care Limited - Ravenscroft ,132154,HA1 ,Community Services,West Locality OP,Adult Residential Placements - Spot Purchase,Third Party Payments,REVENUE
http://statistics.data.gov.uk/id/local-authority/00HY,Wiltshire Council,30/07/2014,5106536942,2260.84,Adiemus Care Limited - Ravenscroft ,132154,HA1 ,Community Services,East Locality OP,Adult Care Nursing Placements- Spot Purchase,Third Party Payments,REVENUE
http://statistics.data.gov.uk/id/local-authority/00HY,Wiltshire Council,30/07/2014,5106536943,443.56,Adiemus Care Limited - Ravenscroft ,132154,HA1 ,Community Services,OP East FNC,Adult Care Funded Nursing Care - Loal Auth Clients,Third Party Payments,REVENUE
http://statistics.data.gov.uk/id/local-authority/00HY,Wiltshire Council,30/07/2014,5106537059,2060.84,Adiemus Care Limited - Ravenscroft ,132154,HA1 ,Community Services,West Locality OP,Adult Care Nursing Placements- Spot Purchase,Third Party Payments,REVENUE
http://statistics.data.gov.uk/id/local-authority/00HY,Wiltshire Council,30/07/2014,5106537060,443.56,Adiemus Care Limited - Ravenscroft ,132154,HA1 ,Community Services,OP West FNC,Adult Care Funded Nursing Care - Loal Auth Clients,Third Party Payments,REVENUE
http://statistics.data.gov.uk/id/local-authority/00HY,Wiltshire Council,30/07/2014,5106537410,2014.04,Adiemus Care Limited - Ravenscroft ,132154,HA1 ,Community Services,MH OP North Locality,Adult Residential Placements - Spot Purchase,Third Party Payments,REVENUE
http://statistics.data.gov.uk/id/local-authority/00HY,Wiltshire Council,30/07/2014,5106537523,2449.24,Adiemus Care Limited - Ravenscroft ,132154,HA1 ,Community Services,West Locality OP,Adult Residential Placements - Spot Purchase,Third Party Payments,REVENUE
http://statistics.data.gov.uk/id/local-authority/00HY,Wiltshire Council,30/07/2014,5106537529,2010.12,Adiemus Care Limited - Ravenscroft ,132154,HA1 ,Community Services,West Locality OP,Adult Care Nursing Placements- Spot Purchase,Third Party Payments,REVENUE
http://statistics.data.gov.uk/id/local-authority/00HY,Wiltshire Council,30/07/2014,5106537530,443.56,Adiemus Care Limited - Ravenscroft ,132154,HA1 ,Community Services,OP West FNC,Adult Care Funded Nursing Care - Loal Auth Clients,Third Party Payments,REVENUE
http://statistics.data.gov.uk/id/local-authority/00HY,Wiltshire Council,30/07/2014,5106537670,1505.80,Adiemus Care Limited - Ravenscroft ,132154,HA1 ,Community Services,West Locality OP,Adult Care Nursing Placements- Spot Purchase,Third Party Payments,REVENUE
http://statistics.data.gov.uk/id/local-authority/00HY,Wiltshire Council,30/07/2014,5106537671,443.56,Adiemus Care Limited - Ravenscroft ,132154,HA1 ,Community Services,OP West FNC,Adult Care Funded Nursing Care - Loal Auth Clients,Third Party Payments,REVENUE
http://statistics.data.gov.uk/id/local-authority/00HY,Wiltshire Council,30/07/2014,5106538928,2056.44,Adiemus Care Limited - Ravenscroft ,132154,HA1 ,Community Services,West Locality OP,Adult Care Nursing Placements- Spot Purchase,Third Party Payments,REVENUE
http://statistics.data.gov.uk/id/local-authority/00HY,Wiltshire Council,30/07/2014,5106538929,443.56,Adiemus Care Limited - Ravenscroft ,132154,HA1 ,Community Services,OP West FNC,Adult Care Funded Nursing Care - Loal Auth Clients,Third Party Payments,REVENUE
http://statistics.data.gov.uk/id/local-authority/00HY,Wiltshire Council,30/07/2014,5106539545,2156.44,Adiemus Care Limited - Ravenscroft ,132154,HA1 ,Community Services,Home Loans,Adult Care Loans,Capital charges and Expenditure,REVENUE
http://statistics.data.gov.uk/id/local-authority/00HY,Wiltshire Council,02/07/2014,5106522311,1887.20,Admirals Reach BUPA,137917,CM1 ,Community Services,South Locality OP,Adult Care Nursing Placements- Spot Purchase,Third Party Payments,REVENUE
http://statistics.data.gov.uk/id/local-authority/00HY,Wiltshire Council,30/07/2014,5106536947,1887.20,Admirals Reach BUPA,137917,CM1 ,Community Services,South Locality OP,Adult Care Nursing Placements- Spot Purchase,Third Party Payments,REVENUE
http://statistics.data.gov.uk/id/local-authority/00HY,Wiltshire Council,24.07.2014,1901318598,1294.25,Adrains Engineering Psv ,100848,SN15,Neighbourhood & Planning,Mainstream Secondary,Transport Contracts,Third Party Payments,REVENUE
http://statistics.data.gov.uk/id/local-authority/00HY,Wiltshire Council,24.07.2014,1901318599,2919.35,Adrains Engineering Psv ,100848,SN15,Neighbourhood & Planning,Mainstream Secondary,Transport Contracts,Third Party Payments,REVENUE
http://statistics.data.gov.uk/id/local-authority/00HY,Wiltshire Council,24.07.2014,1901318600,2919.35,Adrains Engineering Psv ,100848,SN15,Neighbourhood & Planning,Mainstream Secondary,Transport Contracts,Third Party Payments,REVENUE
http://statistics.data.gov.uk/id/local-authority/00HY,Wiltshire Council,24.07.2014,1901318610,410.84,Adrains Engineering Psv ,100848,SN15,Neighbourhood & Planning,Mainstream 16+ Sec,Transport Contracts,Third Party Payments,REVENUE
http://statistics.data.gov.uk/id/local-authority/00HY,Wiltshire Council,24.07.2014,1901318610,2739.99,Adrains Engineering Psv ,100848,SN15,Neighbourhood & Planning,Mainstream Secondary,Transport Contracts,Third Party Payments,REVENUE
http://statistics.data.gov.uk/id/local-authority/00HY,Wiltshire Council,24.07.2014,1901318611,574.74,Adrains Engineering Psv ,100848,SN15,Neighbourhood & Planning,Mainstream 16+ Sec,Transport Contracts,Third Party Payments,REVENUE
http://statistics.data.gov.uk/id/local-authority/00HY,Wiltshire Council,24.07.2014,1901318611,2298.85,Adrains Engineering Psv ,100848,SN15,Neighbourhood & Planning,Mainstream Secondary,Transport Contracts,Third Party Payments,REVENUE
http://statistics.data.gov.uk/id/local-authority/00HY,Wiltshire Council,24.07.2014,1901318612,3110.72,Adrains Engineering Psv ,100848,SN15,Neighbourhood & Planning,Mainstream Secondary,Transport Contracts,Third Party Payments,REVENUE
http://statistics.data.gov.uk/id/local-authority/00HY,Wiltshire Council,24.07.2014,1901318613,3035.09,Adrains Engineering Psv ,100848,SN15,Neighbourhood & Planning,Mainstream Primary,Transport Contracts,Third Party Payments,REVENUE
http://statistics.data.gov.uk/id/local-authority/00HY,Wiltshire Council,24.07.2014,1901318614,3333.33,Adrains Engineering Psv ,100848,SN15,Neighbourhood & Planning,Mainstream Primary,Transport Contracts,Third Party Payments,REVENUE
http://statistics.data.gov.uk/id/local-authority/00HY,Wiltshire Council,24.07.2014,1901318614,4596.67,Adrains Engineering Psv ,100848,SN15,Neighbourhood & Planning,Public Transport,Transport Contracts,Third Party Payments,REVENUE
http://statistics.data.gov.uk/id/local-authority/00HY,Wiltshire Council,07.07.2014,1901303576,6136.99,Advance Housing  and  Support Ltd ,110060,OX28,Neighbourhood & Planning,HousingStrategy,Payments to Contractors - Other,Third Party Payments,REVENUE
http://statistics.data.gov.uk/id/local-authority/00HY,Wiltshire Council,01/07/2014,5106522636,428.56,Advanced Childcare ,134811,SK8 ,Children & Education,Ext Placement & IFA,Adult / Child Care Agency Placement,Third Party Payments,REVENUE
http://statistics.data.gov.uk/id/local-authority/00HY,Wiltshire Council,18/07/2014,5106530724,21921.34,Advanced Childcare ,134811,SK8 ,Children & Education,Ext Placement & IFA,Adult / Child Care Agency Placement,Third Party Payments,REVENUE
http://statistics.data.gov.uk/id/local-authority/00HY,Wiltshire Council,11/07/2014,5106528859,397.50,AginCare Live In Care Services Ltd ,110071,DT4 ,Community Services,OVA South Locality,Adult Domiciliary Care - Spot,Third Party Payments,REVENUE
http://statistics.data.gov.uk/id/local-authority/00HY,Wiltshire Council,15/07/2014,5106529499,1537.48,AginCare Live In Care Services Ltd ,110071,DT4 ,Community Services,CTPLD Place CIC U65,Adult Domiciliary Care - Live in Care,Third Party Payments,REVENUE
http://statistics.data.gov.uk/id/local-authority/00HY,Wiltshire Council,15/07/2014,5106529500,1499.96,AginCare Live In Care Services Ltd ,110071,DT4 ,Community Services,MH - OSJ Combe End C,Adult Domiciliary Care - Live in Care,Third Party Payments,REVENUE
http://statistics.data.gov.uk/id/local-authority/00HY,Wiltshire Council,15/07/2014,5106529501,607.38,AginCare Live In Care Services Ltd ,110071,DT4 ,Community Services,South Locality OP,Adult Domiciliary care - Live in contribution,Income,REVENUE
http://statistics.data.gov.uk/id/local-authority/00HY,Wiltshire Council,15/07/2014,5106529502,740.00,AginCare Live In Care Services Ltd ,110071,DT4 ,Community Services,South Locality OP,Adult Domiciliary care - Live in contribution,Income,REVENUE
http://statistics.data.gov.uk/id/local-authority/00HY,Wiltshire Council,15/07/2014,5106529503,1400.00,AginCare Live In Care Services Ltd ,110071,DT4 ,Community Services,MH - OSJ Combe End C,Adult Domiciliary Care - Live in Care,Third Party Payments,REVENUE
http://statistics.data.gov.uk/id/local-authority/00HY,Wiltshire Council,16/07/2014,5106529654,1400.00,AginCare Live In Care Services Ltd ,110071,DT4 ,Community Services,MH - OSJ Combe End C,Adult Domiciliary Care - Live in Care,Third Party Payments,REVENUE
http://statistics.data.gov.uk/id/local-authority/00HY,Wiltshire Council,16/07/2014,5106529655,740.00,AginCare Live In Care Services Ltd ,110071,DT4 ,Community Services,South Locality OP,Adult Domiciliary care - Live in contribution,Income,REVENUE
http://statistics.data.gov.uk/id/local-authority/00HY,Wiltshire Council,16/07/2014,5106529656,1499.96,AginCare Live In Care Services Ltd ,110071,DT4 ,Community Services,MH - OSJ Combe End C,Adult Domiciliary Care - Live in Care,Third Party Payments,REVENUE
http://statistics.data.gov.uk/id/local-authority/00HY,Wiltshire Council,16/07/2014,5106529657,607.38,AginCare Live In Care Services Ltd ,110071,DT4 ,Community Services,South Locality OP,Adult Domiciliary care - Live in contribution,Income,REVENUE
http://statistics.data.gov.uk/id/local-authority/00HY,Wiltshire Council,16/07/2014,5106529658,1537.48,AginCare Live In Care Services Ltd ,110071,DT4 ,Community Services,CTPLD Place CIC U65,Adult Domiciliary Care - Live in Care,Third Party Payments,REVENUE
http://statistics.data.gov.uk/id/local-authority/00HY,Wiltshire Council,08/07/2014,5106528020,254.68,Agincare Ltd ,110069,DT4 ,Community Services,MH OP North Locality,Adult Domiciliary Care - Spot Contribution,Income,REVENUE
http://statistics.data.gov.uk/id/local-authority/00HY,Wiltshire Council,08/07/2014,5106528020,368.55,Agincare Ltd ,110069,DT4 ,Community Services,OVA North Locality,Adult Domiciliary Care - Spot,Third Party Payments,REVENUE
http://statistics.data.gov.uk/id/local-authority/00HY,Wiltshire Council,08/07/2014,5106528020,911.32,Agincare Ltd ,110069,DT4 ,Community Services,MH AOWA North Locali,Adult Domiciliary Care - Spot,Third Party Payments,REVENUE
http://statistics.data.gov.uk/id/local-authority/00HY,Wiltshire Council,08/07/2014,5106528020,1693.04,Agincare Ltd ,110069,DT4 ,Community Services,North Locality OP,Adult Domiciliary Care - Spot Contribution,Income,REVENUE
http://statistics.data.gov.uk/id/local-authority/00HY,Wiltshire Council,21/07/2014,5106530792,766.62,Agincare Ltd ,110069,DT4 ,Community Services,CTPLD Place CIC U65,Adult Domiciliary Care - Spot,Third Party Payments,REVENUE
http://statistics.data.gov.uk/id/local-authority/00HY,Wiltshire Council,23/07/2014,5106532429,340.72,Agincare Ltd ,110069,DT4 ,Community Services,CTPLD Place CIC U65,Adult Domiciliary Care - Spot,Third Party Payments,REVENUE
http://statistics.data.gov.uk/id/local-authority/00HY,Wiltshire Council,28/07/2014,5106533386,382.20,Agincare Ltd ,110069,DT4 ,Community Services,MH AOWA South Locali,Adult Domiciliary Care - Spot,Third Party Payments,REVENUE
http://statistics.data.gov.uk/id/local-authority/00HY,Wiltshire Council,09.07.2014,1901312240,1216.40,Airport Connections pewsey  Ltd ,100937,.,Neighbourhood & Planning,Mainstream Primary,Transport Contracts,Third Party Payments,REVENUE
http://statistics.data.gov.uk/id/local-authority/00HY,Wiltshire Council,17.07.2014,1901315164,1113.00,Akcess Ltd ,101402,SN2 ,Neighbourhood & Planning,Mainstream Secondary,Transport Contracts,Third Party Payments,REVENUE
http://statistics.data.gov.uk/id/local-authority/00HY,Wiltshire Council,17.07.2014,1901315165,318.00,Akcess Ltd ,101402,SN2 ,Neighbourhood & Planning,Mainstream 16+ Sec,Transport Contracts,Third Party Payments,REVENUE
http://statistics.data.gov.uk/id/local-authority/00HY,Wiltshire Council,17.07.2014,1901315165,795.00,Akcess Ltd ,101402,SN2 ,Neighbourhood & Planning,Mainstream Secondary,Transport Contracts,Third Party Payments,REVENUE
http://statistics.data.gov.uk/id/local-authority/00HY,Wiltshire Council,17.07.2014,1901315167,300.00,Akcess Ltd ,101402,SN2 ,Community Services,OVA North Locality,Transport Contracts,Third Party Payments,REVENUE
http://statistics.data.gov.uk/id/local-authority/00HY,Wiltshire Council,17.07.2014,1901315167,1153.20,Akcess Ltd ,101402,SN2 ,Community Services,North Locality OP,Transport Contracts,Third Party Payments,REVENUE
http://statistics.data.gov.uk/id/local-authority/00HY,Wiltshire Council,17.07.2014,1901315168,1697.85,Akcess Ltd ,101402,SN2 ,Neighbourhood & Planning,Mainstream Primary,Transport Contracts,Third Party Payments,REVENUE
http://statistics.data.gov.uk/id/local-authority/00HY,Wiltshire Council,17.07.2014,1901315169,1009.13,Akcess Ltd ,101402,SN2 ,Neighbourhood & Planning,Mainstream Primary,Transport Contracts,Third Party Payments,REVENUE
http://statistics.data.gov.uk/id/local-authority/00HY,Wiltshire Council,17.07.2014,1901315170,1009.13,Akcess Ltd ,101402,SN2 ,Neighbourhood & Planning,Mainstream Primary,Transport Contracts,Third Party Payments,REVENUE
http://statistics.data.gov.uk/id/local-authority/00HY,Wiltshire Council,17.07.2014,1901315171,382.35,Akcess Ltd ,101402,SN2 ,Neighbourhood & Planning,SEN Primary,Transport Contracts,Third Party Payments,REVENUE
http://statistics.data.gov.uk/id/local-authority/00HY,Wiltshire Council,17.07.2014,1901315171,382.35,Akcess Ltd ,101402,SN2 ,Neighbourhood & Planning,SEN Secondary,Transport Contracts,Third Party Payments,REVENUE
http://statistics.data.gov.uk/id/local-authority/00HY,Wiltshire Council,17.07.2014,1901315171,1147.05,Akcess Ltd ,101402,SN2 ,Neighbourhood & Planning,SEN 16+ Secondary,Transport Contracts,Third Party Payments,REVENUE
http://statistics.data.gov.uk/id/local-authority/00HY,Wiltshire Council,17.07.2014,1901315172,1725.83,Akcess Ltd ,101402,SN2 ,Neighbourhood & Planning,Mainstream Secondary,Transport Contracts,Third Party Payments,REVENUE
http://statistics.data.gov.uk/id/local-authority/00HY,Wiltshire Council,17.07.2014,1901315173,2469.60,Akcess Ltd ,101402,SN2 ,Neighbourhood & Planning,SEN Secondary,Transport Contracts,Third Party Payments,REVENUE
http://statistics.data.gov.uk/id/local-authority/00HY,Wiltshire Council,17.07.2014,1901315174,1448.58,Akcess Ltd ,101402,SN2 ,Neighbourhood & Planning,Mainstream Primary,Transport Contracts,Third Party Payments,REVENUE
http://statistics.data.gov.uk/id/local-authority/00HY,Wiltshire Council,17.07.2014,1901315175,1594.57,Akcess Ltd ,101402,SN2 ,Neighbourhood & Planning,Mainstream Primary,Transport Contracts,Third Party Payments,REVENUE
http://statistics.data.gov.uk/id/local-authority/00HY,Wiltshire Council,17.07.2014,1901315176,1863.91,Akcess Ltd ,101402,SN2 ,Neighbourhood & Planning,Mainstream Secondary,Transport Contracts,Third Party Payments,REVENUE
http://statistics.data.gov.uk/id/local-authority/00HY,Wiltshire Council,17.07.2014,1901315177,1763.64,Akcess Ltd ,101402,SN2 ,Neighbourhood & Planning,Mainstream Secondary,Transport Contracts,Third Party Payments,REVENUE
http://statistics.data.gov.uk/id/local-authority/00HY,Wiltshire Council,17.07.2014,1901315178,840.00,Akcess Ltd ,101402,SN2 ,Neighbourhood & Planning,Mainstream Secondary,Transport Contracts,Third Party Payments,REVENUE
http://statistics.data.gov.uk/id/local-authority/00HY,Wiltshire Council,17.07.2014,1901315179,1638.00,Akcess Ltd ,101402,SN2 ,Neighbourhood & Planning,Mainstream Primary,Transport Contracts,Third Party Payments,REVENUE
http://statistics.data.gov.uk/id/local-authority/00HY,Wiltshire Council,17.07.2014,1901315180,3800.00,Akcess Ltd ,101402,SN2 ,Neighbourhood & Planning,SEN Secondary,Transport Contracts,Third Party Payments,REVENUE
http://statistics.data.gov.uk/id/local-authority/00HY,Wiltshire Council,17.07.2014,1901315183,1680.00,Akcess Ltd ,101402,SN2 ,Neighbourhood & Planning,SEN Secondary,Transport Contracts,Third Party Payments,REVENUE
http://statistics.data.gov.uk/id/local-authority/00HY,Wiltshire Council,17.07.2014,1901316018,765.13,Akcess Ltd ,101402,SN2 ,Neighbourhood & Planning,Mainstream Primary,Transport Contracts,Third Party Payments,REVENUE
http://statistics.data.gov.uk/id/local-authority/00HY,Wiltshire Council,23.07.2014,1901318141,1420.09,Akcess Ltd ,101402,SN2 ,Neighbourhood & Planning,SEN 16+ FE Colleges,Transport Contracts,Third Party Payments,REVENUE
http://statistics.data.gov.uk/id/local-authority/00HY,Wiltshire Council,23.07.2014,1901318141,2840.18,Akcess Ltd ,101402,SN2 ,Neighbourhood & Planning,SEN Primary,Transport Contracts,Third Party Payments,REVENUE
http://statistics.data.gov.uk/id/local-authority/00HY,Wiltshire Council,23.07.2014,1901318143,1256.23,Akcess Ltd ,101402,SN2 ,Neighbourhood & Planning,Mainstream Secondary,Transport Contracts,Third Party Payments,REVENUE
http://statistics.data.gov.uk/id/local-authority/00HY,Wiltshire Council,23.07.2014,1901318144,607.04,Akcess Ltd ,101402,SN2 ,Neighbourhood & Planning,SEN Primary,Transport Contracts,Third Party Payments,REVENUE
http://statistics.data.gov.uk/id/local-authority/00HY,Wiltshire Council,23.07.2014,1901318144,1214.08,Akcess Ltd ,101402,SN2 ,Neighbourhood & Planning,Mainstream Primary,Transport Contracts,Third Party Payments,REVENUE
http://statistics.data.gov.uk/id/local-authority/00HY,Wiltshire Council,23.07.2014,1901318146,1648.20,Akcess Ltd ,101402,SN2 ,Neighbourhood & Planning,SEN PA's,Transport Contracts,Third Party Payments,REVENUE
http://statistics.data.gov.uk/id/local-authority/00HY,Wiltshire Council,03.07.2014,1901302759,2600.55,Alabare Christian Care Centre ,100837,SP2 ,Community Services,KASH Ruth House,Payments to Contractors - Other,Third Party Payments,REVENUE
http://statistics.data.gov.uk/id/local-authority/00HY,Wiltshire Council,04.07.2014,1901303251,30000.00,Alabare Christian Care Centre ,100837,SP2 ,Community Services,DCS Dept Balance Sht,PTB Fund - Holding Account,Balance Sheet Accounts,REVENUE
http://statistics.data.gov.uk/id/local-authority/00HY,Wiltshire Council,07.07.2014,1901303562,1475.95,Alabare Christian Care Centre ,100837,SP2 ,Neighbourhood & Planning,HousingStrategy,Payments to Contractors - Other,Third Party Payments,REVENUE
http://statistics.data.gov.uk/id/local-authority/00HY,Wiltshire Council,07.07.2014,1901303564,2462.46,Alabare Christian Care Centre ,100837,SP2 ,Neighbourhood & Planning,HousingStrategy,Payments to Contractors - Other,Third Party Payments,REVENUE
http://statistics.data.gov.uk/id/local-authority/00HY,Wiltshire Council,07.07.2014,1901303569,2807.67,Alabare Christian Care Centre ,100837,SP2 ,Neighbourhood & Planning,HousingStrategy,Payments to Contractors - Other,Third Party Payments,REVENUE
http://statistics.data.gov.uk/id/local-authority/00HY,Wiltshire Council,07.07.2014,1901303572,3589.22,Alabare Christian Care Centre ,100837,SP2 ,Neighbourhood & Planning,HousingStrategy,Payments to Contractors - Other,Third Party Payments,REVENUE
http://statistics.data.gov.uk/id/local-authority/00HY,Wiltshire Council,07.07.2014,1901303573,3904.66,Alabare Christian Care Centre ,100837,SP2 ,Neighbourhood & Planning,HousingStrategy,Payments to Contractors - Other,Third Party Payments,REVENUE
http://statistics.data.gov.uk/id/local-authority/00HY,Wiltshire Council,07.07.2014,1901303580,9501.05,Alabare Christian Care Centre ,100837,SP2 ,Neighbourhood & Planning,HousingStrategy,Payments to Contractors - Other,Third Party Payments,REVENUE
http://statistics.data.gov.uk/id/local-authority/00HY,Wiltshire Council,07.07.2014,1901303584,25122.52,Alabare Christian Care Centre ,100837,SP2 ,Neighbourhood & Planning,HousingStrategy,Payments to Contractors - Other,Third Party Payments,REVENUE
http://statistics.data.gov.uk/id/local-authority/00HY,Wiltshire Council,07.07.2014,1901303587,30780.05,Alabare Christian Care Centre ,100837,SP2 ,Neighbourhood & Planning,HousingStrategy,Payments to Contractors - Other,Third Party Payments,REVENUE
http://statistics.data.gov.uk/id/local-authority/00HY,Wiltshire Council,02/07/2014,5106508273,473.20,Alabare Christian Care Centre ,100837,SP2 ,Community Services,CTPLD Place CIC U65,Supported Living - Without SP payments,Third Party Payments,REVENUE
http://statistics.data.gov.uk/id/local-authority/00HY,Wiltshire Council,02/07/2014,5106519946,1586.76,Alabare Christian Care Centre ,100837,SP2 ,Community Services,CTPLD Place CIC U65,Supported Living - Without SP payments,Third Party Payments,REVENUE
http://statistics.data.gov.uk/id/local-authority/00HY,Wiltshire Council,02/07/2014,5106519947,1602.48,Alabare Christian Care Centre ,100837,SP2 ,Community Services,CTPLD Place CIC U65,Supported Living - Without SP payments,Third Party Payments,REVENUE
http://statistics.data.gov.uk/id/local-authority/00HY,Wiltshire Council,02/07/2014,5106519948,1658.24,Alabare Christian Care Centre ,100837,SP2 ,Community Services,CTPLD Place CIC U65,Supported Living - Without SP payments,Third Party Payments,REVENUE
http://statistics.data.gov.uk/id/local-authority/00HY,Wiltshire Council,02/07/2014,5106519949,3057.28,Alabare Christian Care Centre ,100837,SP2 ,Community Services,CTPLD Place CIC U65,Supported Living - Without SP payments,Third Party Payments,REVENUE
http://statistics.data.gov.uk/id/local-authority/00HY,Wiltshire Council,02/07/2014,5106519951,1751.44,Alabare Christian Care Centre ,100837,SP2 ,Community Services,CTPLD Place CIC U65,Supported Living - Without SP payments,Third Party Payments,REVENUE
http://statistics.data.gov.uk/id/local-authority/00HY,Wiltshire Council,02/07/2014,5106519952,3057.28,Alabare Christian Care Centre ,100837,SP2 ,Community Services,CTPLD Place CIC U65,Supported Living - Without SP payments,Third Party Payments,REVENUE
http://statistics.data.gov.uk/id/local-authority/00HY,Wiltshire Council,02/07/2014,5106520047,2431.00,Alabare Christian Care Centre ,100837,SP2 ,Community Services,CTPLD Place CIC U65,Supported Living - Without SP payments,Third Party Payments,REVENUE
http://statistics.data.gov.uk/id/local-authority/00HY,Wiltshire Council,02/07/2014,5106520049,975.88,Alabare Christian Care Centre ,100837,SP2 ,Community Services,CTPLD Place CIC U65,Supported Living - Without SP payments,Third Party Payments,REVENUE
http://statistics.data.gov.uk/id/local-authority/00HY,Wiltshire Council,02/07/2014,5106520051,2217.68,Alabare Christian Care Centre ,100837,SP2 ,Community Services,CTPLD Place CIC U65,Supported Living - Without SP payments,Third Party Payments,REVENUE
http://statistics.data.gov.uk/id/local-authority/00HY,Wiltshire Council,02/07/2014,5106520053,1556.96,Alabare Christian Care Centre ,100837,SP2 ,Community Services,CTPLD Place CIC U65,Supported Living - Without SP payments,Third Party Payments,REVENUE
http://statistics.data.gov.uk/id/local-authority/00HY,Wiltshire Council,02/07/2014,5106520055,2780.92,Alabare Christian Care Centre ,100837,SP2 ,Community Services,CTPLD Place CIC U65,Supported Living - Without SP payments,Third Party Payments,REVENUE
http://statistics.data.gov.uk/id/local-authority/00HY,Wiltshire Council,02/07/2014,5106520057,715.00,Alabare Christian Care Centre ,100837,SP2 ,Community Services,CTPLD Place CIC U65,Supported Living - Without SP payments,Third Party Payments,REVENUE
http://statistics.data.gov.uk/id/local-authority/00HY,Wiltshire Council,02/07/2014,5106520059,2109.48,Alabare Christian Care Centre ,100837,SP2 ,Community Services,CTPLD Place S75 U65,Supported Living - Without SP payments,Third Party Payments,REVENUE
http://statistics.data.gov.uk/id/local-authority/00HY,Wiltshire Council,02/07/2014,5106520061,2214.08,Alabare Christian Care Centre ,100837,SP2 ,Community Services,CTPLD Place CIC U65,Supported Living - Without SP payments,Third Party Payments,REVENUE
http://statistics.data.gov.uk/id/local-authority/00HY,Wiltshire Council,02/07/2014,5106520063,1751.44,Alabare Christian Care Centre ,100837,SP2 ,Community Services,CTPLD Place CIC U65,Supported Living - Without SP payments,Third Party Payments,REVENUE
http://statistics.data.gov.uk/id/local-authority/00HY,Wiltshire Council,02/07/2014,5106520065,930.88,Alabare Christian Care Centre ,100837,SP2 ,Community Services,CTPLD Place CIC U65,Supported Living - Without SP payments,Third Party Payments,REVENUE
http://statistics.data.gov.uk/id/local-authority/00HY,Wiltshire Council,02/07/2014,5106520067,583.00,Alabare Christian Care Centre ,100837,SP2 ,Community Services,CTPLD Place CIC U65,Supported Living - Without SP payments,Third Party Payments,REVENUE
http://statistics.data.gov.uk/id/local-authority/00HY,Wiltshire Council,02/07/2014,5106520069,3057.28,Alabare Christian Care Centre ,100837,SP2 ,Community Services,CTPLD Place CIC U65,Supported Living - Without SP payments,Third Party Payments,REVENUE
http://statistics.data.gov.uk/id/local-authority/00HY,Wiltshire Council,02/07/2014,5106520071,462.00,Alabare Christian Care Centre ,100837,SP2 ,Community Services,CTPLD Place CIC U65,Supported Living - Without SP payments,Third Party Payments,REVENUE
http://statistics.data.gov.uk/id/local-authority/00HY,Wiltshire Council,02/07/2014,5106520072,1887.44,Alabare Christian Care Centre ,100837,SP2 ,Community Services,CTPLD Place CIC U65,Supported Living - Without SP payments,Third Party Payments,REVENUE
http://statistics.data.gov.uk/id/local-authority/00HY,Wiltshire Council,30/07/2014,5106520172,473.20,Alabare Christian Care Centre ,100837,SP2 ,Community Services,CTPLD Place CIC U65,Supported Living - Without SP payments,Third Party Payments,REVENUE
http://statistics.data.gov.uk/id/local-authority/00HY,Wiltshire Council,02/07/2014,5106522768,256.00,Alabare Christian Care Centre ,100837,SP2 ,Community Services,MH AOWA South Locali,Adult Day Care - Spot,Third Party Payments,REVENUE
http://statistics.data.gov.uk/id/local-authority/00HY,Wiltshire Council,02/07/2014,5106522769,320.00,Alabare Christian Care Centre ,100837,SP2 ,Community Services,MH AOWA South Locali,Adult Day Care - Spot,Third Party Payments,REVENUE
http://statistics.data.gov.uk/id/local-authority/00HY,Wiltshire Council,02/07/2014,5106522805,473.20,Alabare Christian Care Centre ,100837,SP2 ,Community Services,CTPLD Place CIC U65,Adult Domiciliary Care - Spot,Third Party Payments,REVENUE
http://statistics.data.gov.uk/id/local-authority/00HY,Wiltshire Council,03/07/2014,5106525753,450.80,Alabare Christian Care Centre ,100837,SP2 ,Community Services,OVA South Locality,Adult Day Care - Spot,Third Party Payments,REVENUE
http://statistics.data.gov.uk/id/local-authority/00HY,Wiltshire Council,09/07/2014,5106528168,40229.16,Alabare Christian Care Centre ,100837,SP2 ,Community Services,MH Commissioned Cont,Grants Paid to individuals for Tangible Benefits,Supplies and Services,REVENUE
http://statistics.data.gov.uk/id/local-authority/00HY,Wiltshire Council,09/07/2014,5106528169,40229.16,Alabare Christian Care Centre ,100837,SP2 ,Community Services,MH Commissioned Cont,Grants Paid to individuals for Tangible Benefits,Supplies and Services,REVENUE
http://statistics.data.gov.uk/id/local-authority/00HY,Wiltshire Council,09/07/2014,5106528197,40229.16,Alabare Christian Care Centre ,100837,SP2 ,Community Services,MH Commissioned Cont,Grants Paid to individuals for Tangible Benefits,Supplies and Services,REVENUE
http://statistics.data.gov.uk/id/local-authority/00HY,Wiltshire Council,09/07/2014,5106528198,40229.16,Alabare Christian Care Centre ,100837,SP2 ,Community Services,MH Commissioned Cont,Grants Paid to individuals for Tangible Benefits,Supplies and Services,REVENUE
http://statistics.data.gov.uk/id/local-authority/00HY,Wiltshire Council,11/07/2014,5106528871,473.20,Alabare Christian Care Centre ,100837,SP2 ,Community Services,CTPLD Place CIC U65,Adult Domiciliary Care - Spot,Third Party Payments,REVENUE
http://statistics.data.gov.uk/id/local-authority/00HY,Wiltshire Council,11/07/2014,5106528952,547.40,Alabare Christian Care Centre ,100837,SP2 ,Community Services,OVA South Locality,Adult Day Care - Spot,Third Party Payments,REVENUE
http://statistics.data.gov.uk/id/local-authority/00HY,Wiltshire Council,14/07/2014,5106529205,322.00,Alabare Christian Care Centre ,100837,SP2 ,Community Services,CTPLD Place CIC U65,Adult Day Care - Spot,Third Party Payments,REVENUE
http://statistics.data.gov.uk/id/local-authority/00HY,Wiltshire Council,16/07/2014,5106529612,416.00,Alabare Christian Care Centre ,100837,SP2 ,Community Services,MH AOWA South Locali,Adult Day Care - Spot,Third Party Payments,REVENUE
http://statistics.data.gov.uk/id/local-authority/00HY,Wiltshire Council,16/07/2014,5106529614,256.00,Alabare Christian Care Centre ,100837,SP2 ,Community Services,MH AOWA South Locali,Adult Day Care - Spot,Third Party Payments,REVENUE
http://statistics.data.gov.uk/id/local-authority/00HY,Wiltshire Council,16/07/2014,5106529615,256.00,Alabare Christian Care Centre ,100837,SP2 ,Community Services,MH AOWA South Locali,Adult Day Care - Spot,Third Party Payments,REVENUE
http://statistics.data.gov.uk/id/local-authority/00HY,Wiltshire Council,18/07/2014,5106530579,2727.40,Alabare Christian Care Centre ,100837,SP2 ,Community Services,CTPLD Place CIC U65,Supported Living - Without SP payments,Third Party Payments,REVENUE
http://statistics.data.gov.uk/id/local-authority/00HY,Wiltshire Council,18/07/2014,5106530660,2674.12,Alabare Christian Care Centre ,100837,SP2 ,Community Services,CTPLD Place CIC U65,Supported Living - Without SP payments,Third Party Payments,REVENUE
http://statistics.data.gov.uk/id/local-authority/00HY,Wiltshire Council,18/07/2014,5106530661,352.00,Alabare Christian Care Centre ,100837,SP2 ,Community Services,CTPLD Place CIC U65,Supported Living - Without SP payments,Third Party Payments,REVENUE
http://statistics.data.gov.uk/id/local-authority/00HY,Wiltshire Council,18/07/2014,5106530662,640.88,Alabare Christian Care Centre ,100837,SP2 ,Community Services,MH AOWA South Locali,Adult Domiciliary Care - Spot,Third Party Payments,REVENUE
http://statistics.data.gov.uk/id/local-authority/00HY,Wiltshire Council,18/07/2014,5106530663,1419.00,Alabare Christian Care Centre ,100837,SP2 ,Community Services,CTPLD Place CIC U65,Supported Living - Without SP payments,Third Party Payments,REVENUE
http://statistics.data.gov.uk/id/local-authority/00HY,Wiltshire Council,23/07/2014,5106532566,10795.00,Alabare Christian Care Centre ,100837,SP2 ,Community Services,KASH Ruth House,Substance Misuse - Payments to Contractors,Third Party Payments,REVENUE
http://statistics.data.gov.uk/id/local-authority/00HY,Wiltshire Council,23/07/2014,5106532567,10795.00,Alabare Christian Care Centre ,100837,SP2 ,Community Services,KASH Ruth House,Substance Misuse - Payments to Contractors,Third Party Payments,REVENUE
http://statistics.data.gov.uk/id/local-authority/00HY,Wiltshire Council,25/07/2014,5106533299,289.80,Alabare Christian Care Centre ,100837,SP2 ,Community Services,CTPLD Place CIC U65,Adult Day Care - Spot,Third Party Payments,REVENUE
http://statistics.data.gov.uk/id/local-authority/00HY,Wiltshire Council,25/07/2014,5106533322,418.60,Alabare Christian Care Centre ,100837,SP2 ,Community Services,CTPLD Place CIC U65,Adult Day Care - Spot,Third Party Payments,REVENUE
http://statistics.data.gov.uk/id/local-authority/00HY,Wiltshire Council,25/07/2014,5106533349,2674.12,Alabare Christian Care Centre ,100837,SP2 ,Community Services,CTPLD Place CIC U65,Supported Living - Without SP payments,Third Party Payments,REVENUE
http://statistics.data.gov.uk/id/local-authority/00HY,Wiltshire Council,25/07/2014,5106533350,640.88,Alabare Christian Care Centre ,100837,SP2 ,Community Services,MH AOWA South Locali,Adult Domiciliary Care - Spot,Third Party Payments,REVENUE
http://statistics.data.gov.uk/id/local-authority/00HY,Wiltshire Council,25/07/2014,5106533351,352.00,Alabare Christian Care Centre ,100837,SP2 ,Community Services,CTPLD Place CIC U65,Supported Living - Without SP payments,Third Party Payments,REVENUE
http://statistics.data.gov.uk/id/local-authority/00HY,Wiltshire Council,25/07/2014,5106533352,1419.00,Alabare Christian Care Centre ,100837,SP2 ,Community Services,CTPLD Place CIC U65,Supported Living - Without SP payments,Third Party Payments,REVENUE
http://statistics.data.gov.uk/id/local-authority/00HY,Wiltshire Council,25/07/2014,5106533353,2727.40,Alabare Christian Care Centre ,100837,SP2 ,Community Services,CTPLD Place CIC U65,Supported Living - Without SP payments,Third Party Payments,REVENUE
http://statistics.data.gov.uk/id/local-authority/00HY,Wiltshire Council,28/07/2014,5106533564,676.00,Alabare Christian Care Centre ,100837,SP2 ,Community Services,CTPLD Place CIC U65,Adult Domiciliary Care - Spot Contribution,Income,REVENUE
http://statistics.data.gov.uk/id/local-authority/00HY,Wiltshire Council,30/07/2014,5106533676,1586.76,Alabare Christian Care Centre ,100837,SP2 ,Community Services,CTPLD Place CIC U65,Supported Living - Without SP payments,Third Party Payments,REVENUE
http://statistics.data.gov.uk/id/local-authority/00HY,Wiltshire Council,30/07/2014,5106533677,1602.48,Alabare Christian Care Centre ,100837,SP2 ,Community Services,CTPLD Place CIC U65,Supported Living - Without SP payments,Third Party Payments,REVENUE
http://statistics.data.gov.uk/id/local-authority/00HY,Wiltshire Council,30/07/2014,5106533678,1658.24,Alabare Christian Care Centre ,100837,SP2 ,Community Services,CTPLD Place CIC U65,Supported Living - Without SP payments,Third Party Payments,REVENUE
http://statistics.data.gov.uk/id/local-authority/00HY,Wiltshire Council,30/07/2014,5106533679,3057.28,Alabare Christian Care Centre ,100837,SP2 ,Community Services,CTPLD Place CIC U65,Supported Living - Without SP payments,Third Party Payments,REVENUE
http://statistics.data.gov.uk/id/local-authority/00HY,Wiltshire Council,30/07/2014,5106533681,1751.44,Alabare Christian Care Centre ,100837,SP2 ,Community Services,CTPLD Place CIC U65,Supported Living - Without SP payments,Third Party Payments,REVENUE
http://statistics.data.gov.uk/id/local-authority/00HY,Wiltshire Council,30/07/2014,5106533682,2189.04,Alabare Christian Care Centre ,100837,SP2 ,Community Services,CTPLD Place CIC U65,Supported Living - Without SP payments,Third Party Payments,REVENUE
http://statistics.data.gov.uk/id/local-authority/00HY,Wiltshire Council,30/07/2014,5106533762,2431.00,Alabare Christian Care Centre ,100837,SP2 ,Community Services,CTPLD Place CIC U65,Supported Living - Without SP payments,Third Party Payments,REVENUE
http://statistics.data.gov.uk/id/local-authority/00HY,Wiltshire Council,30/07/2014,5106533764,975.88,Alabare Christian Care Centre ,100837,SP2 ,Community Services,CTPLD Place CIC U65,Supported Living - Without SP payments,Third Party Payments,REVENUE
http://statistics.data.gov.uk/id/local-authority/00HY,Wiltshire Council,30/07/2014,5106533766,2217.68,Alabare Christian Care Centre ,100837,SP2 ,Community Services,CTPLD Place CIC U65,Supported Living - Without SP payments,Third Party Payments,REVENUE
http://statistics.data.gov.uk/id/local-authority/00HY,Wiltshire Council,30/07/2014,5106533768,1556.96,Alabare Christian Care Centre ,100837,SP2 ,Community Services,CTPLD Place CIC U65,Supported Living - Without SP payments,Third Party Payments,REVENUE
http://statistics.data.gov.uk/id/local-authority/00HY,Wiltshire Council,30/07/2014,5106533770,2841.88,Alabare Christian Care Centre ,100837,SP2 ,Community Services,CTPLD Place CIC U65,Supported Living - Without SP payments,Third Party Payments,REVENUE
http://statistics.data.gov.uk/id/local-authority/00HY,Wiltshire Council,30/07/2014,5106533773,715.00,Alabare Christian Care Centre ,100837,SP2 ,Community Services,CTPLD Place CIC U65,Supported Living - Without SP payments,Third Party Payments,REVENUE
http://statistics.data.gov.uk/id/local-authority/00HY,Wiltshire Council,30/07/2014,5106533775,2109.48,Alabare Christian Care Centre ,100837,SP2 ,Community Services,CTPLD Place S75 U65,Supported Living - Without SP payments,Third Party Payments,REVENUE
http://statistics.data.gov.uk/id/local-authority/00HY,Wiltshire Council,30/07/2014,5106533777,2214.08,Alabare Christian Care Centre ,100837,SP2 ,Community Services,CTPLD Place CIC U65,Supported Living - Without SP payments,Third Party Payments,REVENUE
http://statistics.data.gov.uk/id/local-authority/00HY,Wiltshire Council,30/07/2014,5106533779,1751.44,Alabare Christian Care Centre ,100837,SP2 ,Community Services,CTPLD Place CIC U65,Supported Living - Without SP payments,Third Party Payments,REVENUE
http://statistics.data.gov.uk/id/local-authority/00HY,Wiltshire Council,30/07/2014,5106533781,930.88,Alabare Christian Care Centre ,100837,SP2 ,Community Services,CTPLD Place CIC U65,Supported Living - Without SP payments,Third Party Payments,REVENUE
http://statistics.data.gov.uk/id/local-authority/00HY,Wiltshire Council,30/07/2014,5106533783,583.00,Alabare Christian Care Centre ,100837,SP2 ,Community Services,CTPLD Place CIC U65,Supported Living - Without SP payments,Third Party Payments,REVENUE
http://statistics.data.gov.uk/id/local-authority/00HY,Wiltshire Council,30/07/2014,5106533785,2832.56,Alabare Christian Care Centre ,100837,SP2 ,Community Services,CTPLD Place CIC U65,Supported Living - Without SP payments,Third Party Payments,REVENUE
http://statistics.data.gov.uk/id/local-authority/00HY,Wiltshire Council,30/07/2014,5106533788,462.00,Alabare Christian Care Centre ,100837,SP2 ,Community Services,CTPLD Place CIC U65,Supported Living - Without SP payments,Third Party Payments,REVENUE
http://statistics.data.gov.uk/id/local-authority/00HY,Wiltshire Council,30/07/2014,5106533789,1887.44,Alabare Christian Care Centre ,100837,SP2 ,Community Services,CTPLD Place CIC U65,Supported Living - Without SP payments,Third Party Payments,REVENUE
http://statistics.data.gov.uk/id/local-authority/00HY,Wiltshire Council,24.07.2014,1901318501,742.85,Aldbourne Nursing Home ,110090,SN8 ,Community Services,BCF-Intermediate Cr,Adult Nursing Placements - transitional beds,Third Party Payments,REVENUE
http://statistics.data.gov.uk/id/local-authority/00HY,Wiltshire Council,24.07.2014,1901318560,7755.71,Aldbourne Nursing Home ,110090,SN8 ,Community Services,BCF-Intermediate Cr,Adult Nursing Placements - transitional beds,Third Party Payments,REVENUE
http://statistics.data.gov.uk/id/local-authority/00HY,Wiltshire Council,24.07.2014,1901318561,557.14,Aldbourne Nursing Home ,110090,SN8 ,Community Services,BCF-Intermediate Cr,Adult Nursing Placements - transitional beds,Third Party Payments,REVENUE
http://statistics.data.gov.uk/id/local-authority/00HY,Wiltshire Council,31.07.2014,1901319878,3291.43,Aldbourne Nursing Home ,110090,SN8 ,Community Services,BCF-Intermediate Cr,Adult Nursing Placements - transitional beds,Third Party Payments,REVENUE
http://statistics.data.gov.uk/id/local-authority/00HY,Wiltshire Council,02/07/2014,5106521061,2324.84,Aldbourne Nursing Home ,110090,SN8 ,Community Services,MH OP North Locality,Adult Care Nursing Placements- Spot Purchase,Third Party Payments,REVENUE
http://statistics.data.gov.uk/id/local-authority/00HY,Wiltshire Council,02/07/2014,5106521062,443.56,Aldbourne Nursing Home ,110090,SN8 ,Community Services,MH OA North FNC,Adult Care Funded Nursing Care - Loal Auth Clients,Third Party Payments,REVENUE
http://statistics.data.gov.uk/id/local-authority/00HY,Wiltshire Council,02/07/2014,5106521159,2040.84,Aldbourne Nursing Home ,110090,SN8 ,Community Services,East Locality OP,Adult Care Nursing Placements- Spot Purchase,Third Party Payments,REVENUE
http://statistics.data.gov.uk/id/local-authority/00HY,Wiltshire Council,02/07/2014,5106521160,443.56,Aldbourne Nursing Home ,110090,SN8 ,Community Services,OP East FNC,Adult Care Funded Nursing Care - Loal Auth Clients,Third Party Payments,REVENUE
http://statistics.data.gov.uk/id/local-authority/00HY,Wiltshire Council,02/07/2014,5106521661,2040.84,Aldbourne Nursing Home ,110090,SN8 ,Community Services,East Locality OP,Adult Care Nursing Placements- Spot Purchase,Third Party Payments,REVENUE
http://statistics.data.gov.uk/id/local-authority/00HY,Wiltshire Council,02/07/2014,5106521662,443.56,Aldbourne Nursing Home ,110090,SN8 ,Community Services,OP East FNC,Adult Care Funded Nursing Care - Loal Auth Clients,Third Party Payments,REVENUE
http://statistics.data.gov.uk/id/local-authority/00HY,Wiltshire Council,02/07/2014,5106524623,2036.44,Aldbourne Nursing Home ,110090,SN8 ,Community Services,East Locality OP,Adult Care Nursing Placements- Block Contract,Third Party Payments,REVENUE
http://statistics.data.gov.uk/id/local-authority/00HY,Wiltshire Council,02/07/2014,5106524624,443.56,Aldbourne Nursing Home ,110090,SN8 ,Community Services,OP East FNC,Adult Care Funded Nursing Care - Loal Auth Clients,Third Party Payments,REVENUE
http://statistics.data.gov.uk/id/local-authority/00HY,Wiltshire Council,02/07/2014,5106524973,2360.84,Aldbourne Nursing Home ,110090,SN8 ,Community Services,Home Loans,Adult Care Loans,Capital charges and Expenditure,REVENUE
http://statistics.data.gov.uk/id/local-authority/00HY,Wiltshire Council,30/07/2014,5106535763,2324.84,Aldbourne Nursing Home ,110090,SN8 ,Community Services,MH OP North Locality,Adult Care Nursing Placements- Spot Purchase,Third Party Payments,REVENUE
http://statistics.data.gov.uk/id/local-authority/00HY,Wiltshire Council,30/07/2014,5106535764,443.56,Aldbourne Nursing Home ,110090,SN8 ,Community Services,MH OA North FNC,Adult Care Funded Nursing Care - Loal Auth Clients,Third Party Payments,REVENUE
http://statistics.data.gov.uk/id/local-authority/00HY,Wiltshire Council,30/07/2014,5106535839,2040.84,Aldbourne Nursing Home ,110090,SN8 ,Community Services,East Locality OP,Adult Care Nursing Placements- Spot Purchase,Third Party Payments,REVENUE
http://statistics.data.gov.uk/id/local-authority/00HY,Wiltshire Council,30/07/2014,5106535840,443.56,Aldbourne Nursing Home ,110090,SN8 ,Community Services,OP East FNC,Adult Care Funded Nursing Care - Loal Auth Clients,Third Party Payments,REVENUE
http://statistics.data.gov.uk/id/local-authority/00HY,Wiltshire Council,30/07/2014,5106536313,2040.84,Aldbourne Nursing Home ,110090,SN8 ,Community Services,East Locality OP,Adult Care Nursing Placements- Spot Purchase,Third Party Payments,REVENUE
http://statistics.data.gov.uk/id/local-authority/00HY,Wiltshire Council,30/07/2014,5106536314,443.56,Aldbourne Nursing Home ,110090,SN8 ,Community Services,OP East FNC,Adult Care Funded Nursing Care - Loal Auth Clients,Third Party Payments,REVENUE
http://statistics.data.gov.uk/id/local-authority/00HY,Wiltshire Council,30/07/2014,5106538897,2036.44,Aldbourne Nursing Home ,110090,SN8 ,Community Services,East Locality OP,Adult Care Nursing Placements- Block Contract,Third Party Payments,REVENUE
http://statistics.data.gov.uk/id/local-authority/00HY,Wiltshire Council,30/07/2014,5106538898,443.56,Aldbourne Nursing Home ,110090,SN8 ,Community Services,OP East FNC,Adult Care Funded Nursing Care - Loal Auth Clients,Third Party Payments,REVENUE
http://statistics.data.gov.uk/id/local-authority/00HY,Wiltshire Council,30/07/2014,5106539433,2360.84,Aldbourne Nursing Home ,110090,SN8 ,Community Services,Home Loans,Adult Care Loans,Capital charges and Expenditure,REVENUE
http://statistics.data.gov.uk/id/local-authority/00HY,Wiltshire Council,04/07/2014,5106525954,1750.00,Alder King ,100899,BS8 ,Neighbourhood & Planning,Salisbury Vision,Consultants� Fees,Supplies and Services,REVENUE
http://statistics.data.gov.uk/id/local-authority/00HY,Wiltshire Council,25/07/2014,5106529148,1750.00,Alder King ,100899,BS8 ,Neighbourhood & Planning,Salisbury Vision,Premises Rental / Hire Charges,Premises Related,REVENUE
http://statistics.data.gov.uk/id/local-authority/00HY,Wiltshire Council,14/07/2014,5106529188,340.00,Alere Toxicology Plc ,131373,OX14,Children & Education,Safeguarding Ass Wst,Pathology Fees,Supplies and Services,REVENUE
http://statistics.data.gov.uk/id/local-authority/00HY,Wiltshire Council,02/07/2014,5106524730,6108.00,Alexandra Homes (Bristol) Ltd ,131787,BS15,Community Services,MH AOWA North Locali,Adult Residential Placements - Spot Purchase,Third Party Payments,REVENUE
http://statistics.data.gov.uk/id/local-authority/00HY,Wiltshire Council,30/07/2014,5106539069,6108.00,Alexandra Homes (Bristol) Ltd ,131787,BS15,Community Services,MH AOWA North Locali,Adult Residential Placements - Spot Purchase,Third Party Payments,REVENUE
http://statistics.data.gov.uk/id/local-authority/00HY,Wiltshire Council,24.07.2014,1901318692,1120.00,Allen & Harris ,130028,SN15,Children & Education,LAC & 16+,Grants Paid to individuals for Tangible Benefits,Supplies and Services,REVENUE
http://statistics.data.gov.uk/id/local-authority/00HY,Wiltshire Council,02/07/2014,5106520482,3651.12,Alliance Home Care ,110986,SN15,Community Services,MH AOWA North Locali,Adult Residential Placements - Spot Purchase,Third Party Payments,REVENUE
http://statistics.data.gov.uk/id/local-authority/00HY,Wiltshire Council,02/07/2014,5106521182,3513.16,Alliance Home Care ,110986,SN15,Community Services,CTPLD Place CIC U65,Adult Residential Placements - Spot Purchase,Third Party Payments,REVENUE
http://statistics.data.gov.uk/id/local-authority/00HY,Wiltshire Council,02/07/2014,5106521452,3749.52,Alliance Home Care ,110986,SN15,Community Services,MH OP North Locality,Adult Residential Placements - Spot Purchase,Third Party Payments,REVENUE
http://statistics.data.gov.uk/id/local-authority/00HY,Wiltshire Council,02/07/2014,5106521849,3991.80,Alliance Home Care ,110986,SN15,Community Services,MH AOWA North Locali,Adult Residential Placements - Spot Purchase,Third Party Payments,REVENUE
http://statistics.data.gov.uk/id/local-authority/00HY,Wiltshire Council,02/07/2014,5106524607,3239.96,Alliance Home Care ,110986,SN15,Community Services,MH OP North Locality,Adult Residential Placements - Spot Purchase,Third Party Payments,REVENUE
http://statistics.data.gov.uk/id/local-authority/00HY,Wiltshire Council,30/07/2014,5106534888,3651.12,Alliance Home Care ,110986,SN15,Community Services,MH AOWA North Locali,Adult Residential Placements - Spot Purchase,Third Party Payments,REVENUE
http://statistics.data.gov.uk/id/local-authority/00HY,Wiltshire Council,30/07/2014,5106535860,3513.16,Alliance Home Care ,110986,SN15,Community Services,CTPLD Place CIC U65,Adult Residential Placements - Spot Purchase,Third Party Payments,REVENUE
http://statistics.data.gov.uk/id/local-authority/00HY,Wiltshire Council,30/07/2014,5106536116,3749.52,Alliance Home Care ,110986,SN15,Community Services,MH OP North Locality,Adult Residential Placements - Spot Purchase,Third Party Payments,REVENUE
http://statistics.data.gov.uk/id/local-authority/00HY,Wiltshire Council,30/07/2014,5106536482,3991.80,Alliance Home Care ,110986,SN15,Community Services,MH AOWA North Locali,Adult Residential Placements - Spot Purchase,Third Party Payments,REVENUE
http://statistics.data.gov.uk/id/local-authority/00HY,Wiltshire Council,30/07/2014,5106538885,3239.96,Alliance Home Care ,110986,SN15,Community Services,MH OP North Locality,Adult Residential Placements - Spot Purchase,Third Party Payments,REVENUE
http://statistics.data.gov.uk/id/local-authority/00HY,Wiltshire Council,14/07/2014,5106529228,2287.04,Allied Care Group ,134663,GU21,Community Services,MH AOWA North Locali,Adult Domiciliary Care - Spot,Third Party Payments,REVENUE
http://statistics.data.gov.uk/id/local-authority/00HY,Wiltshire Council,25/07/2014,5106533275,1864.80,Allied Care Group ,134663,GU21,Community Services,MH AOWA North Locali,Supported Living - Without SP payments,Third Party Payments,REVENUE
http://statistics.data.gov.uk/id/local-authority/00HY,Wiltshire Council,25/07/2014,5106533276,2919.84,Allied Care Group ,134663,GU21,Community Services,MH AOWA North Locali,Supported Living - Without SP payments,Third Party Payments,REVENUE
http://statistics.data.gov.uk/id/local-authority/00HY,Wiltshire Council,25/07/2014,5106533277,2588.00,Allied Care Group ,134663,GU21,Community Services,MH AOWA North Locali,Supported Living - Without SP payments,Third Party Payments,REVENUE
http://statistics.data.gov.uk/id/local-authority/00HY,Wiltshire Council,03.07.2014,1901303111,434.60,Allied Healthcare  UK  Ltd Allied Healthcare  UK  Ltd,110113,ST18,Community Services,BCF-Intermediate Cr,Adult Nursing Placements - transitional beds,Third Party Payments,REVENUE
http://statistics.data.gov.uk/id/local-authority/00HY,Wiltshire Council,03.07.2014,1901303112,541.95,Allied Healthcare  UK  Ltd Allied Healthcare  UK  Ltd,110113,ST18,Community Services,BCF-Intermediate Cr,Adult Nursing Placements - transitional beds,Third Party Payments,REVENUE
http://statistics.data.gov.uk/id/local-authority/00HY,Wiltshire Council,03.07.2014,1901303114,473.60,Allied Healthcare  UK  Ltd Allied Healthcare  UK  Ltd,110113,ST18,Community Services,BCF-Intermediate Cr,Adult Nursing Placements - transitional beds,Third Party Payments,REVENUE
http://statistics.data.gov.uk/id/local-authority/00HY,Wiltshire Council,03.07.2014,1901303115,520.75,Allied Healthcare  UK  Ltd Allied Healthcare  UK  Ltd,110113,ST18,Community Services,BCF-Intermediate Cr,Adult Nursing Placements - transitional beds,Third Party Payments,REVENUE
http://statistics.data.gov.uk/id/local-authority/00HY,Wiltshire Council,03.07.2014,1901303116,381.25,Allied Healthcare  UK  Ltd Allied Healthcare  UK  Ltd,110113,ST18,Community Services,BCF-Intermediate Cr,Adult Nursing Placements - transitional beds,Third Party Payments,REVENUE
http://statistics.data.gov.uk/id/local-authority/00HY,Wiltshire Council,14/07/2014,5106529087,541.52,Allied Healthcare  UK  Ltd Allied Healthcare  UK  Ltd,110113,ST18,Community Services,East Locality OP,Adult Domiciliary Care - Mileage,Third Party Payments,REVENUE
http://statistics.data.gov.uk/id/local-authority/00HY,Wiltshire Council,14/07/2014,5106529098,546.18,Allied Healthcare  UK  Ltd Allied Healthcare  UK  Ltd,110113,ST18,Community Services,MH OP North Locality,Adult Domiciliary Care - Mileage,Third Party Payments,REVENUE
http://statistics.data.gov.uk/id/local-authority/00HY,Wiltshire Council,16/07/2014,5106529619,552.64,Allied Healthcare  UK  Ltd Allied Healthcare  UK  Ltd,110113,ST18,Community Services,East Locality OP,Adult Domiciliary Care - Mileage,Third Party Payments,REVENUE
http://statistics.data.gov.uk/id/local-authority/00HY,Wiltshire Council,21/07/2014,5106530889,365.98,Allied Healthcare  UK  Ltd Allied Healthcare  UK  Ltd,110113,ST18,Children & Education,CDT S&W,Other Social & Welfare Costs,Third Party Payments,REVENUE
http://statistics.data.gov.uk/id/local-authority/00HY,Wiltshire Council,22/07/2014,5106530986,601.82,Allied Healthcare  UK  Ltd Allied Healthcare  UK  Ltd,110113,ST18,Community Services,MH OP North Locality,Adult Domiciliary Care - Mileage,Third Party Payments,REVENUE
http://statistics.data.gov.uk/id/local-authority/00HY,Wiltshire Council,01/07/2014,5106520435,301.83,Allied Healthcare Group Allied Healthcare Group,113066,SP2 ,Community Services,OVA South Locality,Adult Domiciliary Care - Spot,Third Party Payments,REVENUE
http://statistics.data.gov.uk/id/local-authority/00HY,Wiltshire Council,01/07/2014,5106520436,316.18,Allied Healthcare Group Allied Healthcare Group,113066,SP2 ,Community Services,OVA South Locality,Adult Domiciliary Care - Spot,Third Party Payments,REVENUE
http://statistics.data.gov.uk/id/local-authority/00HY,Wiltshire Council,01/07/2014,5106520437,866.18,Allied Healthcare Group Allied Healthcare Group,113066,SP2 ,Community Services,MH AOWA South Locali,Adult Domiciliary Care - Mileage,Third Party Payments,REVENUE
http://statistics.data.gov.uk/id/local-authority/00HY,Wiltshire Council,01/07/2014,5106520438,5105.05,Allied Healthcare Group Allied Healthcare Group,113066,SP2 ,Community Services,OVA South Locality,Adult Domiciliary Care - Spot Contribution,Income,REVENUE
http://statistics.data.gov.uk/id/local-authority/00HY,Wiltshire Council,08/07/2014,5106528060,260.79,Allied Healthcare Group Allied Healthcare Group,113066,SP2 ,Community Services,CTPLD Place CIC U65,Carers Voucher Schemes,Third Party Payments,REVENUE
http://statistics.data.gov.uk/id/local-authority/00HY,Wiltshire Council,18/07/2014,5106530765,3818.37,Allied Healthcare Group Allied Healthcare Group,113066,SP2 ,Community Services,CTPLD Place CIC U65,Adult Day Care - Spot,Third Party Payments,REVENUE
http://statistics.data.gov.uk/id/local-authority/00HY,Wiltshire Council,18/07/2014,5106530766,2184.73,Allied Healthcare Group Allied Healthcare Group,113066,SP2 ,Community Services,CTPLD Place CIC U65,Adult Domiciliary Care - Spot,Third Party Payments,REVENUE
http://statistics.data.gov.uk/id/local-authority/00HY,Wiltshire Council,14/07/2014,5106529240,1510.00,Allpay Ltd ,136528,HR1 ,Resources,Revs&Bens-Housng Ben,Bank Charges,Capital charges and Expenditure,REVENUE
http://statistics.data.gov.uk/id/local-authority/00HY,Wiltshire Council,16/07/2014,5106529599,256.03,ALLSPARES  AUTO  LTD ,110116,CF33,Neighbourhood & Planning,Fleet Operations,Vehicle Parts,Transport Related,REVENUE
http://statistics.data.gov.uk/id/local-authority/00HY,Wiltshire Council,16/07/2014,5106530360,600.00,ALLSPARES  AUTO  LTD ,110116,CF33,Neighbourhood & Planning,Fleet Operations,Vehicle Parts,Transport Related,REVENUE
http://statistics.data.gov.uk/id/local-authority/00HY,Wiltshire Council,16/07/2014,5106530362,570.64,ALLSPARES  AUTO  LTD ,110116,CF33,Neighbourhood & Planning,Fleet Operations,Vehicle Parts,Transport Related,REVENUE
http://statistics.data.gov.uk/id/local-authority/00HY,Wiltshire Council,16/07/2014,5106530369,480.00,ALLSPARES  AUTO  LTD ,110116,CF33,Neighbourhood & Planning,Fleet Operations,Vehicle Fuel,Transport Related,REVENUE
http://statistics.data.gov.uk/id/local-authority/00HY,Wiltshire Council,29/07/2014,5106533419,446.36,ALLSPARES  AUTO  LTD ,110116,CF33,Neighbourhood & Planning,Fleet Operations,Vehicle Parts,Transport Related,REVENUE
http://statistics.data.gov.uk/id/local-authority/00HY,Wiltshire Council,25/07/2014,5106533452,960.00,ALLSPARES  AUTO  LTD ,110116,CF33,Neighbourhood & Planning,Fleet Operations,Vehicle Fuel,Transport Related,REVENUE
http://statistics.data.gov.uk/id/local-authority/00HY,Wiltshire Council,18/07/2014,5106520257,355.80,Alpha Chemicals ,138904,SO31,Neighbourhood & Planning,Five Rivers,Building Fixtures and Fittings,Premises Related,REVENUE
http://statistics.data.gov.uk/id/local-authority/00HY,Wiltshire Council,08.07.2014,1901304135,789.18,Alpha Taxis ,100124,BA14,Neighbourhood & Planning,Mainstream Secondary,Transport Contracts,Third Party Payments,REVENUE
http://statistics.data.gov.uk/id/local-authority/00HY,Wiltshire Council,08.07.2014,1901304137,2246.90,Alpha Taxis ,100124,BA14,Neighbourhood & Planning,SEN Secondary,Transport Contracts,Third Party Payments,REVENUE
http://statistics.data.gov.uk/id/local-authority/00HY,Wiltshire Council,08.07.2014,1901304139,895.50,Alpha Taxis ,100124,BA14,Neighbourhood & Planning,SEN Secondary,Transport Contracts,Third Party Payments,REVENUE
http://statistics.data.gov.uk/id/local-authority/00HY,Wiltshire Council,08.07.2014,1901304140,465.30,Alpha Taxis ,100124,BA14,Children & Education,LAC & 16+,Transport Contracts,Third Party Payments,REVENUE
http://statistics.data.gov.uk/id/local-authority/00HY,Wiltshire Council,08.07.2014,1901304142,267.58,Alpha Taxis ,100124,BA14,Neighbourhood & Planning,Mainstream Secondary,Transport Contracts,Third Party Payments,REVENUE
http://statistics.data.gov.uk/id/local-authority/00HY,Wiltshire Council,08.07.2014,1901304142,280.96,Alpha Taxis ,100124,BA14,Neighbourhood & Planning,Mainstream Primary,Transport Contracts,Third Party Payments,REVENUE
http://statistics.data.gov.uk/id/local-authority/00HY,Wiltshire Council,08.07.2014,1901304146,878.00,Alpha Taxis ,100124,BA14,Children & Education,LAC & 16+,Transport Contracts,Third Party Payments,REVENUE
http://statistics.data.gov.uk/id/local-authority/00HY,Wiltshire Council,08.07.2014,1901304147,424.80,Alpha Taxis ,100124,BA14,Neighbourhood & Planning,Mainstream Primary,Transport Contracts,Third Party Payments,REVENUE
http://statistics.data.gov.uk/id/local-authority/00HY,Wiltshire Council,08.07.2014,1901304148,700.56,Alpha Taxis ,100124,BA14,Neighbourhood & Planning,SEN Primary,Transport Contracts,Third Party Payments,REVENUE
http://statistics.data.gov.uk/id/local-authority/00HY,Wiltshire Council,08.07.2014,1901304149,455.70,Alpha Taxis ,100124,BA14,Neighbourhood & Planning,SEN Secondary,Transport Contracts,Third Party Payments,REVENUE
http://statistics.data.gov.uk/id/local-authority/00HY,Wiltshire Council,08.07.2014,1901304150,560.33,Alpha Taxis ,100124,BA14,Neighbourhood & Planning,Mainstream Secondary,Transport Contracts,Third Party Payments,REVENUE
http://statistics.data.gov.uk/id/local-authority/00HY,Wiltshire Council,08.07.2014,1901304152,734.32,Alpha Taxis ,100124,BA14,Neighbourhood & Planning,Mainstream 16+ FE,Transport Contracts,Third Party Payments,REVENUE
http://statistics.data.gov.uk/id/local-authority/00HY,Wiltshire Council,08.07.2014,1901304154,362.80,Alpha Taxis ,100124,BA14,Neighbourhood & Planning,Mainstream Primary,Transport Contracts,Third Party Payments,REVENUE
http://statistics.data.gov.uk/id/local-authority/00HY,Wiltshire Council,10.07.2014,1901312779,453.20,Alpha Taxis ,100124,BA14,Neighbourhood & Planning,SEN Rechargable Exp,Transport Contracts,Third Party Payments,REVENUE
http://statistics.data.gov.uk/id/local-authority/00HY,Wiltshire Council,10.07.2014,1901312779,464.82,Alpha Taxis ,100124,BA14,Children & Education,Safeguarding Ass Nth,Transport Contracts,Third Party Payments,REVENUE
http://statistics.data.gov.uk/id/local-authority/00HY,Wiltshire Council,10.07.2014,1901312779,496.85,Alpha Taxis ,100124,BA14,Children & Education,LAC & 16+,Transport Contracts,Third Party Payments,REVENUE
http://statistics.data.gov.uk/id/local-authority/00HY,Wiltshire Council,10.07.2014,1901312779,1516.50,Alpha Taxis ,100124,BA14,Children & Education,EOTAS Service,Transport Contracts,Third Party Payments,REVENUE
http://statistics.data.gov.uk/id/local-authority/00HY,Wiltshire Council,10.07.2014,1901312779,1588.09,Alpha Taxis ,100124,BA14,Children & Education,LAC & 16+,Transport Contracts,Third Party Payments,REVENUE
http://statistics.data.gov.uk/id/local-authority/00HY,Wiltshire Council,10.07.2014,1901312779,1764.60,Alpha Taxis ,100124,BA14,Children & Education,BehaviourSuppCore,Transport Contracts,Third Party Payments,REVENUE
http://statistics.data.gov.uk/id/local-authority/00HY,Wiltshire Council,10.07.2014,1901312779,2515.00,Alpha Taxis ,100124,BA14,Neighbourhood & Planning,SEN Secondary,Transport Contracts,Third Party Payments,REVENUE
http://statistics.data.gov.uk/id/local-authority/00HY,Wiltshire Council,22/07/2014,5106530929,302.40,Alzheimers Support ,110127,BA14,Community Services,MH OP East Locality,Adult Domiciliary Care - Spot,Third Party Payments,REVENUE
http://statistics.data.gov.uk/id/local-authority/00HY,Wiltshire Council,22/07/2014,5106530945,288.27,Alzheimers Support ,110127,BA14,Community Services,MH OP East Locality,Adult Domiciliary Care - Mileage,Third Party Payments,REVENUE
http://statistics.data.gov.uk/id/local-authority/00HY,Wiltshire Council,22/07/2014,5106530950,337.14,Alzheimers Support ,110127,BA14,Community Services,East Locality OP,Adult Domiciliary Care - Mileage,Third Party Payments,REVENUE
http://statistics.data.gov.uk/id/local-authority/00HY,Wiltshire Council,22/07/2014,5106531031,404.07,Alzheimers Support ,110127,BA14,Community Services,MH - OSJ Combe End C,Adult Domiciliary Care - Mileage,Third Party Payments,REVENUE
http://statistics.data.gov.uk/id/local-authority/00HY,Wiltshire Council,28/07/2014,5106533952,394.76,Alzheimers Support ,110127,BA14,Community Services,West Locality OP,Adult Domiciliary Care - Mileage,Third Party Payments,REVENUE
http://statistics.data.gov.uk/id/local-authority/00HY,Wiltshire Council,24/07/2014,5106532686,3961.75,Alzheimers Support ,113451,BA14,Community Services,Social Inclusion,Grants Paid to individuals for Tangible Benefits,Supplies and Services,REVENUE
http://statistics.data.gov.uk/id/local-authority/00HY,Wiltshire Council,24/07/2014,5106532686,17659.93,Alzheimers Support ,113451,BA14,Community Services,MH Commissioned Cont,Grants Paid to individuals for Tangible Benefits,Supplies and Services,REVENUE
http://statistics.data.gov.uk/id/local-authority/00HY,Wiltshire Council,24/07/2014,5106532687,4711.75,Alzheimers Support ,113451,BA14,Community Services,Social Inclusion,Grants Paid to individuals for Tangible Benefits,Supplies and Services,REVENUE
http://statistics.data.gov.uk/id/local-authority/00HY,Wiltshire Council,24/07/2014,5106532687,28295.21,Alzheimers Support ,113451,BA14,Community Services,MH Commissioned Cont,Grants Paid to individuals for Tangible Benefits,Supplies and Services,REVENUE
http://statistics.data.gov.uk/id/local-authority/00HY,Wiltshire Council,02/07/2014,5106523546,11153.84,Amberwood Cambian Group ,138521,BH14,Community Services,CTPLD Place CIC U65,Adult Residential Placements - Spot Purchase,Third Party Payments,REVENUE
http://statistics.data.gov.uk/id/local-authority/00HY,Wiltshire Council,30/07/2014,5106537211,11153.84,Amberwood Cambian Group ,138521,BH14,Community Services,CTPLD Place CIC U65,Adult Residential Placements - Spot Purchase,Third Party Payments,REVENUE
http://statistics.data.gov.uk/id/local-authority/00HY,Wiltshire Council,08/07/2014,5106527983,1280.00,Ameo Ltd ,137429,WD3 ,Resources,InternalCommunicats,Consultants� Fees,Supplies and Services,REVENUE
http://statistics.data.gov.uk/id/local-authority/00HY,Wiltshire Council,08/07/2014,5106527984,1120.00,Ameo Ltd ,137429,WD3 ,Resources,InternalCommunicats,Consultants� Fees,Supplies and Services,REVENUE
http://statistics.data.gov.uk/id/local-authority/00HY,Wiltshire Council,08/07/2014,5106527985,1440.00,Ameo Ltd ,137429,WD3 ,Resources,InternalCommunicats,Consultants� Fees,Supplies and Services,REVENUE
http://statistics.data.gov.uk/id/local-authority/00HY,Wiltshire Council,08/07/2014,5106527986,1280.00,Ameo Ltd ,137429,WD3 ,Resources,InternalCommunicats,Consultants� Fees,Supplies and Services,REVENUE
http://statistics.data.gov.uk/id/local-authority/00HY,Wiltshire Council,08/07/2014,5106527987,1120.00,Ameo Ltd ,137429,WD3 ,Resources,InternalCommunicats,Consultants� Fees,Supplies and Services,REVENUE
http://statistics.data.gov.uk/id/local-authority/00HY,Wiltshire Council,08/07/2014,5106527988,1280.00,Ameo Ltd ,137429,WD3 ,Resources,InternalCommunicats,Consultants� Fees,Supplies and Services,REVENUE
http://statistics.data.gov.uk/id/local-authority/00HY,Wiltshire Council,08/07/2014,5106527989,1120.00,Ameo Ltd ,137429,WD3 ,Resources,InternalCommunicats,Consultants� Fees,Supplies and Services,REVENUE
http://statistics.data.gov.uk/id/local-authority/00HY,Wiltshire Council,08/07/2014,5106527990,1280.00,Ameo Ltd ,137429,WD3 ,Resources,InternalCommunicats,Consultants� Fees,Supplies and Services,REVENUE
http://statistics.data.gov.uk/id/local-authority/00HY,Wiltshire Council,08/07/2014,5106527991,320.00,Ameo Ltd ,137429,WD3 ,Resources,InternalCommunicats,Consultants� Fees,Supplies and Services,REVENUE
http://statistics.data.gov.uk/id/local-authority/00HY,Wiltshire Council,15/07/2014,5106529418,760.00,Ameo Ltd ,137429,WD3 ,Resources,InternalCommunicats,Consultants� Fees,Supplies and Services,REVENUE
http://statistics.data.gov.uk/id/local-authority/00HY,Wiltshire Council,15/07/2014,5106529419,1520.00,Ameo Ltd ,137429,WD3 ,Resources,InternalCommunicats,Consultants� Fees,Supplies and Services,REVENUE
http://statistics.data.gov.uk/id/local-authority/00HY,Wiltshire Council,15/07/2014,5106529420,1900.00,Ameo Ltd ,137429,WD3 ,Resources,InternalCommunicats,Consultants� Fees,Supplies and Services,REVENUE
http://statistics.data.gov.uk/id/local-authority/00HY,Wiltshire Council,15/07/2014,5106529421,1280.00,Ameo Ltd ,137429,WD3 ,Resources,InternalCommunicats,Consultants� Fees,Supplies and Services,REVENUE
http://statistics.data.gov.uk/id/local-authority/00HY,Wiltshire Council,15/07/2014,5106529422,960.00,Ameo Ltd ,137429,WD3 ,Resources,InternalCommunicats,Consultants� Fees,Supplies and Services,REVENUE
http://statistics.data.gov.uk/id/local-authority/00HY,Wiltshire Council,22/07/2014,5106530993,640.00,Ameo Ltd ,137429,WD3 ,Resources,InternalCommunicats,Consultants� Fees,Supplies and Services,REVENUE
http://statistics.data.gov.uk/id/local-authority/00HY,Wiltshire Council,22/07/2014,5106530996,800.00,Ameo Ltd ,137429,WD3 ,Resources,InternalCommunicats,Consultants� Fees,Supplies and Services,REVENUE
http://statistics.data.gov.uk/id/local-authority/00HY,Wiltshire Council,28/07/2014,5106533528,1280.00,Ameo Ltd ,137429,WD3 ,Resources,InternalCommunicats,Consultants� Fees,Supplies and Services,REVENUE
http://statistics.data.gov.uk/id/local-authority/00HY,Wiltshire Council,28/07/2014,5106533529,1280.00,Ameo Ltd ,137429,WD3 ,Resources,InternalCommunicats,Consultants� Fees,Supplies and Services,REVENUE
http://statistics.data.gov.uk/id/local-authority/00HY,Wiltshire Council,17/07/2014,5106530546,3146.50,Amicus Foster Care Limited ,126050,BS2 ,Children & Education,Ext Placement & IFA,Adult / Child Care Agency Placement,Third Party Payments,REVENUE
http://statistics.data.gov.uk/id/local-authority/00HY,Wiltshire Council,17/07/2014,5106530547,3146.50,Amicus Foster Care Limited ,126050,BS2 ,Children & Education,Ext Placement & IFA,Adult / Child Care Agency Placement,Third Party Payments,REVENUE
http://statistics.data.gov.uk/id/local-authority/00HY,Wiltshire Council,17/07/2014,5106530548,3146.50,Amicus Foster Care Limited ,126050,BS2 ,Children & Education,Ext Placement & IFA,Adult / Child Care Agency Placement,Third Party Payments,REVENUE
http://statistics.data.gov.uk/id/local-authority/00HY,Wiltshire Council,17/07/2014,5106530553,348.56,Amicus Foster Care Limited ,126050,BS2 ,Children & Education,PCT in/out,Adult / Child Care Agency Placement,Third Party Payments,REVENUE
http://statistics.data.gov.uk/id/local-authority/00HY,Wiltshire Council,21/07/2014,5106530881,5292.01,Amicus Foster Care Limited ,126050,BS2 ,Children & Education,Ext Placement & IFA,Adult / Child Care Agency Placement,Third Party Payments,REVENUE
http://statistics.data.gov.uk/id/local-authority/00HY,Wiltshire Council,21/07/2014,5106530886,2743.67,Amicus Foster Care Limited ,126050,BS2 ,Children & Education,Ext Placement & IFA,Adult / Child Care Agency Placement,Third Party Payments,REVENUE
http://statistics.data.gov.uk/id/local-authority/00HY,Wiltshire Council,21/07/2014,5106530887,897.12,Amicus Foster Care Limited ,126050,BS2 ,Children & Education,Ext Placement & IFA,Adult / Child Care Agency Placement,Third Party Payments,REVENUE
http://statistics.data.gov.uk/id/local-authority/00HY,Wiltshire Council,02/07/2014,5106521217,3480.84,AMS Care Wiltshire ,130764,SN4 ,Community Services,Home Loans,Adult Care Loans,Capital charges and Expenditure,REVENUE
http://statistics.data.gov.uk/id/local-authority/00HY,Wiltshire Council,02/07/2014,5106521553,2711.64,AMS Care Wiltshire ,130764,SN4 ,Community Services,Home Loans,Adult Care Loans,Capital charges and Expenditure,REVENUE
http://statistics.data.gov.uk/id/local-authority/00HY,Wiltshire Council,02/07/2014,5106521808,2320.60,AMS Care Wiltshire ,130764,SN4 ,Community Services,North Locality OP,Adult Care Nursing Placements- Block Contract,Third Party Payments,REVENUE
http://statistics.data.gov.uk/id/local-authority/00HY,Wiltshire Council,02/07/2014,5106521809,443.56,AMS Care Wiltshire ,130764,SN4 ,Community Services,OP North FNC,Adult Care Funded Nursing Care - Loal Auth Clients,Third Party Payments,REVENUE
http://statistics.data.gov.uk/id/local-authority/00HY,Wiltshire Council,02/07/2014,5106521826,2320.60,AMS Care Wiltshire ,130764,SN4 ,Community Services,North Locality OP,Adult Care Nursing Placements- Block Contract,Third Party Payments,REVENUE
http://statistics.data.gov.uk/id/local-authority/00HY,Wiltshire Council,02/07/2014,5106521827,443.56,AMS Care Wiltshire ,130764,SN4 ,Community Services,OP North FNC,Adult Care Funded Nursing Care - Loal Auth Clients,Third Party Payments,REVENUE
http://statistics.data.gov.uk/id/local-authority/00HY,Wiltshire Council,02/07/2014,5106521895,2524.04,AMS Care Wiltshire ,130764,SN4 ,Community Services,North Locality OP,Adult Care Nursing Placements- Block Contract,Third Party Payments,REVENUE
http://statistics.data.gov.uk/id/local-authority/00HY,Wiltshire Council,02/07/2014,5106521896,443.56,AMS Care Wiltshire ,130764,SN4 ,Community Services,OP North FNC,Adult Care Funded Nursing Care - Loal Auth Clients,Third Party Payments,REVENUE
http://statistics.data.gov.uk/id/local-authority/00HY,Wiltshire Council,02/07/2014,5106521900,2320.60,AMS Care Wiltshire ,130764,SN4 ,Community Services,South Locality OP,Adult Care Nursing Placements- Block Contract,Third Party Payments,REVENUE
http://statistics.data.gov.uk/id/local-authority/00HY,Wiltshire Council,02/07/2014,5106521901,443.56,AMS Care Wiltshire ,130764,SN4 ,Community Services,OP South FNC,Adult Care Funded Nursing Care - Loal Auth Clients,Third Party Payments,REVENUE
http://statistics.data.gov.uk/id/local-authority/00HY,Wiltshire Council,02/07/2014,5106522134,2320.60,AMS Care Wiltshire ,130764,SN4 ,Community Services,North Locality OP,Adult Care Nursing Placements- Block Contract,Third Party Payments,REVENUE
http://statistics.data.gov.uk/id/local-authority/00HY,Wiltshire Council,02/07/2014,5106522135,443.56,AMS Care Wiltshire ,130764,SN4 ,Community Services,OP North FNC,Adult Care Funded Nursing Care - Loal Auth Clients,Third Party Payments,REVENUE
http://statistics.data.gov.uk/id/local-authority/00HY,Wiltshire Council,02/07/2014,5106522481,2320.60,AMS Care Wiltshire ,130764,SN4 ,Community Services,North Locality OP,Adult Care Nursing Placements- Block Contract,Third Party Payments,REVENUE
http://statistics.data.gov.uk/id/local-authority/00HY,Wiltshire Council,02/07/2014,5106522482,443.56,AMS Care Wiltshire ,130764,SN4 ,Community Services,OP North FNC,Adult Care Funded Nursing Care - Loal Auth Clients,Third Party Payments,REVENUE
http://statistics.data.gov.uk/id/local-authority/00HY,Wiltshire Council,02/07/2014,5106522595,2524.04,AMS Care Wiltshire ,130764,SN4 ,Community Services,North Locality OP,Adult Care Nursing Placements- Block Contract,Third Party Payments,REVENUE
http://statistics.data.gov.uk/id/local-authority/00HY,Wiltshire Council,02/07/2014,5106522596,443.56,AMS Care Wiltshire ,130764,SN4 ,Community Services,OP North FNC,Adult Care Funded Nursing Care - Loal Auth Clients,Third Party Payments,REVENUE
http://statistics.data.gov.uk/id/local-authority/00HY,Wiltshire Council,02/07/2014,5106523529,2320.60,AMS Care Wiltshire ,130764,SN4 ,Community Services,North Locality OP,Adult Care Nursing Placements- Block Contract,Third Party Payments,REVENUE
http://statistics.data.gov.uk/id/local-authority/00HY,Wiltshire Council,02/07/2014,5106523530,443.56,AMS Care Wiltshire ,130764,SN4 ,Community Services,OP North FNC,Adult Care Funded Nursing Care - Loal Auth Clients,Third Party Payments,REVENUE
http://statistics.data.gov.uk/id/local-authority/00HY,Wiltshire Council,02/07/2014,5106523534,2320.60,AMS Care Wiltshire ,130764,SN4 ,Community Services,North Locality OP,Adult Care Nursing Placements- Block Contract,Third Party Payments,REVENUE
http://statistics.data.gov.uk/id/local-authority/00HY,Wiltshire Council,02/07/2014,5106523535,443.56,AMS Care Wiltshire ,130764,SN4 ,Community Services,OP North FNC,Adult Care Funded Nursing Care - Loal Auth Clients,Third Party Payments,REVENUE
http://statistics.data.gov.uk/id/local-authority/00HY,Wiltshire Council,02/07/2014,5106523589,2320.60,AMS Care Wiltshire ,130764,SN4 ,Community Services,North Locality OP,Adult Care Nursing Placements- Block Contract,Third Party Payments,REVENUE
http://statistics.data.gov.uk/id/local-authority/00HY,Wiltshire Council,02/07/2014,5106523590,443.56,AMS Care Wiltshire ,130764,SN4 ,Community Services,OP North FNC,Adult Care Funded Nursing Care - Loal Auth Clients,Third Party Payments,REVENUE
http://statistics.data.gov.uk/id/local-authority/00HY,Wiltshire Council,02/07/2014,5106523666,2304.00,AMS Care Wiltshire ,130764,SN4 ,Community Services,North Locality OP,Adult Care Nursing Placements- Block Contract,Third Party Payments,REVENUE
http://statistics.data.gov.uk/id/local-authority/00HY,Wiltshire Council,02/07/2014,5106523667,443.56,AMS Care Wiltshire ,130764,SN4 ,Community Services,OP North FNC,Adult Care Funded Nursing Care - Loal Auth Clients,Third Party Payments,REVENUE
http://statistics.data.gov.uk/id/local-authority/00HY,Wiltshire Council,02/07/2014,5106523727,2320.60,AMS Care Wiltshire ,130764,SN4 ,Community Services,West Locality OP,Adult Care Nursing Placements- Block Contract,Third Party Payments,REVENUE
http://statistics.data.gov.uk/id/local-authority/00HY,Wiltshire Council,02/07/2014,5106523728,443.56,AMS Care Wiltshire ,130764,SN4 ,Community Services,OP West FNC,Adult Care Funded Nursing Care - Loal Auth Clients,Third Party Payments,REVENUE
http://statistics.data.gov.uk/id/local-authority/00HY,Wiltshire Council,02/07/2014,5106524304,2320.60,AMS Care Wiltshire ,130764,SN4 ,Community Services,North Locality OP,Adult Care Nursing Placements- Block Contract,Third Party Payments,REVENUE
http://statistics.data.gov.uk/id/local-authority/00HY,Wiltshire Council,02/07/2014,5106524305,443.56,AMS Care Wiltshire ,130764,SN4 ,Community Services,OP North FNC,Adult Care Funded Nursing Care - Loal Auth Clients,Third Party Payments,REVENUE
http://statistics.data.gov.uk/id/local-authority/00HY,Wiltshire Council,02/07/2014,5106524352,2320.60,AMS Care Wiltshire ,130764,SN4 ,Community Services,East Locality OP,Adult Care Nursing Placements- Block Contract,Third Party Payments,REVENUE
http://statistics.data.gov.uk/id/local-authority/00HY,Wiltshire Council,02/07/2014,5106524353,443.56,AMS Care Wiltshire ,130764,SN4 ,Community Services,OP East FNC,Adult Care Funded Nursing Care - Loal Auth Clients,Third Party Payments,REVENUE
http://statistics.data.gov.uk/id/local-authority/00HY,Wiltshire Council,02/07/2014,5106524362,2320.60,AMS Care Wiltshire ,130764,SN4 ,Community Services,North Locality OP,Adult Care Nursing Placements- Block Contract,Third Party Payments,REVENUE
http://statistics.data.gov.uk/id/local-authority/00HY,Wiltshire Council,02/07/2014,5106524363,443.56,AMS Care Wiltshire ,130764,SN4 ,Community Services,OP North FNC,Adult Care Funded Nursing Care - Loal Auth Clients,Third Party Payments,REVENUE
http://statistics.data.gov.uk/id/local-authority/00HY,Wiltshire Council,02/07/2014,5106524368,2320.60,AMS Care Wiltshire ,130764,SN4 ,Community Services,MH OP North Locality,Adult Care Nursing Placements- Block Contract,Third Party Payments,REVENUE
http://statistics.data.gov.uk/id/local-authority/00HY,Wiltshire Council,02/07/2014,5106524369,443.56,AMS Care Wiltshire ,130764,SN4 ,Community Services,MH OA North FNC,Adult Care Funded Nursing Care - Loal Auth Clients,Third Party Payments,REVENUE
http://statistics.data.gov.uk/id/local-authority/00HY,Wiltshire Council,02/07/2014,5106524383,2320.60,AMS Care Wiltshire ,130764,SN4 ,Community Services,North Locality OP,Adult Care Nursing Placements- Block Contract,Third Party Payments,REVENUE
http://statistics.data.gov.uk/id/local-authority/00HY,Wiltshire Council,02/07/2014,5106524384,443.56,AMS Care Wiltshire ,130764,SN4 ,Community Services,OP North FNC,Adult Care Funded Nursing Care - Loal Auth Clients,Third Party Payments,REVENUE
http://statistics.data.gov.uk/id/local-authority/00HY,Wiltshire Council,02/07/2014,5106524407,2320.60,AMS Care Wiltshire ,130764,SN4 ,Community Services,MH OP North Locality,Adult Care Nursing Placements- Block Contract,Third Party Payments,REVENUE
http://statistics.data.gov.uk/id/local-authority/00HY,Wiltshire Council,02/07/2014,5106524408,443.56,AMS Care Wiltshire ,130764,SN4 ,Community Services,MH OA North FNC,Adult Care Funded Nursing Care - Loal Auth Clients,Third Party Payments,REVENUE
http://statistics.data.gov.uk/id/local-authority/00HY,Wiltshire Council,02/07/2014,5106524410,2320.60,AMS Care Wiltshire ,130764,SN4 ,Community Services,North Locality OP,Adult Care Nursing Placements- Block Contract,Third Party Payments,REVENUE
http://statistics.data.gov.uk/id/local-authority/00HY,Wiltshire Council,02/07/2014,5106524411,443.56,AMS Care Wiltshire ,130764,SN4 ,Community Services,OP North FNC,Adult Care Funded Nursing Care - Loal Auth Clients,Third Party Payments,REVENUE
http://statistics.data.gov.uk/id/local-authority/00HY,Wiltshire Council,02/07/2014,5106524416,2320.60,AMS Care Wiltshire ,130764,SN4 ,Community Services,North Locality OP,Adult Care Nursing Placements- Block Contract,Third Party Payments,REVENUE
http://statistics.data.gov.uk/id/local-authority/00HY,Wiltshire Council,02/07/2014,5106524417,443.56,AMS Care Wiltshire ,130764,SN4 ,Community Services,OP North FNC,Adult Care Funded Nursing Care - Loal Auth Clients,Third Party Payments,REVENUE
http://statistics.data.gov.uk/id/local-authority/00HY,Wiltshire Council,02/07/2014,5106524428,2320.60,AMS Care Wiltshire ,130764,SN4 ,Community Services,MH OP North Locality,Adult Care Nursing Placements- Block Contract,Third Party Payments,REVENUE
http://statistics.data.gov.uk/id/local-authority/00HY,Wiltshire Council,02/07/2014,5106524429,443.56,AMS Care Wiltshire ,130764,SN4 ,Community Services,MH OA North FNC,Adult Care Funded Nursing Care - Loal Auth Clients,Third Party Payments,REVENUE
http://statistics.data.gov.uk/id/local-authority/00HY,Wiltshire Council,02/07/2014,5106524474,2320.60,AMS Care Wiltshire ,130764,SN4 ,Community Services,North Locality OP,Adult Care Nursing Placements- Block Contract,Third Party Payments,REVENUE
http://statistics.data.gov.uk/id/local-authority/00HY,Wiltshire Council,02/07/2014,5106524475,443.56,AMS Care Wiltshire ,130764,SN4 ,Community Services,OP North FNC,Adult Care Funded Nursing Care - Loal Auth Clients,Third Party Payments,REVENUE
http://statistics.data.gov.uk/id/local-authority/00HY,Wiltshire Council,02/07/2014,5106524501,2320.60,AMS Care Wiltshire ,130764,SN4 ,Community Services,North Locality OP,Adult Care Nursing Placements- Block Contract,Third Party Payments,REVENUE
http://statistics.data.gov.uk/id/local-authority/00HY,Wiltshire Council,02/07/2014,5106524502,443.56,AMS Care Wiltshire ,130764,SN4 ,Community Services,OP North FNC,Adult Care Funded Nursing Care - Loal Auth Clients,Third Party Payments,REVENUE
http://statistics.data.gov.uk/id/local-authority/00HY,Wiltshire Council,02/07/2014,5106524513,2320.60,AMS Care Wiltshire ,130764,SN4 ,Community Services,North Locality OP,Adult Care Nursing Placements- Block Contract,Third Party Payments,REVENUE
http://statistics.data.gov.uk/id/local-authority/00HY,Wiltshire Council,02/07/2014,5106524514,443.56,AMS Care Wiltshire ,130764,SN4 ,Community Services,OP North FNC,Adult Care Funded Nursing Care - Loal Auth Clients,Third Party Payments,REVENUE
http://statistics.data.gov.uk/id/local-authority/00HY,Wiltshire Council,02/07/2014,5106524845,2320.60,AMS Care Wiltshire ,130764,SN4 ,Community Services,North Locality OP,Adult Care Nursing Placements- Block Contract,Third Party Payments,REVENUE
http://statistics.data.gov.uk/id/local-authority/00HY,Wiltshire Council,02/07/2014,5106524846,443.56,AMS Care Wiltshire ,130764,SN4 ,Community Services,OP North FNC,Adult Care Funded Nursing Care - Loal Auth Clients,Third Party Payments,REVENUE
http://statistics.data.gov.uk/id/local-authority/00HY,Wiltshire Council,10/07/2014,5106528489,540.84,AMS Care Wiltshire ,130764,SN4 ,Community Services,North Locality OP,Adult Care Nursing Placements- Block Contract,Third Party Payments,REVENUE
http://statistics.data.gov.uk/id/local-authority/00HY,Wiltshire Council,10/07/2014,5106528492,2524.04,AMS Care Wiltshire ,130764,SN4 ,Community Services,North Locality OP,Adult Care Nursing Placements- Block Contract,Third Party Payments,REVENUE
http://statistics.data.gov.uk/id/local-authority/00HY,Wiltshire Council,10/07/2014,5106528493,443.56,AMS Care Wiltshire ,130764,SN4 ,Community Services,OP North FNC,Adult Care Funded Nursing Care - Loal Auth Clients,Third Party Payments,REVENUE
http://statistics.data.gov.uk/id/local-authority/00HY,Wiltshire Council,10/07/2014,5106528495,2524.04,AMS Care Wiltshire ,130764,SN4 ,Community Services,North Locality OP,Adult Care Nursing Placements- Block Contract,Third Party Payments,REVENUE
http://statistics.data.gov.uk/id/local-authority/00HY,Wiltshire Council,10/07/2014,5106528496,443.56,AMS Care Wiltshire ,130764,SN4 ,Community Services,OP North FNC,Adult Care Funded Nursing Care - Loal Auth Clients,Third Party Payments,REVENUE
http://statistics.data.gov.uk/id/local-authority/00HY,Wiltshire Council,10/07/2014,5106528498,2524.04,AMS Care Wiltshire ,130764,SN4 ,Community Services,North Locality OP,Adult Care Nursing Placements- Block Contract,Third Party Payments,REVENUE
http://statistics.data.gov.uk/id/local-authority/00HY,Wiltshire Council,10/07/2014,5106528499,443.56,AMS Care Wiltshire ,130764,SN4 ,Community Services,OP North FNC,Adult Care Funded Nursing Care - Loal Auth Clients,Third Party Payments,REVENUE
http://statistics.data.gov.uk/id/local-authority/00HY,Wiltshire Council,10/07/2014,5106528546,2163.36,AMS Care Wiltshire ,130764,SN4 ,Community Services,North Locality OP,Adult Care Nursing Placements- Spot Purchase,Third Party Payments,REVENUE
http://statistics.data.gov.uk/id/local-authority/00HY,Wiltshire Council,10/07/2014,5106528547,380.16,AMS Care Wiltshire ,130764,SN4 ,Community Services,OP North FNC,Adult Care Funded Nursing Care - Loal Auth Clients,Third Party Payments,REVENUE
http://statistics.data.gov.uk/id/local-authority/00HY,Wiltshire Council,10/07/2014,5106528549,1622.52,AMS Care Wiltshire ,130764,SN4 ,Community Services,North Locality OP,Adult Care Nursing Placements- Spot Purchase,Third Party Payments,REVENUE
http://statistics.data.gov.uk/id/local-authority/00HY,Wiltshire Council,10/07/2014,5106528550,285.12,AMS Care Wiltshire ,130764,SN4 ,Community Services,OP North FNC,Adult Care Funded Nursing Care - Loal Auth Clients,Third Party Payments,REVENUE
http://statistics.data.gov.uk/id/local-authority/00HY,Wiltshire Council,10/07/2014,5106528612,776.00,AMS Care Wiltshire ,130764,SN4 ,Community Services,North Locality OP,Adult Residential Respite - Spot,Third Party Payments,REVENUE
http://statistics.data.gov.uk/id/local-authority/00HY,Wiltshire Council,10/07/2014,5106528723,1261.96,AMS Care Wiltshire ,130764,SN4 ,Community Services,MH OP North Locality,Adult Care Nursing Placements- Spot Purchase,Third Party Payments,REVENUE
http://statistics.data.gov.uk/id/local-authority/00HY,Wiltshire Council,30/07/2014,5106535895,3480.84,AMS Care Wiltshire ,130764,SN4 ,Community Services,Home Loans,Adult Care Loans,Capital charges and Expenditure,REVENUE
http://statistics.data.gov.uk/id/local-authority/00HY,Wiltshire Council,30/07/2014,5106536214,2711.64,AMS Care Wiltshire ,130764,SN4 ,Community Services,Home Loans,Adult Care Loans,Capital charges and Expenditure,REVENUE
http://statistics.data.gov.uk/id/local-authority/00HY,Wiltshire Council,30/07/2014,5106536443,2320.60,AMS Care Wiltshire ,130764,SN4 ,Community Services,North Locality OP,Adult Care Nursing Placements- Block Contract,Third Party Payments,REVENUE
http://statistics.data.gov.uk/id/local-authority/00HY,Wiltshire Council,30/07/2014,5106536444,443.56,AMS Care Wiltshire ,130764,SN4 ,Community Services,OP North FNC,Adult Care Funded Nursing Care - Loal Auth Clients,Third Party Payments,REVENUE
http://statistics.data.gov.uk/id/local-authority/00HY,Wiltshire Council,30/07/2014,5106536460,2320.60,AMS Care Wiltshire ,130764,SN4 ,Community Services,North Locality OP,Adult Care Nursing Placements- Block Contract,Third Party Payments,REVENUE
http://statistics.data.gov.uk/id/local-authority/00HY,Wiltshire Council,30/07/2014,5106536461,443.56,AMS Care Wiltshire ,130764,SN4 ,Community Services,OP North FNC,Adult Care Funded Nursing Care - Loal Auth Clients,Third Party Payments,REVENUE
http://statistics.data.gov.uk/id/local-authority/00HY,Wiltshire Council,30/07/2014,5106536529,2524.04,AMS Care Wiltshire ,130764,SN4 ,Community Services,North Locality OP,Adult Care Nursing Placements- Block Contract,Third Party Payments,REVENUE
http://statistics.data.gov.uk/id/local-authority/00HY,Wiltshire Council,30/07/2014,5106536530,443.56,AMS Care Wiltshire ,130764,SN4 ,Community Services,OP North FNC,Adult Care Funded Nursing Care - Loal Auth Clients,Third Party Payments,REVENUE
http://statistics.data.gov.uk/id/local-authority/00HY,Wiltshire Council,30/07/2014,5106536534,2320.60,AMS Care Wiltshire ,130764,SN4 ,Community Services,South Locality OP,Adult Care Nursing Placements- Block Contract,Third Party Payments,REVENUE
http://statistics.data.gov.uk/id/local-authority/00HY,Wiltshire Council,30/07/2014,5106536535,443.56,AMS Care Wiltshire ,130764,SN4 ,Community Services,OP South FNC,Adult Care Funded Nursing Care - Loal Auth Clients,Third Party Payments,REVENUE
http://statistics.data.gov.uk/id/local-authority/00HY,Wiltshire Council,30/07/2014,5106536768,2320.60,AMS Care Wiltshire ,130764,SN4 ,Community Services,North Locality OP,Adult Care Nursing Placements- Block Contract,Third Party Payments,REVENUE
http://statistics.data.gov.uk/id/local-authority/00HY,Wiltshire Council,30/07/2014,5106536769,443.56,AMS Care Wiltshire ,130764,SN4 ,Community Services,OP North FNC,Adult Care Funded Nursing Care - Loal Auth Clients,Third Party Payments,REVENUE
http://statistics.data.gov.uk/id/local-authority/00HY,Wiltshire Council,30/07/2014,5106537002,2320.60,AMS Care Wiltshire ,130764,SN4 ,Community Services,North Locality OP,Adult Care Nursing Placements- Block Contract,Third Party Payments,REVENUE
http://statistics.data.gov.uk/id/local-authority/00HY,Wiltshire Council,30/07/2014,5106537003,443.56,AMS Care Wiltshire ,130764,SN4 ,Community Services,OP North FNC,Adult Care Funded Nursing Care - Loal Auth Clients,Third Party Payments,REVENUE
http://statistics.data.gov.uk/id/local-authority/00HY,Wiltshire Council,30/07/2014,5106537007,2320.60,AMS Care Wiltshire ,130764,SN4 ,Community Services,North Locality OP,Adult Care Nursing Placements- Block Contract,Third Party Payments,REVENUE
http://statistics.data.gov.uk/id/local-authority/00HY,Wiltshire Council,30/07/2014,5106537008,443.56,AMS Care Wiltshire ,130764,SN4 ,Community Services,OP North FNC,Adult Care Funded Nursing Care - Loal Auth Clients,Third Party Payments,REVENUE
http://statistics.data.gov.uk/id/local-authority/00HY,Wiltshire Council,30/07/2014,5106537137,2320.60,AMS Care Wiltshire ,130764,SN4 ,Community Services,North Locality OP,Adult Care Nursing Placements- Block Contract,Third Party Payments,REVENUE
http://statistics.data.gov.uk/id/local-authority/00HY,Wiltshire Council,30/07/2014,5106537138,443.56,AMS Care Wiltshire ,130764,SN4 ,Community Services,OP North FNC,Adult Care Funded Nursing Care - Loal Auth Clients,Third Party Payments,REVENUE
http://statistics.data.gov.uk/id/local-authority/00HY,Wiltshire Council,30/07/2014,5106537254,2320.60,AMS Care Wiltshire ,130764,SN4 ,Community Services,North Locality OP,Adult Care Nursing Placements- Block Contract,Third Party Payments,REVENUE
http://statistics.data.gov.uk/id/local-authority/00HY,Wiltshire Council,30/07/2014,5106537255,443.56,AMS Care Wiltshire ,130764,SN4 ,Community Services,OP North FNC,Adult Care Funded Nursing Care - Loal Auth Clients,Third Party Payments,REVENUE
http://statistics.data.gov.uk/id/local-authority/00HY,Wiltshire Council,30/07/2014,5106537292,2524.04,AMS Care Wiltshire ,130764,SN4 ,Community Services,North Locality OP,Adult Care Nursing Placements- Block Contract,Third Party Payments,REVENUE
http://statistics.data.gov.uk/id/local-authority/00HY,Wiltshire Council,30/07/2014,5106537293,443.56,AMS Care Wiltshire ,130764,SN4 ,Community Services,OP North FNC,Adult Care Funded Nursing Care - Loal Auth Clients,Third Party Payments,REVENUE
http://statistics.data.gov.uk/id/local-authority/00HY,Wiltshire Council,30/07/2014,5106537378,2304.00,AMS Care Wiltshire ,130764,SN4 ,Community Services,North Locality OP,Adult Care Nursing Placements- Block Contract,Third Party Payments,REVENUE
http://statistics.data.gov.uk/id/local-authority/00HY,Wiltshire Council,30/07/2014,5106537379,443.56,AMS Care Wiltshire ,130764,SN4 ,Community Services,OP North FNC,Adult Care Funded Nursing Care - Loal Auth Clients,Third Party Payments,REVENUE
http://statistics.data.gov.uk/id/local-authority/00HY,Wiltshire Council,30/07/2014,5106537437,2320.60,AMS Care Wiltshire ,130764,SN4 ,Community Services,West Locality OP,Adult Care Nursing Placements- Block Contract,Third Party Payments,REVENUE
http://statistics.data.gov.uk/id/local-authority/00HY,Wiltshire Council,30/07/2014,5106537438,443.56,AMS Care Wiltshire ,130764,SN4 ,Community Services,OP West FNC,Adult Care Funded Nursing Care - Loal Auth Clients,Third Party Payments,REVENUE
http://statistics.data.gov.uk/id/local-authority/00HY,Wiltshire Council,30/07/2014,5106538604,2320.60,AMS Care Wiltshire ,130764,SN4 ,Community Services,North Locality OP,Adult Care Nursing Placements- Block Contract,Third Party Payments,REVENUE
http://statistics.data.gov.uk/id/local-authority/00HY,Wiltshire Council,30/07/2014,5106538605,443.56,AMS Care Wiltshire ,130764,SN4 ,Community Services,OP North FNC,Adult Care Funded Nursing Care - Loal Auth Clients,Third Party Payments,REVENUE
http://statistics.data.gov.uk/id/local-authority/00HY,Wiltshire Council,30/07/2014,5106538645,2320.60,AMS Care Wiltshire ,130764,SN4 ,Community Services,East Locality OP,Adult Care Nursing Placements- Block Contract,Third Party Payments,REVENUE
http://statistics.data.gov.uk/id/local-authority/00HY,Wiltshire Council,30/07/2014,5106538646,443.56,AMS Care Wiltshire ,130764,SN4 ,Community Services,OP East FNC,Adult Care Funded Nursing Care - Loal Auth Clients,Third Party Payments,REVENUE
http://statistics.data.gov.uk/id/local-authority/00HY,Wiltshire Council,30/07/2014,5106538655,2320.60,AMS Care Wiltshire ,130764,SN4 ,Community Services,North Locality OP,Adult Care Nursing Placements- Block Contract,Third Party Payments,REVENUE
http://statistics.data.gov.uk/id/local-authority/00HY,Wiltshire Council,30/07/2014,5106538656,443.56,AMS Care Wiltshire ,130764,SN4 ,Community Services,OP North FNC,Adult Care Funded Nursing Care - Loal Auth Clients,Third Party Payments,REVENUE
http://statistics.data.gov.uk/id/local-authority/00HY,Wiltshire Council,30/07/2014,5106538661,2320.60,AMS Care Wiltshire ,130764,SN4 ,Community Services,MH OP North Locality,Adult Care Nursing Placements- Block Contract,Third Party Payments,REVENUE
http://statistics.data.gov.uk/id/local-authority/00HY,Wiltshire Council,30/07/2014,5106538662,443.56,AMS Care Wiltshire ,130764,SN4 ,Community Services,MH OA North FNC,Adult Care Funded Nursing Care - Loal Auth Clients,Third Party Payments,REVENUE
http://statistics.data.gov.uk/id/local-authority/00HY,Wiltshire Council,30/07/2014,5106538676,2320.60,AMS Care Wiltshire ,130764,SN4 ,Community Services,North Locality OP,Adult Care Nursing Placements- Block Contract,Third Party Payments,REVENUE
http://statistics.data.gov.uk/id/local-authority/00HY,Wiltshire Council,30/07/2014,5106538677,443.56,AMS Care Wiltshire ,130764,SN4 ,Community Services,OP North FNC,Adult Care Funded Nursing Care - Loal Auth Clients,Third Party Payments,REVENUE
http://statistics.data.gov.uk/id/local-authority/00HY,Wiltshire Council,30/07/2014,5106538700,2320.60,AMS Care Wiltshire ,130764,SN4 ,Community Services,MH OP North Locality,Adult Care Nursing Placements- Block Contract,Third Party Payments,REVENUE
http://statistics.data.gov.uk/id/local-authority/00HY,Wiltshire Council,30/07/2014,5106538701,443.56,AMS Care Wiltshire ,130764,SN4 ,Community Services,MH OA North FNC,Adult Care Funded Nursing Care - Loal Auth Clients,Third Party Payments,REVENUE
http://statistics.data.gov.uk/id/local-authority/00HY,Wiltshire Council,30/07/2014,5106538703,2320.60,AMS Care Wiltshire ,130764,SN4 ,Community Services,North Locality OP,Adult Care Nursing Placements- Block Contract,Third Party Payments,REVENUE
http://statistics.data.gov.uk/id/local-authority/00HY,Wiltshire Council,30/07/2014,5106538704,443.56,AMS Care Wiltshire ,130764,SN4 ,Community Services,OP North FNC,Adult Care Funded Nursing Care - Loal Auth Clients,Third Party Payments,REVENUE
http://statistics.data.gov.uk/id/local-authority/00HY,Wiltshire Council,30/07/2014,5106538709,2320.60,AMS Care Wiltshire ,130764,SN4 ,Community Services,North Locality OP,Adult Care Nursing Placements- Block Contract,Third Party Payments,REVENUE
http://statistics.data.gov.uk/id/local-authority/00HY,Wiltshire Council,30/07/2014,5106538710,443.56,AMS Care Wiltshire ,130764,SN4 ,Community Services,OP North FNC,Adult Care Funded Nursing Care - Loal Auth Clients,Third Party Payments,REVENUE
http://statistics.data.gov.uk/id/local-authority/00HY,Wiltshire Council,30/07/2014,5106538718,2320.60,AMS Care Wiltshire ,130764,SN4 ,Community Services,MH OP North Locality,Adult Care Nursing Placements- Block Contract,Third Party Payments,REVENUE
http://statistics.data.gov.uk/id/local-authority/00HY,Wiltshire Council,30/07/2014,5106538719,443.56,AMS Care Wiltshire ,130764,SN4 ,Community Services,MH OA North FNC,Adult Care Funded Nursing Care - Loal Auth Clients,Third Party Payments,REVENUE
http://statistics.data.gov.uk/id/local-authority/00HY,Wiltshire Council,30/07/2014,5106538764,2320.60,AMS Care Wiltshire ,130764,SN4 ,Community Services,North Locality OP,Adult Care Nursing Placements- Block Contract,Third Party Payments,REVENUE
http://statistics.data.gov.uk/id/local-authority/00HY,Wiltshire Council,30/07/2014,5106538765,443.56,AMS Care Wiltshire ,130764,SN4 ,Community Services,OP North FNC,Adult Care Funded Nursing Care - Loal Auth Clients,Third Party Payments,REVENUE
http://statistics.data.gov.uk/id/local-authority/00HY,Wiltshire Council,30/07/2014,5106538791,2320.60,AMS Care Wiltshire ,130764,SN4 ,Community Services,North Locality OP,Adult Care Nursing Placements- Block Contract,Third Party Payments,REVENUE
http://statistics.data.gov.uk/id/local-authority/00HY,Wiltshire Council,30/07/2014,5106538792,443.56,AMS Care Wiltshire ,130764,SN4 ,Community Services,OP North FNC,Adult Care Funded Nursing Care - Loal Auth Clients,Third Party Payments,REVENUE
http://statistics.data.gov.uk/id/local-authority/00HY,Wiltshire Council,30/07/2014,5106538803,2320.60,AMS Care Wiltshire ,130764,SN4 ,Community Services,North Locality OP,Adult Care Nursing Placements- Block Contract,Third Party Payments,REVENUE
http://statistics.data.gov.uk/id/local-authority/00HY,Wiltshire Council,30/07/2014,5106538804,443.56,AMS Care Wiltshire ,130764,SN4 ,Community Services,OP North FNC,Adult Care Funded Nursing Care - Loal Auth Clients,Third Party Payments,REVENUE
http://statistics.data.gov.uk/id/local-authority/00HY,Wiltshire Council,30/07/2014,5106539255,2320.60,AMS Care Wiltshire ,130764,SN4 ,Community Services,North Locality OP,Adult Care Nursing Placements- Block Contract,Third Party Payments,REVENUE
http://statistics.data.gov.uk/id/local-authority/00HY,Wiltshire Council,30/07/2014,5106539256,443.56,AMS Care Wiltshire ,130764,SN4 ,Community Services,OP North FNC,Adult Care Funded Nursing Care - Loal Auth Clients,Third Party Payments,REVENUE
http://statistics.data.gov.uk/id/local-authority/00HY,Wiltshire Council,30/07/2014,5106539578,2524.04,AMS Care Wiltshire ,130764,SN4 ,Community Services,North Locality OP,Adult Care Nursing Placements- Block Contract,Third Party Payments,REVENUE
http://statistics.data.gov.uk/id/local-authority/00HY,Wiltshire Council,30/07/2014,5106539579,443.56,AMS Care Wiltshire ,130764,SN4 ,Community Services,OP North FNC,Adult Care Funded Nursing Care - Loal Auth Clients,Third Party Payments,REVENUE
http://statistics.data.gov.uk/id/local-authority/00HY,Wiltshire Council,30/07/2014,5106539654,1171.82,AMS Care Wiltshire ,130764,SN4 ,Community Services,MH OP North Locality,Adult Care Nursing Placements- Spot Purchase,Third Party Payments,REVENUE
http://statistics.data.gov.uk/id/local-authority/00HY,Wiltshire Council,30/07/2014,5106539851,331.52,AMS Care Wiltshire ,130764,SN4 ,Community Services,North Locality OP,Adult Care Nursing Placements- Block Contract,Third Party Payments,REVENUE
http://statistics.data.gov.uk/id/local-authority/00HY,Wiltshire Council,30/07/2014,5106539854,2320.60,AMS Care Wiltshire ,130764,SN4 ,Community Services,North Locality OP,Adult Care Nursing Placements- Block Contract,Third Party Payments,REVENUE
http://statistics.data.gov.uk/id/local-authority/00HY,Wiltshire Council,30/07/2014,5106539855,443.56,AMS Care Wiltshire ,130764,SN4 ,Community Services,OP North FNC,Adult Care Funded Nursing Care - Loal Auth Clients,Third Party Payments,REVENUE
http://statistics.data.gov.uk/id/local-authority/00HY,Wiltshire Council,30/07/2014,5106539857,2320.60,AMS Care Wiltshire ,130764,SN4 ,Community Services,North Locality OP,Adult Care Nursing Placements- Block Contract,Third Party Payments,REVENUE
http://statistics.data.gov.uk/id/local-authority/00HY,Wiltshire Council,30/07/2014,5106539858,443.56,AMS Care Wiltshire ,130764,SN4 ,Community Services,OP North FNC,Adult Care Funded Nursing Care - Loal Auth Clients,Third Party Payments,REVENUE
http://statistics.data.gov.uk/id/local-authority/00HY,Wiltshire Council,30/07/2014,5106539860,2320.60,AMS Care Wiltshire ,130764,SN4 ,Community Services,North Locality OP,Adult Care Nursing Placements- Block Contract,Third Party Payments,REVENUE
http://statistics.data.gov.uk/id/local-authority/00HY,Wiltshire Council,30/07/2014,5106539861,443.56,AMS Care Wiltshire ,130764,SN4 ,Community Services,OP North FNC,Adult Care Funded Nursing Care - Loal Auth Clients,Third Party Payments,REVENUE
http://statistics.data.gov.uk/id/local-authority/00HY,Wiltshire Council,30/07/2014,5106539863,331.52,AMS Care Wiltshire ,130764,SN4 ,Community Services,North Locality OP,Adult Care Nursing Placements- Block Contract,Third Party Payments,REVENUE
http://statistics.data.gov.uk/id/local-authority/00HY,Wiltshire Council,30/07/2014,5106539866,360.56,AMS Care Wiltshire ,130764,SN4 ,Community Services,North Locality OP,Adult Care Nursing Placements- Block Contract,Third Party Payments,REVENUE
http://statistics.data.gov.uk/id/local-authority/00HY,Wiltshire Council,30/07/2014,5106539869,2524.04,AMS Care Wiltshire ,130764,SN4 ,Community Services,North Locality OP,Adult Care Nursing Placements- Block Contract,Third Party Payments,REVENUE
http://statistics.data.gov.uk/id/local-authority/00HY,Wiltshire Council,30/07/2014,5106539870,443.56,AMS Care Wiltshire ,130764,SN4 ,Community Services,OP North FNC,Adult Care Funded Nursing Care - Loal Auth Clients,Third Party Payments,REVENUE
http://statistics.data.gov.uk/id/local-authority/00HY,Wiltshire Council,30/07/2014,5106539872,2524.04,AMS Care Wiltshire ,130764,SN4 ,Community Services,North Locality OP,Adult Care Nursing Placements- Block Contract,Third Party Payments,REVENUE
http://statistics.data.gov.uk/id/local-authority/00HY,Wiltshire Council,30/07/2014,5106539873,443.56,AMS Care Wiltshire ,130764,SN4 ,Community Services,OP North FNC,Adult Care Funded Nursing Care - Loal Auth Clients,Third Party Payments,REVENUE
http://statistics.data.gov.uk/id/local-authority/00HY,Wiltshire Council,30/07/2014,5106539875,2524.04,AMS Care Wiltshire ,130764,SN4 ,Community Services,North Locality OP,Adult Care Nursing Placements- Block Contract,Third Party Payments,REVENUE
http://statistics.data.gov.uk/id/local-authority/00HY,Wiltshire Council,30/07/2014,5106539876,443.56,AMS Care Wiltshire ,130764,SN4 ,Community Services,OP North FNC,Adult Care Funded Nursing Care - Loal Auth Clients,Third Party Payments,REVENUE
http://statistics.data.gov.uk/id/local-authority/00HY,Wiltshire Council,30/07/2014,5106539878,2524.04,AMS Care Wiltshire ,130764,SN4 ,Community Services,North Locality OP,Adult Care Nursing Placements- Block Contract,Third Party Payments,REVENUE
http://statistics.data.gov.uk/id/local-authority/00HY,Wiltshire Council,30/07/2014,5106539879,443.56,AMS Care Wiltshire ,130764,SN4 ,Community Services,OP North FNC,Adult Care Funded Nursing Care - Loal Auth Clients,Third Party Payments,REVENUE
http://statistics.data.gov.uk/id/local-authority/00HY,Wiltshire Council,02/07/2014,5106521980,3269.32,Andover Nursing Home ,110142,SP10,Community Services,East Locality OP,Adult Care Nursing Placements- Spot Purchase,Third Party Payments,REVENUE
http://statistics.data.gov.uk/id/local-authority/00HY,Wiltshire Council,30/07/2014,5106536619,3269.32,Andover Nursing Home ,110142,SP10,Community Services,East Locality OP,Adult Care Nursing Placements- Spot Purchase,Third Party Payments,REVENUE
http://statistics.data.gov.uk/id/local-authority/00HY,Wiltshire Council,04.07.2014,1901303456,324.02,Andy Taxis Limited ,100874,SP4 ,Neighbourhood & Planning,Mainstream 16+ Sec,Transport Contracts,Third Party Payments,REVENUE
http://statistics.data.gov.uk/id/local-authority/00HY,Wiltshire Council,04.07.2014,1901303456,810.05,Andy Taxis Limited ,100874,SP4 ,Neighbourhood & Planning,Mainstream Secondary,Transport Contracts,Third Party Payments,REVENUE
http://statistics.data.gov.uk/id/local-authority/00HY,Wiltshire Council,04.07.2014,1901303456,972.02,Andy Taxis Limited ,100874,SP4 ,Neighbourhood & Planning,Mainstream Primary,Transport Contracts,Third Party Payments,REVENUE
http://statistics.data.gov.uk/id/local-authority/00HY,Wiltshire Council,02.07.2014,1901302351,1111.11,Andybus  and  Coach Ltd ,100132,SN16,Neighbourhood & Planning,Mainstream Primary,Transport Contracts,Third Party Payments,REVENUE
http://statistics.data.gov.uk/id/local-authority/00HY,Wiltshire Council,02.07.2014,1901302351,17253.34,Andybus  and  Coach Ltd ,100132,SN16,Neighbourhood & Planning,Mainstream Secondary,Transport Contracts,Third Party Payments,REVENUE
http://statistics.data.gov.uk/id/local-authority/00HY,Wiltshire Council,02.07.2014,1901302355,385.90,Andybus  and  Coach Ltd ,100132,SN16,Neighbourhood & Planning,Mainstream 16+ Sec,Transport Contracts,Third Party Payments,REVENUE
http://statistics.data.gov.uk/id/local-authority/00HY,Wiltshire Council,02.07.2014,1901302355,2701.44,Andybus  and  Coach Ltd ,100132,SN16,Neighbourhood & Planning,Mainstream Secondary,Transport Contracts,Third Party Payments,REVENUE
http://statistics.data.gov.uk/id/local-authority/00HY,Wiltshire Council,02.07.2014,1901302358,286.97,Andybus  and  Coach Ltd ,100132,SN16,Neighbourhood & Planning,Mainstream 16+ Sec,Transport Contracts,Third Party Payments,REVENUE
http://statistics.data.gov.uk/id/local-authority/00HY,Wiltshire Council,02.07.2014,1901302358,2797.41,Andybus  and  Coach Ltd ,100132,SN16,Neighbourhood & Planning,Mainstream Secondary,Transport Contracts,Third Party Payments,REVENUE
http://statistics.data.gov.uk/id/local-authority/00HY,Wiltshire Council,02.07.2014,1901302359,277.12,Andybus  and  Coach Ltd ,100132,SN16,Neighbourhood & Planning,Mainstream 16+ Sec,Transport Contracts,Third Party Payments,REVENUE
http://statistics.data.gov.uk/id/local-authority/00HY,Wiltshire Council,02.07.2014,1901302359,2969.13,Andybus  and  Coach Ltd ,100132,SN16,Neighbourhood & Planning,Mainstream Secondary,Transport Contracts,Third Party Payments,REVENUE
http://statistics.data.gov.uk/id/local-authority/00HY,Wiltshire Council,01.07.2014,1901301555,260.00,ANGEL HOTEL CHIPPENHAM ,110150,SN15,Community Services,Strategy & Comm,Premises Rental / Hire Charges,Premises Related,REVENUE
http://statistics.data.gov.uk/id/local-authority/00HY,Wiltshire Council,02/07/2014,5106521571,1978.40,Angus Council ,135802,DD8 ,Community Services,CTPLD Place CIC U65,Adult Residential Placements - Spot Purchase,Third Party Payments,REVENUE
http://statistics.data.gov.uk/id/local-authority/00HY,Wiltshire Council,30/07/2014,5106536233,1978.40,Angus Council ,135802,DD8 ,Community Services,CTPLD Place CIC U65,Adult Residential Placements - Spot Purchase,Third Party Payments,REVENUE
http://statistics.data.gov.uk/id/local-authority/00HY,Wiltshire Council,21/07/2014,5106520397,1500.00,Animation for Education Ltd ,129070,SN13,Children & Education,STNDRDS&CURRC TEAM,Conference Fees,Supplies and Services,REVENUE
http://statistics.data.gov.uk/id/local-authority/00HY,Wiltshire Council,28/07/2014,5106532621,455.00,Annie's Catering ,125517,SN10,Resources,BusinsTransformLean,Hospitality,Supplies and Services,REVENUE
http://statistics.data.gov.uk/id/local-authority/00HY,Wiltshire Council,28/07/2014,5106532622,390.00,Annie's Catering ,125517,SN10,Resources,BusinsTransformLean,Hospitality,Supplies and Services,REVENUE
http://statistics.data.gov.uk/id/local-authority/00HY,Wiltshire Council,04/07/2014,5106516029,328.62,Antalis Limited ,122876,LE67,Resources,DesignPrintTrowbridg,Materials & Consumables (Non-Educational),Supplies and Services,REVENUE
http://statistics.data.gov.uk/id/local-authority/00HY,Wiltshire Council,30/07/2014,5106530849,604.24,Antalis Limited ,122876,LE67,Resources,DesignPrintTrowbridg,Materials & Consumables (Non-Educational),Supplies and Services,REVENUE
http://statistics.data.gov.uk/id/local-authority/00HY,Wiltshire Council,11.07.2014,1901304079,390.00,APA Consultants Ltd ,113361,SN10,Neighbourhood & Planning,DevControlSouth,Consultants� Fees,Supplies and Services,REVENUE
http://statistics.data.gov.uk/id/local-authority/00HY,Wiltshire Council,11/07/2014,5106528348,780.00,APA Consultants Ltd ,113361,SN10,Neighbourhood & Planning,DevControlNorth,Consultants� Fees,Supplies and Services,REVENUE
http://statistics.data.gov.uk/id/local-authority/00HY,Wiltshire Council,15/07/2014,5106529524,1560.00,APA Consultants Ltd ,113361,SN10,Neighbourhood & Planning,DevConCent,Other Professional Fees,Supplies and Services,REVENUE
http://statistics.data.gov.uk/id/local-authority/00HY,Wiltshire Council,09.07.2014,1901294856,320.00,Apex Sportz ,137374,BA14,Neighbourhood & Planning,Sports Devt Grants,Other Sporting Activities,Supplies and Services,REVENUE
http://statistics.data.gov.uk/id/local-authority/00HY,Wiltshire Council,02.07.2014,1901302342,261.56,APL Travel Limited ,100596,SN4 ,Neighbourhood & Planning,Mainstream Secondary,Transport Contract -  Bus Season Tickets,Third Party Payments,REVENUE
http://statistics.data.gov.uk/id/local-authority/00HY,Wiltshire Council,02.07.2014,1901302342,261.56,APL Travel Limited ,100596,SN4 ,Neighbourhood & Planning,Mainstream 16+ Sec,Transport Contract -  Bus Season Tickets,Third Party Payments,REVENUE
http://statistics.data.gov.uk/id/local-authority/00HY,Wiltshire Council,02.07.2014,1901302342,2793.08,APL Travel Limited ,100596,SN4 ,Neighbourhood & Planning,Mainstream 16+ FE,Transport Contract -  Bus Season Tickets,Third Party Payments,REVENUE
http://statistics.data.gov.uk/id/local-authority/00HY,Wiltshire Council,09.07.2014,1901312221,1837.16,APL Travel Limited ,100596,SN4 ,Neighbourhood & Planning,Mainstream Secondary,Transport Contracts,Third Party Payments,REVENUE
http://statistics.data.gov.uk/id/local-authority/00HY,Wiltshire Council,09.07.2014,1901312221,6121.10,APL Travel Limited ,100596,SN4 ,Neighbourhood & Planning,Public Transport,Transport Contracts,Third Party Payments,REVENUE
http://statistics.data.gov.uk/id/local-authority/00HY,Wiltshire Council,09.07.2014,1901312223,1610.00,APL Travel Limited ,100596,SN4 ,Neighbourhood & Planning,Mainstream Secondary,Transport Contracts,Third Party Payments,REVENUE
http://statistics.data.gov.uk/id/local-authority/00HY,Wiltshire Council,09.07.2014,1901312223,5125.74,APL Travel Limited ,100596,SN4 ,Neighbourhood & Planning,Public Transport,Transport Contracts,Third Party Payments,REVENUE
http://statistics.data.gov.uk/id/local-authority/00HY,Wiltshire Council,09.07.2014,1901312230,384.57,APL Travel Limited ,100596,SN4 ,Neighbourhood & Planning,Public Transport,Transport Contracts,Third Party Payments,REVENUE
http://statistics.data.gov.uk/id/local-authority/00HY,Wiltshire Council,09.07.2014,1901312232,478.56,APL Travel Limited ,100596,SN4 ,Neighbourhood & Planning,Public Transport,Transport Contracts,Third Party Payments,REVENUE
http://statistics.data.gov.uk/id/local-authority/00HY,Wiltshire Council,09.07.2014,1901312233,470.52,APL Travel Limited ,100596,SN4 ,Neighbourhood & Planning,Mainstream 16+ Sec,Transport Contracts,Third Party Payments,REVENUE
http://statistics.data.gov.uk/id/local-authority/00HY,Wiltshire Council,09.07.2014,1901312233,4425.35,APL Travel Limited ,100596,SN4 ,Neighbourhood & Planning,Mainstream Secondary,Transport Contracts,Third Party Payments,REVENUE
http://statistics.data.gov.uk/id/local-authority/00HY,Wiltshire Council,09.07.2014,1901312234,3900.00,APL Travel Limited ,100596,SN4 ,Neighbourhood & Planning,Public Transport,Transport Contracts,Third Party Payments,REVENUE
http://statistics.data.gov.uk/id/local-authority/00HY,Wiltshire Council,29.07.2014,1901319098,6481.40,APL Travel Limited ,100596,SN4 ,Neighbourhood & Planning,Concessionary Fares,Compensation for Concessionary fares,Third Party Payments,REVENUE
http://statistics.data.gov.uk/id/local-authority/00HY,Wiltshire Council,28/07/2014,5106529453,765.00,Aquaid ( Kennet  and  North Wilts) ,113580,SN9 ,Neighbourhood & Planning,Devizes,Catering Equipment,Supplies and Services,REVENUE
http://statistics.data.gov.uk/id/local-authority/00HY,Wiltshire Council,09/07/2014,5106515579,588.00,Arboricultural Association ,126005,GL10,Resources,Centralised Training,Staff Training Course Costs,Employee Related,REVENUE
http://statistics.data.gov.uk/id/local-authority/00HY,Wiltshire Council,02/07/2014,5106521100,2626.00,Arbory Residential Home ,113587,SP11,Community Services,MH OP North Locality,Adult Residential Placements - Spot Purchase,Third Party Payments,REVENUE
http://statistics.data.gov.uk/id/local-authority/00HY,Wiltshire Council,24/07/2014,5106533154,2307.17,Arbory Residential Home ,113587,SP11,Community Services,MH AOWA South Locali,Adult Residential Placements - Spot Purchase,Third Party Payments,REVENUE
http://statistics.data.gov.uk/id/local-authority/00HY,Wiltshire Council,30/07/2014,5106535802,2626.00,Arbory Residential Home ,113587,SP11,Community Services,MH OP North Locality,Adult Residential Placements - Spot Purchase,Third Party Payments,REVENUE
http://statistics.data.gov.uk/id/local-authority/00HY,Wiltshire Council,30/07/2014,5106539746,3400.00,Arbory Residential Home ,113587,SP11,Community Services,MH AOWA South Locali,Adult Residential Placements - Spot Purchase,Third Party Payments,REVENUE
http://statistics.data.gov.uk/id/local-authority/00HY,Wiltshire Council,02/07/2014,5106520850,2094.92,Arch Care Services Ltd ,110169,BS21,Community Services,MH AOWA North Locali,Adult Residential Placements - Spot Purchase,Third Party Payments,REVENUE
http://statistics.data.gov.uk/id/local-authority/00HY,Wiltshire Council,30/07/2014,5106535572,2094.92,Arch Care Services Ltd ,110169,BS21,Community Services,MH AOWA North Locali,Adult Residential Placements - Spot Purchase,Third Party Payments,REVENUE
http://statistics.data.gov.uk/id/local-authority/00HY,Wiltshire Council,17.07.2014,1901315961,441.14,Arrow Private Hire ,100574,SN8 ,Neighbourhood & Planning,SEN Rechargable Exp,Transport Contracts,Third Party Payments,REVENUE
http://statistics.data.gov.uk/id/local-authority/00HY,Wiltshire Council,17.07.2014,1901315961,882.28,Arrow Private Hire ,100574,SN8 ,Neighbourhood & Planning,SEN Secondary,Transport Contracts,Third Party Payments,REVENUE
http://statistics.data.gov.uk/id/local-authority/00HY,Wiltshire Council,18.07.2014,1901316392,1513.10,Arrow Private Hire ,100574,SN8 ,Neighbourhood & Planning,Mainstream Secondary,Transport Contracts,Third Party Payments,REVENUE
http://statistics.data.gov.uk/id/local-authority/00HY,Wiltshire Council,22.07.2014,1901317065,471.66,Arrow Private Hire ,100574,SN8 ,Neighbourhood & Planning,Mainstream 16+ FE,Transport Contracts,Third Party Payments,REVENUE
http://statistics.data.gov.uk/id/local-authority/00HY,Wiltshire Council,28/07/2014,5106533950,1075.00,Arthur Williams Consulting Ltd ,129581,BA14,Resources,Estates Team,Buildings Minor Alterations,Premises Related,REVENUE
http://statistics.data.gov.uk/id/local-authority/00HY,Wiltshire Council,30/07/2014,5106534774,407.00,Artisan Hire Centre ,113613,SN12,Neighbourhood & Planning,Rights of Way Mainte,Highways - Other Materials,Supplies and Services,REVENUE
http://statistics.data.gov.uk/id/local-authority/00HY,Wiltshire Council,14/07/2014,5106515999,635.00,Asbestos Consultancy Manegement Ser ,139664,BA13,Wiltshire Council,Wiltshire Council,Highways - Other Materials,Supplies and Services,CAPITAL
http://statistics.data.gov.uk/id/local-authority/00HY,Wiltshire Council,02/07/2014,5106521544,2065.64,Ashbourne Court Care Home ,133906,SP10,Community Services,East Locality OP,Adult Care Nursing Placements- Spot Purchase,Third Party Payments,REVENUE
http://statistics.data.gov.uk/id/local-authority/00HY,Wiltshire Council,02/07/2014,5106524975,2344.00,Ashbourne Court Care Home ,133906,SP10,Community Services,East Locality OP,Adult Care Nursing Placements- Spot Purchase,Third Party Payments,REVENUE
http://statistics.data.gov.uk/id/local-authority/00HY,Wiltshire Council,30/07/2014,5106536206,2065.64,Ashbourne Court Care Home ,133906,SP10,Community Services,East Locality OP,Adult Care Nursing Placements- Spot Purchase,Third Party Payments,REVENUE
http://statistics.data.gov.uk/id/local-authority/00HY,Wiltshire Council,30/07/2014,5106539435,2344.00,Ashbourne Court Care Home ,133906,SP10,Community Services,East Locality OP,Adult Care Nursing Placements- Spot Purchase,Third Party Payments,REVENUE
http://statistics.data.gov.uk/id/local-authority/00HY,Wiltshire Council,02/07/2014,5106521464,1867.80,Ashbury Lodge ,113635,SN3 ,Community Services,MH OP North Locality,Adult Residential Placements - Spot Purchase,Third Party Payments,REVENUE
http://statistics.data.gov.uk/id/local-authority/00HY,Wiltshire Council,02/07/2014,5106524155,2165.44,Ashbury Lodge ,113635,SN3 ,Community Services,North Locality OP,Adult Residential Placements - Spot Purchase,Third Party Payments,REVENUE
http://statistics.data.gov.uk/id/local-authority/00HY,Wiltshire Council,24/07/2014,5106532792,1765.40,Ashbury Lodge ,113635,SN3 ,Community Services,MH OP North Locality,Adult Residential Placements - Spot Purchase,Third Party Payments,REVENUE
http://statistics.data.gov.uk/id/local-authority/00HY,Wiltshire Council,30/07/2014,5106536128,2120.00,Ashbury Lodge ,113635,SN3 ,Community Services,MH OP North Locality,Adult Residential Placements - Spot Purchase,Third Party Payments,REVENUE
http://statistics.data.gov.uk/id/local-authority/00HY,Wiltshire Council,30/07/2014,5106537852,2165.44,Ashbury Lodge ,113635,SN3 ,Community Services,North Locality OP,Adult Residential Placements - Spot Purchase,Third Party Payments,REVENUE
http://statistics.data.gov.uk/id/local-authority/00HY,Wiltshire Council,10/07/2014,5106528349,3420.08,Ashfords Solicitors ,113641,EX1 ,Wiltshire Council,Wiltshire Council,Legal Fees,Supplies and Services,CAPITAL
http://statistics.data.gov.uk/id/local-authority/00HY,Wiltshire Council,15/07/2014,5106529473,2397.60,Ashfords Solicitors ,113641,EX1 ,Neighbourhood & Planning,Sust Transport SD,Legal Fees,Supplies and Services,REVENUE
http://statistics.data.gov.uk/id/local-authority/00HY,Wiltshire Council,24.07.2014,1901318588,720.00,Ashton Cabs ,101384,BA14,Children & Education,LAC & 16+,Transport Contracts,Third Party Payments,REVENUE
http://statistics.data.gov.uk/id/local-authority/00HY,Wiltshire Council,02/07/2014,5106521673,2595.20,Ashton House ,135013,RH16,Community Services,MH OP North Locality,Adult Care Nursing Placements- Spot Purchase,Third Party Payments,REVENUE
http://statistics.data.gov.uk/id/local-authority/00HY,Wiltshire Council,30/07/2014,5106536327,2586.44,Ashton House ,135013,RH16,Community Services,MH OP North Locality,Adult Care Nursing Placements- Spot Purchase,Third Party Payments,REVENUE
http://statistics.data.gov.uk/id/local-authority/00HY,Wiltshire Council,02/07/2014,5106523608,1841.76,Ashton Manor Nursing Home ,139060,GU10,Community Services,West Locality OP,Adult Care Nursing Placements- Spot Purchase,Third Party Payments,REVENUE
http://statistics.data.gov.uk/id/local-authority/00HY,Wiltshire Council,30/07/2014,5106537323,1841.76,Ashton Manor Nursing Home ,139060,GU10,Community Services,West Locality OP,Adult Care Nursing Placements- Spot Purchase,Third Party Payments,REVENUE
http://statistics.data.gov.uk/id/local-authority/00HY,Wiltshire Council,02/07/2014,5106521273,3907.08,Aspects and Milestones Trust ,131150,BS23,Community Services,CTPLD Place CIC U65,Adult Residential Placements - Spot Purchase,Third Party Payments,REVENUE
http://statistics.data.gov.uk/id/local-authority/00HY,Wiltshire Council,30/07/2014,5106535943,3907.08,Aspects and Milestones Trust ,131150,BS23,Community Services,CTPLD Place CIC U65,Adult Residential Placements - Spot Purchase,Third Party Payments,REVENUE
http://statistics.data.gov.uk/id/local-authority/00HY,Wiltshire Council,17.07.2014,1901315941,1901.55,Aspire Taxis ,101274,SP2 ,Neighbourhood & Planning,SEN Secondary,Transport Contracts,Third Party Payments,REVENUE
http://statistics.data.gov.uk/id/local-authority/00HY,Wiltshire Council,17.07.2014,1901315943,1006.95,Aspire Taxis ,101274,SP2 ,Neighbourhood & Planning,SEN Secondary,Transport Contracts,Third Party Payments,REVENUE
http://statistics.data.gov.uk/id/local-authority/00HY,Wiltshire Council,17.07.2014,1901315946,905.60,Aspire Taxis ,101274,SP2 ,Neighbourhood & Planning,Mainstream Primary,Transport Contracts,Third Party Payments,REVENUE
http://statistics.data.gov.uk/id/local-authority/00HY,Wiltshire Council,17.07.2014,1901315949,842.52,Aspire Taxis ,101274,SP2 ,Neighbourhood & Planning,Mainstream Primary,Transport Contracts,Third Party Payments,REVENUE
http://statistics.data.gov.uk/id/local-authority/00HY,Wiltshire Council,17.07.2014,1901315950,262.39,Aspire Taxis ,101274,SP2 ,Neighbourhood & Planning,Mainstream Primary,Transport Contracts,Third Party Payments,REVENUE
http://statistics.data.gov.uk/id/local-authority/00HY,Wiltshire Council,17.07.2014,1901315950,262.40,Aspire Taxis ,101274,SP2 ,Neighbourhood & Planning,SEN Primary,Transport Contracts,Third Party Payments,REVENUE
http://statistics.data.gov.uk/id/local-authority/00HY,Wiltshire Council,17.07.2014,1901315953,1045.00,Aspire Taxis ,101274,SP2 ,Community Services,CTPLD Place CIC U65,Transport Contracts,Third Party Payments,REVENUE
http://statistics.data.gov.uk/id/local-authority/00HY,Wiltshire Council,24.07.2014,1901318616,326.25,Aspire Taxis ,101274,SP2 ,Community Services,OVA South Locality,Transport Contracts,Third Party Payments,REVENUE
http://statistics.data.gov.uk/id/local-authority/00HY,Wiltshire Council,31.07.2014,1901320252,459.00,Aspire Taxis ,101274,SP2 ,Community Services,CTPLD Place CIC U65,Transport Contracts,Third Party Payments,REVENUE
http://statistics.data.gov.uk/id/local-authority/00HY,Wiltshire Council,10.07.2014,1901312649,1667.25,Aster Group Ltd  Ridgeway Care. ,113069,SN10,Community Services,The Pathways Flat,Premises Rental / Hire Charges,Premises Related,REVENUE
http://statistics.data.gov.uk/id/local-authority/00HY,Wiltshire Council,29/07/2014,5106534072,482.10,Aster Group Ltd  Ridgeway Care. ,113069,SN10,Community Services,MH AOWA South Locali,Adult Domiciliary Care - Spot Contribution,Income,REVENUE
http://statistics.data.gov.uk/id/local-authority/00HY,Wiltshire Council,09.07.2014,1901301173,1071.00,Aster Living ,112275,SN10,Wiltshire Council,Wiltshire Council,Other Professional Fees,Supplies and Services,CAPITAL
http://statistics.data.gov.uk/id/local-authority/00HY,Wiltshire Council,09.07.2014,1901301176,500.00,Aster Living ,112275,SN10,Wiltshire Council,Wiltshire Council,Other Professional Fees,Supplies and Services,CAPITAL
